Local authority department which incurred the expenditure,Service Division,Cost Centre,Summary of the Purpose of Expenditure,Expense Type,Expense Code,Detailed Expense Type,Date of Transaction,Transaction Number,Beneficiary,Merchant Category Number,Merchant Category,Gross Amount,VAT,Net Amount
Children and Young Peoples Services,Head of Childrens Social Care,085332,Middlestone Moor CU,Supplies and Services,304403,Equipment and Materials,01-May-2020,000007169254904,AMZNMktplace,5999,Other consumables,8.99,0.00,8.99
Resources BK0010,Digital and Customer Services,070204,School Services - Systems,Supplies and Services,372009,Subscriptions E372,01-May-2020,000007169254910,WEB NETWORKSOLUTIONS,5968,Subscriptions 372009,4.51,0.00,4.51
Children and Young Peoples Services,Head of Early Help Inclusion & Vulnerable Children.,085965,Barnard,Supplies and Services,384871,Miscellaneous Expenses,01-May-2020,000007169255040,AMZNMktplace,5999,Training-other activities,18.99,0.00,18.99
"Regeneration, Economy and Growth",Development and Housing,031576,B& B - Temp Accom,Supplies and Services,352001,Conference Expenses,01-May-2020,000007171972960,GRAINGER APARTMENTS NE,7011,Conferencesseminars fees etc,350.00,0.00,350.00
"Regeneration, Economy and Growth",Development and Housing,031576,B& B - Temp Accom,Transport,235057,Public Transport,01-May-2020,000007171972964,XYZPay,4121,Staff travelling,18.79,0.00,18.79
"Regeneration, Economy and Growth",Development and Housing,031576,B& B - Temp Accom,Supplies and Services,352001,Conference Expenses,01-May-2020,000007171972966,BUDGET H EXPRESS HOTEL,7011,Conferencesseminars fees etc,267.00,0.00,267.00
"Regeneration, Economy and Growth",Corporate Property and Land,011275,Catering -Durham Leadership Centre,Supplies and Services,324117,Provisions E324,01-May-2020,000007171972982,TOTAL PRODUCE GATESHEA,5411,Catering costs - provisions,552.03,0.00,552.03
"Regeneration, Economy and Growth",Corporate Property and Land,011275,Catering -Durham Leadership Centre,Supplies and Services,324117,Provisions E324,01-May-2020,000007171972988,TOTAL PRODUCE GATESHEA,5411,Catering costs - provisions,101.27,0.00,101.27
Children and Young Peoples Services,Head of Childrens Social Care,085501,Child Care Cases Legal Expenses,Supplies and Services,304403,Equipment and Materials,01-May-2020,000007171973012,HARTLEPOOL BC,9399,Other consumables,11.00,0.00,11.00
Children and Young Peoples Services,Head of Childrens Social Care,085501,Child Care Cases Legal Expenses,Supplies and Services,304403,Equipment and Materials,01-May-2020,000007171973016,DARLINGTON BC INTERNET,9399,Other consumables,11.00,0.00,11.00
Children and Young Peoples Services,Head of Childrens Social Care,085352,Tow Law CU,Supplies and Services,324117,Provisions E324,01-May-2020,000007171973318,CO-OP GROUP 010989,5411,Catering costs - provisions,15.70,0.00,15.70
"Regeneration, Economy and Growth",Business Durham CL0850,030714,Salvus House,Supplies and Services,324117,Provisions E324,01-May-2020,000007171973338,TOTAL PRODUCE GATESHEA,5411,Catering costs - provisions,2.01,0.00,2.01
Children and Young Peoples Services,Head of Education and Skills,071732,Dean Bank Childcare,Supplies and Services,324117,Provisions E324,01-May-2020,000007171973346,TOTAL PRODUCE GATESHEA,5411,Catering costs - provisions,39.82,0.00,39.82
Children and Young Peoples Services,Head of Childrens Social Care,085332,Middlestone Moor CU,Supplies and Services,324117,Provisions E324,01-May-2020,000007171973408,PPOINT_ CAMPBELLS,5411,Catering costs - provisions,5.00,0.00,5.00
Children and Young Peoples Services,Head of Early Help Inclusion & Vulnerable Children.,085957,Secure Management,Supplies and Services,328041,Clothing uniforms and laundry E328,01-May-2020,000007171973490,TOTAL SPORT NE LTD,5691,Clothing uniforms and laundry,64.80,0.00,64.80
Children and Young Peoples Services,COVID19 - Children and Young Peoples Services,091002,COVID19 - Children and Young Peoples Services,Supplies and Services,304259,Equipment and Materials,01-May-2020,000007171973496,M and M Direct Ltd,5941,Equipment-purchase and rental,109.89,0.00,109.89
Children and Young Peoples Services,Head of Early Help Inclusion & Vulnerable Children.,085957,Secure Management,Supplies and Services,324117,Provisions E324,01-May-2020,000007171973500,ASDA GROCERIES ONLINE,5411,Catering costs - provisions,41.17,0.00,41.17
Children and Young Peoples Services,Head of Early Help Inclusion & Vulnerable Children.,085957,Secure Management,Supplies and Services,324117,Provisions E324,01-May-2020,000007171973502,ASDA GROCERIES ONLINE,5411,Catering costs - provisions,4.35,0.00,4.35
Children and Young Peoples Services,Head of Early Help Inclusion & Vulnerable Children.,085957,Secure Management,Supplies and Services,324117,Provisions E324,01-May-2020,000007171973504,ASDA GROCERIES ONLINE,5411,Catering costs - provisions,101.15,0.00,101.15
Children and Young Peoples Services,Head of Early Help Inclusion & Vulnerable Children.,085957,Secure Management,Supplies and Services,324117,Provisions E324,01-May-2020,000007171973508,ASDA GROCERIES ONLINE,5411,Catering costs - provisions,-0.07,0.00,-0.07
Children and Young Peoples Services,Head of Early Help Inclusion & Vulnerable Children.,073998,TTF-Co-ordinator Grant,Supplies and Services,324117,Provisions E324,01-May-2020,000007171973548,WILKO.COM,5399,Catering costs - provisions,75.00,12.50,62.50
Children and Young Peoples Services,Head of Childrens Social Care,085342,16 Hickstead Rise (previously 9 Cedar Ave),Supplies and Services,348037,Subsistence E348,01-May-2020,000007171973610,ShakeNCake,5812,Subsistence,24.20,0.00,24.20
Children and Young Peoples Services,Head of Education and Skills,071732,Dean Bank Childcare,Supplies and Services,304403,Equipment and Materials,01-May-2020,000007171973666,AMZNMktplace,5999,Other consumables,34.49,0.00,34.49
Children and Young Peoples Services,Head of Childrens Social Care,085332,Middlestone Moor CU,Transport,215995,Running Costs of Vehicles,01-May-2020,000007171973968,TESCO PAY AT PUMP 4088,5542,Vehicle running expenses,40.01,0.00,40.01
"Regeneration, Economy and Growth",Development and Housing,031500,Housing Solutions - Core Team,Supplies and Services,352001,Conference Expenses,01-May-2020,000007171974026,GRAINGER HOTEL,7011,Conferencesseminars fees etc,330.00,55.00,275.00
"Regeneration, Economy and Growth",Development and Housing,031500,Housing Solutions - Core Team,Supplies and Services,352001,Conference Expenses,01-May-2020,000007171974046,GRAINGER HOTEL,7011,Conferencesseminars fees etc,220.00,36.67,183.33
"Regeneration, Economy and Growth",Development and Housing,031500,Housing Solutions - Core Team,Supplies and Services,352001,Conference Expenses,01-May-2020,000007171974052,BUDGET H EXPRESS HOTEL,7011,Conferencesseminars fees etc,445.00,74.17,370.83
"Regeneration, Economy and Growth",Corporate Property and Land,021234,Catering - Locomotion,Supplies and Services,324117,Provisions E324,01-May-2020,000007171974274,TOTAL PRODUCE GATESHEA,5411,Catering costs - provisions,590.67,0.00,590.67
"Regeneration, Economy and Growth",Corporate Property and Land,021234,Catering - Locomotion,Supplies and Services,324117,Provisions E324,01-May-2020,000007171974280,TOTAL PRODUCE GATESHEA,5411,Catering costs - provisions,662.07,0.00,662.07
"Regeneration, Economy and Growth",Development and Housing,031576,B& B - Temp Accom,Supplies and Services,364320,Grants to Voluntary Organisations,01-May-2020,000007171974298,BUDGET H EXPRESS HOTEL,7011,Accommodation assistance,356.00,0.00,356.00
"Regeneration, Economy and Growth",Development and Housing,031576,B& B - Temp Accom,Supplies and Services,364320,Grants to Voluntary Organisations,01-May-2020,000007171974304,BUDGET H EXPRESS HOTEL,7011,Accommodation assistance,623.00,0.00,623.00
Children and Young Peoples Services,Head of Childrens Social Care,085623,Families First Bishop Auckland,Supplies and Services,338045,Services,01-May-2020,000007171974482,HM PASSPORT OFFICE,9399,Legal expenses 338045,58.50,0.00,58.50
Neighbourhoods and Climate Change,Environmental Services,010367,C&G - South Grounds Maintenance,Supplies and Services,304221,Equipment and Materials,01-May-2020,000007171974556,THOMAS SHERRIFF,5261,Direct materials,309.17,51.53,257.64
Children and Young Peoples Services,Head of Education and Skills,071802,Louisa Cent Nursery,Supplies and Services,324117,Provisions E324,01-May-2020,000007171974602,ICELAND,5411,Catering costs - provisions,31.34,0.00,31.34
Children and Young Peoples Services,Head of Childrens Social Care,085342,16 Hickstead Rise (previously 9 Cedar Ave),Employees,040149,Recruitment Instruction and Training,01-May-2020,000007171974662,PAYPAL MARKJOHNRAC,8999,Training-all costs,19.99,0.00,19.99
Children and Young Peoples Services,Head of Childrens Social Care,085342,16 Hickstead Rise (previously 9 Cedar Ave),Supplies and Services,328041,Clothing uniforms and laundry E328,01-May-2020,000007171974676,B&M RETAIL LTD,5310,Clothing uniforms and laundry,55.51,0.00,55.51
Children and Young Peoples Services,Head of Childrens Social Care,085342,16 Hickstead Rise (previously 9 Cedar Ave),Supplies and Services,324117,Provisions E324,01-May-2020,000007171974680,WM MORRISONS STORE,5411,Catering costs - provisions,5.35,0.00,5.35
Children and Young Peoples Services,Head of Early Help Inclusion & Vulnerable Children.,085957,Secure Management,Supplies and Services,324117,Provisions E324,01-May-2020,000007171974732,TESCO STORES 6329,5411,Catering costs - provisions,156.76,0.00,156.76
Children and Young Peoples Services,Head of Early Help Inclusion & Vulnerable Children.,085957,Secure Management,Supplies and Services,384999,Miscellaneous Expenses,01-May-2020,000007171974736,Amazon.co.uk TG5S92SE5,5969,Other expenses,4.38,0.73,3.65
Children and Young Peoples Services,Head of Early Help Inclusion & Vulnerable Children.,085957,Secure Management,Supplies and Services,304403,Equipment and Materials,01-May-2020,000007171974742,AMZNMktplace,5999,Other consumables,7.99,0.00,7.99
Adult and Health Services,Head of Adults,055643,Hawthorn House LD Respite Unit,Supplies and Services,324117,Provisions E324,01-May-2020,000007171974796,JR HOLLAND FOODSERVICE,5499,Catering costs - provisions,3.14,0.00,3.14
Neighbourhoods and Climate Change,Environmental Services,010301,C&G - North Grounds Maintenance,Third Party Payments,430100,Rendered by Private Contractors,01-May-2020,000007171974874,JOHN WARREN (ANIMAL BY,7399,Payments to sub-contractors,12.00,0.00,12.00
Children and Young Peoples Services,Head of Early Help Inclusion & Vulnerable Children.,085956,Lumley,Supplies and Services,304649,Equipment and Materials,01-May-2020,000007171974982,AMZNMktplace,5999,Toys,15.55,2.59,12.96
Children and Young Peoples Services,COVID19 - Children and Young Peoples Services,091002,COVID19 - Children and Young Peoples Services,Supplies and Services,304649,Equipment and Materials,01-May-2020,000007171974994,AMZNMKTPLACE AMAZON.CO,5999,Toys,40.56,0.00,40.56
Resources BK0010,Business Support,052986,CYPS - Locality and Operational Support,Supplies and Services,384999,Miscellaneous Expenses,01-May-2020,000007171975140,Amazon.co.uk DC6SE4DZ5,5969,Other expenses,11.50,0.00,11.50
Adult and Health Services,Head of Adults,055301,Stanley Pathways,Supplies and Services,324117,Provisions E324,01-May-2020,000007171975246,LIDL GB DURHAM,5411,Catering costs - provisions,20.10,0.00,20.10
Children and Young Peoples Services,Head of Childrens Social Care,085342,16 Hickstead Rise (previously 9 Cedar Ave),Supplies and Services,324117,Provisions E324,01-May-2020,000007171975368,ALDI 74 774,5411,Catering costs - provisions,35.75,0.00,35.75
Children and Young Peoples Services,Head of Education and Skills,070169,Durham SSP,Supplies and Services,384199,Miscellaneous Expenses,01-May-2020,000007171975474,AMZNMktplace,5999,Other hired and contracted services,41.99,0.00,41.99
"Regeneration, Economy and Growth",Corporate Property and Land,021235,Catering - Wharton Park,Supplies and Services,324117,Provisions E324,01-May-2020,000007171975834,TOTAL PRODUCE GATESHEA,5411,Catering costs - provisions,169.26,0.00,169.26
Neighbourhoods and Climate Change,Environmental Services,031200,North Pennines Core,Supplies and Services,344033,Telephones,01-May-2020,000007171975958,ZOOM.US 888-799-9666,4814,Telephones general-all costs,14.39,0.00,14.39
Children and Young Peoples Services,Head of Childrens Social Care,085334,West Rainton Satelite Home,Supplies and Services,328041,Clothing uniforms and laundry E328,01-May-2020,000007174987634,HAWKSHEAD OUTDOOR LTD,5651,Clothing uniforms and laundry,18.89,0.00,18.89
Children and Young Peoples Services,COVID19 - Children and Young Peoples Services,091002,COVID19 - Children and Young Peoples Services,Supplies and Services,328041,Clothing uniforms and laundry E328,01-May-2020,000009070600697,MATALAN.CO.UK,5691,Clothing uniforms and laundry,19.95,0.00,19.95
"Regeneration, Economy and Growth",Business Durham CL0850,030689,Inward Investment and Aftercare,Supplies and Services,304403,Equipment and Materials,02-May-2020,000007171972894,ADOBE CREATIVE CLOUD,5734,Other consumables,49.94,8.32,41.62
"Regeneration, Economy and Growth",Business Durham CL0850,030689,Inward Investment and Aftercare,Supplies and Services,342222,Computers and Communications,02-May-2020,000007171972904,FASTHOSTS INTERNET,4816,Comp hardware purch-network servers,67.20,11.20,56.00
"Regeneration, Economy and Growth",Business Durham CL0850,030689,Inward Investment and Aftercare,Supplies and Services,342222,Computers and Communications,02-May-2020,000007171972908,FASTHOSTS INTERNET,4816,Comp hardware purch-network servers,16.78,2.80,13.98
"Regeneration, Economy and Growth",Business Durham CL0850,030689,Inward Investment and Aftercare,Supplies and Services,342222,Computers and Communications,02-May-2020,000007171972914,FASTHOSTS INTERNET,4816,Comp hardware purch-network servers,26.38,4.40,21.98
"Regeneration, Economy and Growth",Business Durham CL0850,030689,Inward Investment and Aftercare,Supplies and Services,342222,Computers and Communications,02-May-2020,000007171972916,FASTHOSTS INTERNET,4816,Comp hardware purch-network servers,72.66,12.11,60.55
Children and Young Peoples Services,Head of Childrens Social Care,085341,High Etherley Satelite Home,Supplies and Services,324117,Provisions E324,02-May-2020,000007171972942,TESCO STORES 6329,5411,Catering costs - provisions,6.70,0.00,6.70
Children and Young Peoples Services,Head of Childrens Social Care,085341,High Etherley Satelite Home,Supplies and Services,324117,Provisions E324,02-May-2020,000007171972944,TESCO STORES 6329,5411,Catering costs - provisions,1.48,0.00,1.48
"Regeneration, Economy and Growth",Culture Sport and Tourism,030708,VCD - Marketing & Information,Supplies and Services,384199,Miscellaneous Expenses,02-May-2020,000007171973070,MAILCHIMP MONTHLY,5968,Other hired and contracted services,260.59,43.43,217.16
Children and Young Peoples Services,Head of Childrens Social Care,085342,16 Hickstead Rise (previously 9 Cedar Ave),Supplies and Services,324117,Provisions E324,02-May-2020,000007171973108,TESCO STORES 2916,5411,Catering costs - provisions,27.00,0.00,27.00
Children and Young Peoples Services,Head of Childrens Social Care,085333,Coxhoe Satelite Home,Supplies and Services,344033,Telephones,02-May-2020,000007171973240,EE BROADBAND,4812,Telephones general-all costs,37.50,0.00,37.50
Resources BK0010,Digital and Customer Services,065487,ICT Telephony Recharges,Supplies and Services,372009,Subscriptions E372,02-May-2020,000007171973430,AWS EMEA,7399,Subscriptions 372009,3.21,0.00,3.21
Children and Young Peoples Services,Head of Early Help Inclusion & Vulnerable Children.,085962,Aycliffe Secure - Durham,Supplies and Services,384999,Miscellaneous Expenses,02-May-2020,000007171973512,Amazon.co.uk 0T6ZH1GV5,5969,Other expenses,7.99,0.00,7.99
Children and Young Peoples Services,Head of Childrens Social Care,085334,West Rainton Satelite Home,Supplies and Services,324117,Provisions E324,02-May-2020,000007171973782,SPAR,5411,Catering costs - provisions,13.38,0.00,13.38
Resources BK0010,People & Talent Management,010984,Training and Development,Employees,040149,Recruitment Instruction and Training,02-May-2020,000007171974230,WWW.CSCS.UK.COM,8699,Training-all costs,36.00,6.00,30.00
Children and Young Peoples Services,Head of Childrens Social Care,085331,New Lea Childrens Home,Supplies and Services,348037,Subsistence E348,02-May-2020,000007171974316,TANFIELD CHIPPY,5814,Subsistence,25.00,0.00,25.00
Children and Young Peoples Services,Head of Childrens Social Care,085331,New Lea Childrens Home,Supplies and Services,324117,Provisions E324,02-May-2020,000007171974320,ASDA SUPERSTORE,5411,Catering costs - provisions,33.43,0.00,33.43
Children and Young Peoples Services,Head of Childrens Social Care,085331,New Lea Childrens Home,Supplies and Services,324117,Provisions E324,02-May-2020,000007171974322,ASDA SUPERSTORE,5411,Catering costs - provisions,10.00,0.00,10.00
Children and Young Peoples Services,Head of Childrens Social Care,085333,Coxhoe Satelite Home,Supplies and Services,324117,Provisions E324,02-May-2020,000007171974616,CO-OP GROUP 310016,5411,Catering costs - provisions,20.25,0.00,20.25
Children and Young Peoples Services,Head of Childrens Social Care,085342,16 Hickstead Rise (previously 9 Cedar Ave),Supplies and Services,324117,Provisions E324,02-May-2020,000007171974684,TESCO STORES 2916,5411,Catering costs - provisions,39.49,0.00,39.49
Children and Young Peoples Services,Head of Early Help Inclusion & Vulnerable Children.,085957,Secure Management,Supplies and Services,304403,Equipment and Materials,02-May-2020,000007171974746,AMZNMKTPLACE AMAZON.CO,5999,Other consumables,5.99,0.00,5.99
Children and Young Peoples Services,Head of Childrens Social Care,085334,West Rainton Satelite Home,Supplies and Services,324117,Provisions E324,02-May-2020,000007171974850,TESCO STORES 2371,5411,Catering costs - provisions,44.10,0.00,44.10
Children and Young Peoples Services,Head of Childrens Social Care,085334,West Rainton Satelite Home,Supplies and Services,324117,Provisions E324,02-May-2020,000007171974856,TESCO STORES 2371,5411,Catering costs - provisions,10.10,0.00,10.10
Children and Young Peoples Services,Head of Childrens Social Care,085332,Middlestone Moor CU,Supplies and Services,324117,Provisions E324,02-May-2020,000007171975210,SAINSBURYS LOC (4320),5411,Catering costs - provisions,24.30,0.00,24.30
Children and Young Peoples Services,Head of Childrens Social Care,085333,Coxhoe Satelite Home,Supplies and Services,328041,Clothing uniforms and laundry E328,02-May-2020,000007171975228,B&M RETAIL LTD,5310,Clothing uniforms and laundry,28.00,0.00,28.00
Children and Young Peoples Services,Head of Childrens Social Care,085333,Coxhoe Satelite Home,Supplies and Services,324117,Provisions E324,02-May-2020,000007171975294,CO-OP GROUP 310016,5411,Catering costs - provisions,5.05,0.00,5.05
Children and Young Peoples Services,Head of Childrens Social Care,085332,Middlestone Moor CU,Supplies and Services,304639,Equipment and Materials,02-May-2020,000007171975546,ARGOS LTD,5310,Technicians-supplies,19.99,0.00,19.99
Children and Young Peoples Services,Head of Childrens Social Care,085332,Middlestone Moor CU,Supplies and Services,304649,Equipment and Materials,02-May-2020,000007171975556,MARTIN MCCOLL,5499,Toys,6.29,0.00,6.29
Children and Young Peoples Services,Head of Childrens Social Care,085332,Middlestone Moor CU,Supplies and Services,348037,Subsistence E348,02-May-2020,000007171975562,ALEEZAS,5499,Subsistence,48.17,0.00,48.17
Resources BK0010,Digital and Customer Services,065481,Technical Services 065481,Supplies and Services,372009,Subscriptions E372,02-May-2020,000007176717314,AWS EMEA,7399,Subscriptions 372009,-3.21,0.00,-3.21
Children and Young Peoples Services,Head of Childrens Social Care,085341,High Etherley Satelite Home,Supplies and Services,324117,Provisions E324,03-May-2020,000007171972876,SAINSBURYS 2199,5411,Catering costs - provisions,82.44,0.00,82.44
Children and Young Peoples Services,Head of Childrens Social Care,085342,16 Hickstead Rise (previously 9 Cedar Ave),Supplies and Services,324117,Provisions E324,03-May-2020,000007171973114,WILKO RETAIL LIMITED,5399,Catering costs - provisions,11.50,0.00,11.50
Children and Young Peoples Services,Head of Childrens Social Care,085333,Coxhoe Satelite Home,Supplies and Services,348037,Subsistence E348,03-May-2020,000007171973226,JUST EAT.CO.UK LTD,5814,Subsistence,20.00,0.00,20.00
Children and Young Peoples Services,Head of Childrens Social Care,085333,Coxhoe Satelite Home,Supplies and Services,384999,Miscellaneous Expenses,03-May-2020,000007171973230,Amazon.co.uk 449PF0325,5969,Other expenses,39.99,6.67,33.32
Children and Young Peoples Services,Head of Childrens Social Care,085333,Coxhoe Satelite Home,Supplies and Services,328041,Clothing uniforms and laundry E328,03-May-2020,000007171973232,BOOHOO.COM,5691,Clothing uniforms and laundry,64.59,0.00,64.59
Children and Young Peoples Services,Head of Childrens Social Care,085333,Coxhoe Satelite Home,Supplies and Services,384999,Miscellaneous Expenses,03-May-2020,000007171973246,Amazon.co.uk KT54L9H55,5969,Other expenses,26.80,4.47,22.33
Children and Young Peoples Services,Head of Childrens Social Care,085333,Coxhoe Satelite Home,Supplies and Services,304403,Equipment and Materials,03-May-2020,000007171973250,AMZNMktplace,5999,Other consumables,8.99,1.50,7.49
Children and Young Peoples Services,Head of Childrens Social Care,085352,Tow Law CU,Supplies and Services,324117,Provisions E324,03-May-2020,000007171973322,CO-OP GROUP 010989,5411,Catering costs - provisions,9.17,0.00,9.17
Children and Young Peoples Services,Head of Childrens Social Care,085332,Middlestone Moor CU,Supplies and Services,324117,Provisions E324,03-May-2020,000007171973382,SAINSBURYS 2199,5411,Catering costs - provisions,69.41,0.00,69.41
Children and Young Peoples Services,Head of Childrens Social Care,085342,16 Hickstead Rise (previously 9 Cedar Ave),Supplies and Services,324117,Provisions E324,03-May-2020,000007171974686,TESCO STORES 2916,5411,Catering costs - provisions,89.17,0.00,89.17
Children and Young Peoples Services,Head of Early Help Inclusion & Vulnerable Children.,088103,Consett & Stanley 0-19 Community Family Hub,Supplies and Services,304403,Equipment and Materials,03-May-2020,000007171974904,AMZNMktplace,5999,Other consumables,13.98,2.34,11.64
Children and Young Peoples Services,COVID19 - Children and Young Peoples Services,091002,COVID19 - Children and Young Peoples Services,Supplies and Services,304649,Equipment and Materials,03-May-2020,000007171975004,AMZNMKTPLACE AMAZON.CO,5999,Toys,17.97,3.00,14.97
Children and Young Peoples Services,Head of Early Help Inclusion & Vulnerable Children.,085956,Lumley,Supplies and Services,304649,Equipment and Materials,03-May-2020,000007171975010,AMZNMKTPLACE AMAZON.CO,5999,Toys,3.74,0.00,3.74
Children and Young Peoples Services,Head of Early Help Inclusion & Vulnerable Children.,085956,Lumley,Supplies and Services,304649,Equipment and Materials,03-May-2020,000007171975012,AMZNMKTPLACE AMAZON.CO,5999,Toys,12.99,0.00,12.99
Children and Young Peoples Services,Head of Early Help Inclusion & Vulnerable Children.,085956,Lumley,Supplies and Services,304649,Equipment and Materials,03-May-2020,000007171975020,AMZNMKTPLACE AMAZON.CO,5999,Toys,5.49,0.00,5.49
Children and Young Peoples Services,Head of Childrens Social Care,085352,Tow Law CU,Supplies and Services,304259,Equipment and Materials,03-May-2020,000007171975354,JD SPORTS INTERNET,5941,Equipment-purchase and rental,48.99,0.00,48.99
Children and Young Peoples Services,Head of Education and Skills,071802,Louisa Cent Nursery,Supplies and Services,324117,Provisions E324,03-May-2020,000007171975400,ALDI 11 774,5411,Catering costs - provisions,5.45,0.00,5.45
Children and Young Peoples Services,Head of Childrens Social Care,085332,Middlestone Moor CU,Supplies and Services,304403,Equipment and Materials,03-May-2020,000007171975570,AMZNMktplace,5999,Other consumables,29.99,5.00,24.99
Children and Young Peoples Services,Head of Childrens Social Care,085333,Coxhoe Satelite Home,Supplies and Services,328041,Clothing uniforms and laundry E328,03-May-2020,000007174987452,PAYPAL REELVA E EBAY,5331,Clothing uniforms and laundry,10.99,0.00,10.99
Children and Young Peoples Services,Head of Childrens Social Care,085333,Coxhoe Satelite Home,Supplies and Services,308011,Furniture,03-May-2020,000007174987456,PAYPAL MISA STYLES EB,5719,Furniture repair and replacement,7.99,0.00,7.99
Children and Young Peoples Services,Head of Childrens Social Care,085333,Coxhoe Satelite Home,Supplies and Services,304403,Equipment and Materials,03-May-2020,000007174987458,PAYPAL BRANDSULOVE EB,5999,Other consumables,7.95,0.00,7.95
Children and Young Peoples Services,Head of Childrens Social Care,085352,Tow Law CU,Supplies and Services,384999,Miscellaneous Expenses,03-May-2020,000007174987868,PAYPAL SUPERDRUGST,5977,Other expenses,31.30,0.00,31.30
Children and Young Peoples Services,Head of Childrens Social Care,085342,16 Hickstead Rise (previously 9 Cedar Ave),Supplies and Services,328041,Clothing uniforms and laundry E328,03-May-2020,000007178710596,NEW LOOK INTERNET,5621,Clothing uniforms and laundry,47.17,0.00,47.17
Resources BK0010,Digital and Customer Services,065487,ICT Telephony Recharges,Supplies and Services,372009,Subscriptions E372,04-May-2020,000007171973434,AWS EMEA,7399,Subscriptions 372009,0.09,0.00,0.09
"Regeneration, Economy and Growth",Business Durham CL0850,030689,Inward Investment and Aftercare,Supplies and Services,342033,Computers and Communications,04-May-2020,000007174987368,STK Shutterstock,7333,Computer hardware,19.00,0.00,19.00
"Regeneration, Economy and Growth",Business Durham CL0850,030689,Inward Investment and Aftercare,Supplies and Services,342222,Computers and Communications,04-May-2020,000007174987372,FASTHOSTS INTERNET,4816,Comp hardware purch-network servers,6.34,1.06,5.28
Children and Young Peoples Services,Head of Childrens Social Care,085341,High Etherley Satelite Home,Supplies and Services,324117,Provisions E324,04-May-2020,000007174987374,TESCO STORES 6329,5411,Catering costs - provisions,59.00,0.00,59.00
Children and Young Peoples Services,Head of Childrens Social Care,085341,High Etherley Satelite Home,Supplies and Services,324117,Provisions E324,04-May-2020,000007174987376,TESCO STORES 6329,5411,Catering costs - provisions,19.24,0.00,19.24
Children and Young Peoples Services,Head of Childrens Social Care,085341,High Etherley Satelite Home,Supplies and Services,324117,Provisions E324,04-May-2020,000007174987378,TESCO STORES 6329,5411,Catering costs - provisions,14.99,0.00,14.99
Children and Young Peoples Services,Head of Education and Skills,054640,Durham Learning Resources 054640,Supplies and Services,384999,Miscellaneous Expenses,04-May-2020,000007174987390,AMZ Amazon.co.uk,5969,Other expenses,-4.00,0.00,-4.00
Children and Young Peoples Services,Head of Education and Skills,054640,Durham Learning Resources 054640,Supplies and Services,384999,Miscellaneous Expenses,04-May-2020,000007174987394,AMZ Amazon.co.uk,5969,Other expenses,-4.00,0.00,-4.00
Children and Young Peoples Services,Head of Education and Skills,054640,Durham Learning Resources 054640,Supplies and Services,384999,Miscellaneous Expenses,04-May-2020,000007174987396,AMZ Amazon.co.uk,5969,Other expenses,-4.00,0.00,-4.00
Children and Young Peoples Services,Head of Childrens Social Care,085501,Child Care Cases Legal Expenses,Supplies and Services,304403,Equipment and Materials,04-May-2020,000007174987400,STOCKTON BOROUGH COUNC,9399,Other consumables,11.00,0.00,11.00
"Regeneration, Economy and Growth",Development and Housing,031500,Housing Solutions - Core Team,Supplies and Services,352001,Conference Expenses,04-May-2020,000007174987406,GRAINGER HOTEL,7011,Conferencesseminars fees etc,100.00,16.67,83.33
Children and Young Peoples Services,Head of Childrens Social Care,085333,Coxhoe Satelite Home,Supplies and Services,304403,Equipment and Materials,04-May-2020,000007174987460,AMZNMktplace,5999,Other consumables,14.75,2.46,12.29
Children and Young Peoples Services,Head of Childrens Social Care,085352,Tow Law CU,Supplies and Services,348037,Subsistence E348,04-May-2020,000007174987466,Just Eat,5814,Subsistence,29.99,0.00,29.99
Children and Young Peoples Services,Head of Early Help Inclusion & Vulnerable Children.,088116,South Area - Teenage Parent Programme,Supplies and Services,384302,Miscellaneous Expenses,04-May-2020,000007174987496,TESCO STORES 6329,5411,Activity expenses,21.24,0.00,21.24
Children and Young Peoples Services,Head of Early Help Inclusion & Vulnerable Children.,088116,South Area - Teenage Parent Programme,Supplies and Services,384302,Miscellaneous Expenses,04-May-2020,000007174987498,HOME BARGAINS,5251,Activity expenses,29.38,0.00,29.38
Children and Young Peoples Services,Head of Early Help Inclusion & Vulnerable Children.,088105,BA/BC/Crook 0-19 Community Family Hub,Supplies and Services,384999,Miscellaneous Expenses,04-May-2020,000007174987500,HOME BARGAINS,5251,Other expenses,3.90,0.00,3.90
"Regeneration, Economy and Growth",Development and Housing,031576,B& B - Temp Accom,Supplies and Services,352001,Conference Expenses,04-May-2020,000007174987516,BUDGET H EXPRESS HOTEL,7011,Conferencesseminars fees etc,390.00,65.00,325.00
"Regeneration, Economy and Growth",Development and Housing,031576,B& B - Temp Accom,Supplies and Services,352001,Conference Expenses,04-May-2020,000007174987520,BUDGET H EXPRESS HOTEL,7011,Conferencesseminars fees etc,500.00,83.33,416.67
Children and Young Peoples Services,COVID19 - Children and Young Peoples Services,091002,COVID19 - Children and Young Peoples Services,Supplies and Services,304259,Equipment and Materials,04-May-2020,000007174987522,M and M Direct Ltd,5941,Equipment-purchase and rental,159.84,0.00,159.84
Children and Young Peoples Services,COVID19 - Children and Young Peoples Services,091002,COVID19 - Children and Young Peoples Services,Supplies and Services,304403,Equipment and Materials,04-May-2020,000007174987526,AMZNMktplace,5999,Other consumables,75.96,12.66,63.30
Children and Young Peoples Services,COVID19 - Children and Young Peoples Services,091002,COVID19 - Children and Young Peoples Services,Supplies and Services,304403,Equipment and Materials,04-May-2020,000007174987526 - 1,AMZNMktplace,5999,Other consumables,0.03,,0.03
Children and Young Peoples Services,COVID19 - Children and Young Peoples Services,091002,COVID19 - Children and Young Peoples Services,Supplies and Services,304259,Equipment and Materials,04-May-2020,000007174987536,SPORTSDIRECT.COM,5941,Equipment-purchase and rental,42.00,7.00,35.00
Children and Young Peoples Services,Head of Early Help Inclusion & Vulnerable Children.,085957,Secure Management,Supplies and Services,304259,Equipment and Materials,04-May-2020,000007174987536 - 1,SPORTSDIRECT.COM,5941,Equipment-purchase and rental,6.99,,6.99
"Regeneration, Economy and Growth",Development and Housing,031576,B& B - Temp Accom,Supplies and Services,352001,Conference Expenses,04-May-2020,000007174987566,GRAINGER APARTMENTS NE,7011,Conferencesseminars fees etc,100.00,0.00,100.00
"Regeneration, Economy and Growth",Development and Housing,031576,B& B - Temp Accom,Supplies and Services,352001,Conference Expenses,04-May-2020,000007174987570,BUDGET H EXPRESS HOTEL,7011,Conferencesseminars fees etc,178.00,0.00,178.00
"Regeneration, Economy and Growth",Development and Housing,031576,B& B - Temp Accom,Supplies and Services,352001,Conference Expenses,04-May-2020,000007174987574,HI NEWCASTLE WASHI,7011,Conferencesseminars fees etc,170.00,28.33,141.67
Children and Young Peoples Services,COVID19 - Children and Young Peoples Services,091002,COVID19 - Children and Young Peoples Services,Supplies and Services,328041,Clothing uniforms and laundry E328,04-May-2020,000007174987604,B&M RETAIL LTD,5310,Clothing uniforms and laundry,14.27,0.00,14.27
Neighbourhoods and Climate Change,Environmental Services,010314,Nei.Prot - Bereavement Services,Supplies and Services,304259,Equipment and Materials,04-May-2020,000007174987636,Durham County CNCL,9399,Equipment-purchase and rental,11.00,0.00,11.00
Resources BK0010,Business Support,052986,CYPS - Locality and Operational Support,Supplies and Services,304403,Equipment and Materials,04-May-2020,000007174987666,AMZNMktplace,5999,Other consumables,66.62,0.00,66.62
Resources BK0010,People & Talent Management,010984,Training and Development,Employees,040149,Recruitment Instruction and Training,04-May-2020,000007174987682,WWW.CSCS.UK.COM,8699,Training-all costs,36.00,6.00,30.00
Resources BK0010,People & Talent Management,010984,Training and Development,Employees,040149,Recruitment Instruction and Training,04-May-2020,000007174987684,WWW.CSCS.UK.COM,8699,Training-all costs,36.00,6.00,30.00
Children and Young Peoples Services,Head of Early Help Inclusion & Vulnerable Children.,088109,Spennymoor & Shildon 0-19 Community Family Hub,Supplies and Services,364301,Grants to Voluntary Organisations,04-May-2020,000007174987744,ARGOS LTD,5310,Hardship,206.95,0.00,206.95
Children and Young Peoples Services,Head of Childrens Social Care,085625,Families First Spennymoor,Supplies and Services,364301,Grants to Voluntary Organisations,04-May-2020,000007174987746,ARGOS LTD,5310,Hardship,90.99,0.00,90.99
Children and Young Peoples Services,Head of Childrens Social Care,085333,Coxhoe Satelite Home,Supplies and Services,324117,Provisions E324,04-May-2020,000007174987762,CO-OP GROUP 310016,5411,Catering costs - provisions,7.90,0.00,7.90
Children and Young Peoples Services,Head of Childrens Social Care,085333,Coxhoe Satelite Home,Supplies and Services,324117,Provisions E324,04-May-2020,000007174987770,TESCO STORES 2371,5411,Catering costs - provisions,155.67,0.00,155.67
Children and Young Peoples Services,Head of Childrens Social Care,085342,16 Hickstead Rise (previously 9 Cedar Ave),Supplies and Services,328041,Clothing uniforms and laundry E328,04-May-2020,000007174987776,POUNDSTRETCHER 692,5331,Clothing uniforms and laundry,2.97,0.00,2.97
Children and Young Peoples Services,Head of Childrens Social Care,085342,16 Hickstead Rise (previously 9 Cedar Ave),Supplies and Services,304999,Equipment and Materials,04-May-2020,000007174987778,HOME BARGAINS,5251,Misc equipment tools and materials,3.28,0.00,3.28
Children and Young Peoples Services,Head of Childrens Social Care,085342,16 Hickstead Rise (previously 9 Cedar Ave),Supplies and Services,328041,Clothing uniforms and laundry E328,04-May-2020,000007174987780,B&M RETAIL LTD,5310,Clothing uniforms and laundry,6.00,0.00,6.00
Children and Young Peoples Services,Head of Childrens Social Care,085342,16 Hickstead Rise (previously 9 Cedar Ave),Supplies and Services,324117,Provisions E324,04-May-2020,000007174987782,WM MORRISONS STORE,5411,Catering costs - provisions,8.00,0.00,8.00
Adult and Health Services,Head of Adults,055306,Spennymoor Pathways,Supplies and Services,324117,Provisions E324,04-May-2020,000007174987794,SAINSBURYS SACAT 2082,5411,Catering costs - provisions,5.00,0.00,5.00
Adult and Health Services,Head of Adults,055643,Hawthorn House LD Respite Unit,Supplies and Services,324117,Provisions E324,04-May-2020,000007174987798,FREEMAN CATERING BUTCH,5422,Catering costs - provisions,18.89,0.00,18.89
Adult and Health Services,Head of Adults,055643,Hawthorn House LD Respite Unit,Supplies and Services,324117,Provisions E324,04-May-2020,000007174987802,JR HOLLAND FOODSERVICE,5499,Catering costs - provisions,19.37,0.00,19.37
Children and Young Peoples Services,Head of Childrens Social Care,085334,West Rainton Satelite Home,Supplies and Services,304403,Equipment and Materials,04-May-2020,000007174987808,AMZNMKTPLACE AMAZON.CO,5999,Other consumables,22.45,0.00,22.45
Children and Young Peoples Services,Head of Childrens Social Care,085334,West Rainton Satelite Home,Supplies and Services,324117,Provisions E324,04-May-2020,000007174987810,ALDI 12 774,5411,Catering costs - provisions,2.20,0.00,2.20
Children and Young Peoples Services,Head of Early Help Inclusion & Vulnerable Children.,085965,Barnard,Supplies and Services,384999,Miscellaneous Expenses,04-May-2020,000007174987826,ARGOS LTD,5310,Other expenses,43.94,0.00,43.94
Children and Young Peoples Services,Head of Early Help Inclusion & Vulnerable Children.,085956,Lumley,Supplies and Services,328041,Clothing uniforms and laundry E328,04-May-2020,000007174987828,JD SPORTS INTERNET,5941,Clothing uniforms and laundry,67.99,0.00,67.99
Children and Young Peoples Services,Head of Early Help Inclusion & Vulnerable Children.,085956,Lumley,Supplies and Services,328041,Clothing uniforms and laundry E328,04-May-2020,000007174987830,SPORTSDIRECT.COM,5941,Clothing uniforms and laundry,32.98,0.00,32.98
"Regeneration, Economy and Growth",Development and Housing,031500,Housing Solutions - Core Team,Supplies and Services,352001,Conference Expenses,04-May-2020,000007174987832,BUDGET H EXPRESS HOTEL,7011,Conferencesseminars fees etc,500.00,0.00,500.00
"Regeneration, Economy and Growth",Development and Housing,031500,Housing Solutions - Core Team,Supplies and Services,352001,Conference Expenses,04-May-2020,000007174987836,BUDGET H EXPRESS HOTEL,7011,Conferencesseminars fees etc,-500.00,0.00,-500.00
"Regeneration, Economy and Growth",Transport and Contracted Services,031704,Care Connect - CCTV Countywide,Supplies and Services,384956,Miscellaneous Expenses,04-May-2020,000007174987840,SECURITY INDUSTRY,7393,Licences,190.00,0.00,190.00
Neighbourhoods and Climate Change,Environmental Services,010301,C&G - North Grounds Maintenance,Third Party Payments,430100,Rendered by Private Contractors,04-May-2020,000007174987856,JOHN WARREN (ANIMAL BY,7399,Payments to sub-contractors,12.00,0.00,12.00
Children and Young Peoples Services,Head of Childrens Social Care,085333,Coxhoe Satelite Home,Supplies and Services,324117,Provisions E324,04-May-2020,000007174987858,PPOINT_ COSTCUTTER 108,5411,Catering costs - provisions,12.09,0.00,12.09
Children and Young Peoples Services,Head of Early Help Inclusion & Vulnerable Children.,085801,CDYJS - Support,Supplies and Services,324117,Provisions E324,04-May-2020,000007174987860,TESCO STORES 2371,5411,Catering costs - provisions,18.00,0.00,18.00
Children and Young Peoples Services,Head of Childrens Social Care,085332,Middlestone Moor CU,Supplies and Services,304259,Equipment and Materials,04-May-2020,000007174987880,AMZNMKTPLACE AMAZON.CO,5999,Equipment-purchase and rental,229.00,38.17,190.83
Children and Young Peoples Services,Head of Childrens Social Care,085332,Middlestone Moor CU,Supplies and Services,324117,Provisions E324,04-May-2020,000007174987886,ALDI 15 774,5411,Catering costs - provisions,5.28,0.00,5.28
Children and Young Peoples Services,Head of Early Help Inclusion & Vulnerable Children.,088107,Ferryhill & Newton Aycliffe 0-19 Community Family Hub,Supplies and Services,304403,Equipment and Materials,04-May-2020,000007174987892,AMZNMktplace,5999,Other consumables,27.66,4.62,23.04
"Regeneration, Economy and Growth",Development and Housing,031500,Housing Solutions - Core Team,Supplies and Services,352001,Conference Expenses,04-May-2020,000007174987896,GRAINGER HOTEL,7011,Conferencesseminars fees etc,350.00,0.00,350.00
"Regeneration, Economy and Growth",Development and Housing,031500,Housing Solutions - Core Team,Supplies and Services,352001,Conference Expenses,04-May-2020,000007174987898,GRAINGER HOTEL,7011,Conferencesseminars fees etc,100.00,0.00,100.00
"Regeneration, Economy and Growth",Development and Housing,031500,Housing Solutions - Core Team,Supplies and Services,304999,Equipment and Materials,04-May-2020,000007174987900,DUNCAN BELTON TA K,6513,Misc equipment tools and materials,350.00,0.00,350.00
"Regeneration, Economy and Growth",Development and Housing,031500,Housing Solutions - Core Team,Supplies and Services,304999,Equipment and Materials,04-May-2020,000007174987902,DUNCAN BELTON TA K,6513,Misc equipment tools and materials,350.00,0.00,350.00
"Regeneration, Economy and Growth",Development and Housing,031500,Housing Solutions - Core Team,Supplies and Services,304999,Equipment and Materials,04-May-2020,000007174987904,DUNCAN BELTON TA K,6513,Misc equipment tools and materials,350.00,0.00,350.00
"Regeneration, Economy and Growth",Development and Housing,031500,Housing Solutions - Core Team,Supplies and Services,304999,Equipment and Materials,04-May-2020,000007174987906,DUNCAN BELTON TA K,6513,Misc equipment tools and materials,350.00,0.00,350.00
"Regeneration, Economy and Growth",Development and Housing,031500,Housing Solutions - Core Team,Supplies and Services,352001,Conference Expenses,04-May-2020,000007174987908,HI NEWCASTLE WASHI,7011,Conferencesseminars fees etc,260.00,0.00,260.00
Neighbourhoods and Climate Change,Environmental Services,010301,C&G - North Grounds Maintenance,Supplies and Services,328041,Clothing uniforms and laundry E328,04-May-2020,000007174987924,ARGOS LTD,5310,Clothing uniforms and laundry,48.93,8.16,40.77
"Regeneration, Economy and Growth",Development and Housing,030725,Community Economic Development 030725,Supplies and Services,304403,Equipment and Materials,04-May-2020,000007174987928,IHBC ENTERPRISES LTD,5734,Other consumables,36.00,0.00,36.00
"Regeneration, Economy and Growth",Development and Housing,030725,Community Economic Development 030725,Supplies and Services,352001,Conference Expenses,04-May-2020,000007174987930,IHBC ENTERPRISES LTD,5734,Conferencesseminars fees etc,36.00,0.00,36.00
Adult and Health Services,Head of Adults,055309,Peterlee Pathways,Supplies and Services,324117,Provisions E324,04-May-2020,000007174987966,CO-OP GROUP 800402,5411,Catering costs - provisions,2.20,0.00,2.20
Resources BK0010,Digital and Customer Services,065481,Technical Services 065481,Supplies and Services,372009,Subscriptions E372,04-May-2020,000007176717318,AWS EMEA,7399,Subscriptions 372009,-0.09,0.00,-0.09
Children and Young Peoples Services,Head of Early Help Inclusion & Vulnerable Children.,085956,Lumley,Supplies and Services,304649,Equipment and Materials,04-May-2020,000007176717570,AMZNMKTPLACE AMAZON.CO,5999,Toys,16.36,2.73,13.63
Children and Young Peoples Services,Head of Early Help Inclusion & Vulnerable Children.,085956,Lumley,Supplies and Services,328041,Clothing uniforms and laundry E328,04-May-2020,000007176717600,NEW LOOK INTERNET,5621,Clothing uniforms and laundry,24.68,0.00,24.68
Children and Young Peoples Services,Head of Childrens Social Care,085342,16 Hickstead Rise (previously 9 Cedar Ave),Supplies and Services,304999,Equipment and Materials,04-May-2020,000007178710598,SAVERS HEALTH & BEAUTY,5912,Misc equipment tools and materials,24.73,0.00,24.73
Children and Young Peoples Services,Head of Childrens Social Care,085334,West Rainton Satelite Home,Supplies and Services,304259,Equipment and Materials,04-May-2020,000009070601773,SPORTSDIRECT.COM,5941,Equipment-purchase and rental,165.44,0.00,165.44
Children and Young Peoples Services,Head of Childrens Social Care,085334,West Rainton Satelite Home,Supplies and Services,304259,Equipment and Materials,04-May-2020,000009070601781,SPORTSDIRECT.COM,5941,Equipment-purchase and rental,154.47,0.00,154.47
Children and Young Peoples Services,Head of Childrens Social Care,085334,West Rainton Satelite Home,Supplies and Services,304259,Equipment and Materials,04-May-2020,000009070601789,SPORTSDIRECT.COM,5941,Equipment-purchase and rental,112.98,0.00,112.98
Children and Young Peoples Services,Head of Education and Skills,054640,Durham Learning Resources 054640,Supplies and Services,384999,Miscellaneous Expenses,05-May-2020,000007174987398,AMZ Amazon.co.uk,5969,Other expenses,-4.00,0.00,-4.00
Children and Young Peoples Services,COVID19 - Children and Young Peoples Services,091002,COVID19 - Children and Young Peoples Services,Supplies and Services,384999,Miscellaneous Expenses,05-May-2020,000007174987530,Amazon.co.uk YI5MK9J95,5969,Other expenses,20.83,0.00,20.83
Children and Young Peoples Services,Head of Early Help Inclusion & Vulnerable Children.,085962,Aycliffe Secure - Durham,Supplies and Services,384999,Miscellaneous Expenses,05-May-2020,000007174987532,Amazon.co.uk 258GN6OW5,5969,Other expenses,4.97,0.00,4.97
Children and Young Peoples Services,Head of Early Help Inclusion & Vulnerable Children.,088103,Consett & Stanley 0-19 Community Family Hub,Supplies and Services,328041,Clothing uniforms and laundry E328,05-May-2020,000007174987816,WWW.THEWORKS.CO.UK,5310,Clothing uniforms and laundry,-90.00,0.00,-90.00
Children and Young Peoples Services,Head of Education and Skills,071801,Selby Cottage Childcare Centre,Supplies and Services,324117,Provisions E324,05-May-2020,000007176717146,ONE STOP 3026,5411,Catering costs - provisions,2.25,0.00,2.25
Children and Young Peoples Services,Head of Childrens Social Care,085381,Adoption Team,Supplies and Services,342033,Computers and Communications,05-May-2020,000007176717154,AMZNMktplace,5999,Computer hardware,119.70,19.95,99.75
Children and Young Peoples Services,Head of Childrens Social Care,085381,Adoption Team,Supplies and Services,342033,Computers and Communications,05-May-2020,000007176717154 - 1,AMZNMktplace,5999,Computer hardware,0.15,,0.15
"Regeneration, Economy and Growth",Development and Housing,030501,Physical Development Management & Admin,Supplies and Services,352001,Conference Expenses,05-May-2020,000007176717158,IHBC ENTERPRISES LTD,5734,Conferencesseminars fees etc,36.00,0.00,36.00
"Regeneration, Economy and Growth",Development and Housing,030501,Physical Development Management & Admin,Supplies and Services,352001,Conference Expenses,05-May-2020,000007176717162,IHBC ENTERPRISES LTD,5734,Conferencesseminars fees etc,36.00,0.00,36.00
"Regeneration, Economy and Growth",Development and Housing,030501,Physical Development Management & Admin,Supplies and Services,352001,Conference Expenses,05-May-2020,000007176717164,IHBC ENTERPRISES LTD,5734,Conferencesseminars fees etc,36.00,0.00,36.00
Dedicated Schools Grant BG0015,DSG High Needs Block,077099,Special General,Supplies and Services,328041,Clothing uniforms and laundry E328,05-May-2020,000007176717166,ARGOS LTD,5310,Clothing uniforms and laundry,44.99,0.00,44.99
Children and Young Peoples Services,Head of Childrens Social Care,085501,Child Care Cases Legal Expenses,Supplies and Services,304403,Equipment and Materials,05-May-2020,000007176717170,HARTLEPOOL BC,9399,Other consumables,11.00,0.00,11.00
"Regeneration, Economy and Growth",Development and Housing,031500,Housing Solutions - Core Team,Supplies and Services,352001,Conference Expenses,05-May-2020,000007176717174,HI NEWCASTLE WASHI,7011,Conferencesseminars fees etc,170.00,0.00,170.00
Children and Young Peoples Services,Head of Education and Skills,075021,Youth Employment Initiative,Supplies and Services,364301,Grants to Voluntary Organisations,05-May-2020,000007176717178,CURRYS ONLINE,5732,Hardship,239.00,39.83,199.17
Children and Young Peoples Services,Head of Childrens Social Care,085342,16 Hickstead Rise (previously 9 Cedar Ave),Supplies and Services,304999,Equipment and Materials,05-May-2020,000007176717196,SUPERDRUG STORES PLC,5912,Misc equipment tools and materials,4.99,0.00,4.99
Children and Young Peoples Services,Head of Childrens Social Care,085332,Middlestone Moor CU,Supplies and Services,324117,Provisions E324,05-May-2020,000007176717204,TESCO STORES 6329,5411,Catering costs - provisions,169.83,0.00,169.83
Children and Young Peoples Services,Head of Childrens Social Care,085332,Middlestone Moor CU,Supplies and Services,324117,Provisions E324,05-May-2020,000007176717206,ALDI 74 774,5411,Catering costs - provisions,1.10,0.00,1.10
"Regeneration, Economy and Growth",Development and Housing,031576,B& B - Temp Accom,Supplies and Services,352001,Conference Expenses,05-May-2020,000007176717250,GRAINGER HOTEL,7011,Conferencesseminars fees etc,100.00,0.00,100.00
Children and Young Peoples Services,COVID19 - Children and Young Peoples Services,091002,COVID19 - Children and Young Peoples Services,Supplies and Services,384999,Miscellaneous Expenses,05-May-2020,000007176717256,Amazon.co.uk 1V93A74J5,5969,Other expenses,20.83,0.00,20.83
Children and Young Peoples Services,COVID19 - Children and Young Peoples Services,091002,COVID19 - Children and Young Peoples Services,Supplies and Services,328041,Clothing uniforms and laundry E328,05-May-2020,000007176717258,SP ISAWITFIRST.COM,5691,Clothing uniforms and laundry,-15.00,0.00,-15.00
"Regeneration, Economy and Growth",Development and Housing,030772,CLLD South,Supplies and Services,324117,Provisions E324,05-May-2020,000007176717270,ASDA SUPERSTORE 4987,5411,Catering costs - provisions,20.00,0.00,20.00
"Regeneration, Economy and Growth",Development and Housing,030772,CLLD South,Transport,215995,Running Costs of Vehicles,05-May-2020,000007176717274,ASDA PETROL 5115,5541,Vehicle running expenses,24.50,0.00,24.50
Children and Young Peoples Services,Head of Childrens Social Care,085352,Tow Law CU,Supplies and Services,344033,Telephones,05-May-2020,000007176717304,TESCO MOBILE TOPUP,4814,Telephones general-all costs,10.00,0.00,10.00
"Regeneration, Economy and Growth",Culture Sport and Tourism,054240,Crook Library 054240,Supplies and Services,304252,Equipment and Materials,05-May-2020,000007176717328,VIKING UK,5111,Equipment-repairsserviceinsurance,209.88,34.98,174.90
"Regeneration, Economy and Growth",Development and Housing,031500,Housing Solutions - Core Team,Supplies and Services,352001,Conference Expenses,05-May-2020,000007176717356,AYCLIFFE BIZ,7011,Conferencesseminars fees etc,418.00,0.00,418.00
"Regeneration, Economy and Growth",Development and Housing,031500,Housing Solutions - Core Team,Supplies and Services,352001,Conference Expenses,05-May-2020,000007176717360,GRAINGER HOTEL,7011,Conferencesseminars fees etc,400.00,0.00,400.00
"Regeneration, Economy and Growth",Development and Housing,031500,Housing Solutions - Core Team,Supplies and Services,352001,Conference Expenses,05-May-2020,000007176717362,GRAINGER HOTEL,7011,Conferencesseminars fees etc,410.00,0.00,410.00
"Regeneration, Economy and Growth",Development and Housing,031500,Housing Solutions - Core Team,Supplies and Services,352001,Conference Expenses,05-May-2020,000007176717364,HI NEWCASTLE WASHI,7011,Conferencesseminars fees etc,225.00,0.00,225.00
"Regeneration, Economy and Growth",Development and Housing,031500,Housing Solutions - Core Team,Supplies and Services,352001,Conference Expenses,05-May-2020,000007176717366,HI NEWCASTLE WASHI,7011,Conferencesseminars fees etc,390.00,0.00,390.00
Children and Young Peoples Services,Head of Early Help Inclusion & Vulnerable Children.,071445,Chester le Street One Point Hub,Supplies and Services,304259,Equipment and Materials,05-May-2020,000007176717378,DARLINGTON BC INTERNET,9399,Equipment-purchase and rental,11.00,0.00,11.00
"Regeneration, Economy and Growth",Culture Sport and Tourism,054815,Gala Theatre Stage School,Supplies and Services,304259,Equipment and Materials,05-May-2020,000007176717414,APPLE.COM/BILL,5735,Equipment-purchase and rental,7.99,0.00,7.99
"Regeneration, Economy and Growth",Culture Sport and Tourism,054815,Gala Theatre Stage School,Supplies and Services,304259,Equipment and Materials,05-May-2020,000007176717420,APPLE.COM/BILL,5735,Equipment-purchase and rental,9.99,0.00,9.99
"Regeneration, Economy and Growth",Development and Housing,031576,B& B - Temp Accom,Supplies and Services,364320,Grants to Voluntary Organisations,05-May-2020,000007176717424,HI NEWCASTLE WASHI,7011,Accommodation assistance,150.00,0.00,150.00
Children and Young Peoples Services,Head of Childrens Social Care,085333,Coxhoe Satelite Home,Supplies and Services,384999,Miscellaneous Expenses,05-May-2020,000007176717480,Amazon.co.uk KI53A75Q5,5969,Other expenses,10.00,1.67,8.33
Children and Young Peoples Services,Head of Childrens Social Care,085342,16 Hickstead Rise (previously 9 Cedar Ave),Supplies and Services,324117,Provisions E324,05-May-2020,000007176717492,TESCO STORES 2916,5411,Catering costs - provisions,42.56,0.00,42.56
Children and Young Peoples Services,Head of Education and Skills,078554,Adult Skills-Main,Employees,040149,Recruitment Instruction and Training,05-May-2020,000007176717510,DYSLEXIA UK,8299,Training-all costs,19.50,0.00,19.50
Children and Young Peoples Services,Head of Early Help Inclusion & Vulnerable Children.,085957,Secure Management,Supplies and Services,304403,Equipment and Materials,05-May-2020,000007176717516,AMZNMKTPLACE AMAZON.CO,5999,Other consumables,39.80,6.64,33.16
Children and Young Peoples Services,Head of Childrens Social Care,085334,West Rainton Satelite Home,Supplies and Services,324117,Provisions E324,05-May-2020,000007176717538,TESCO STORES 2371,5411,Catering costs - provisions,125.96,0.00,125.96
Children and Young Peoples Services,Head of Childrens Social Care,085334,West Rainton Satelite Home,Supplies and Services,304999,Equipment and Materials,05-May-2020,000007176717542,HOME BARGAINS,5251,Misc equipment tools and materials,59.31,0.00,59.31
Children and Young Peoples Services,Head of Early Help Inclusion & Vulnerable Children.,085957,Secure Management,Supplies and Services,304403,Equipment and Materials,05-May-2020,000007176717564,AMZNMktplace,5999,Other consumables,24.99,4.17,20.82
Children and Young Peoples Services,COVID19 - Children and Young Peoples Services,091002,COVID19 - Children and Young Peoples Services,Supplies and Services,304649,Equipment and Materials,05-May-2020,000007176717566,AMZNMKTPLACE AMAZON.CO,5999,Toys,115.63,19.30,96.33
Children and Young Peoples Services,COVID19 - Children and Young Peoples Services,091002,COVID19 - Children and Young Peoples Services,Supplies and Services,304649,Equipment and Materials,05-May-2020,000007176717572,AMZNMKTPLACE AMAZON.CO,5999,Toys,14.59,0.00,14.59
Children and Young Peoples Services,COVID19 - Children and Young Peoples Services,091002,COVID19 - Children and Young Peoples Services,Supplies and Services,304649,Equipment and Materials,05-May-2020,000007176717578,AMZNMKTPLACE AMAZON.CO,5999,Toys,14.59,0.00,14.59
Children and Young Peoples Services,COVID19 - Children and Young Peoples Services,091002,COVID19 - Children and Young Peoples Services,Supplies and Services,304649,Equipment and Materials,05-May-2020,000007176717582,AMZNMKTPLACE AMAZON.CO,5999,Toys,14.59,0.00,14.59
Children and Young Peoples Services,COVID19 - Children and Young Peoples Services,091002,COVID19 - Children and Young Peoples Services,Supplies and Services,304649,Equipment and Materials,05-May-2020,000007176717584,AMZNMKTPLACE AMAZON.CO,5999,Toys,64.80,10.80,54.00
Children and Young Peoples Services,COVID19 - Children and Young Peoples Services,091002,COVID19 - Children and Young Peoples Services,Supplies and Services,304649,Equipment and Materials,05-May-2020,000007176717584 - 1,AMZNMKTPLACE AMAZON.CO,5999,Toys,0.05,,0.05
Children and Young Peoples Services,COVID19 - Children and Young Peoples Services,091002,COVID19 - Children and Young Peoples Services,Supplies and Services,304649,Equipment and Materials,05-May-2020,000007176717588,AMZNMKTPLACE AMAZON.CO,5999,Toys,14.59,0.00,14.59
Children and Young Peoples Services,COVID19 - Children and Young Peoples Services,091002,COVID19 - Children and Young Peoples Services,Supplies and Services,304649,Equipment and Materials,05-May-2020,000007176717590,AMZNMKTPLACE AMAZON.CO,5999,Toys,14.59,0.00,14.59
Children and Young Peoples Services,Head of Early Help Inclusion & Vulnerable Children.,085954,Walworth,Supplies and Services,328041,Clothing uniforms and laundry E328,05-May-2020,000007176717596,FOOTASYLUM PLC,5691,Clothing uniforms and laundry,283.93,0.00,283.93
Children and Young Peoples Services,Head of Early Help Inclusion & Vulnerable Children.,085957,Secure Management,Supplies and Services,372009,Subscriptions E372,05-May-2020,000007176717598,PAYPAL 5 AREAS LTD,5999,Subscriptions 372009,240.00,40.00,200.00
Children and Young Peoples Services,Head of Early Help Inclusion & Vulnerable Children.,085957,Secure Management,Supplies and Services,304245,Equipment and Materials,05-May-2020,000007176717606,WWW.SAFEOPTIONS.CO.UK,5999,Materials,135.00,22.50,112.50
Children and Young Peoples Services,Head of Early Help Inclusion & Vulnerable Children.,085956,Lumley,Supplies and Services,304649,Equipment and Materials,05-May-2020,000007176717608,AMZNMKTPLACE AMAZON.CO,5999,Toys,10.73,0.00,10.73
Children and Young Peoples Services,Head of Early Help Inclusion & Vulnerable Children.,085956,Lumley,Supplies and Services,304649,Equipment and Materials,05-May-2020,000007176717610,AMZNMKTPLACE AMAZON.CO,5999,Toys,10.99,0.00,10.99
Children and Young Peoples Services,Head of Early Help Inclusion & Vulnerable Children.,085954,Walworth,Supplies and Services,304649,Equipment and Materials,05-May-2020,000007176717614,Amazon.co.uk V643U1EU5,5969,Toys,6.99,1.17,5.82
Children and Young Peoples Services,Head of Early Help Inclusion & Vulnerable Children.,085957,Secure Management,Supplies and Services,384999,Miscellaneous Expenses,05-May-2020,000007176717616,Amazon.co.uk 8N96C8P35,5969,Other expenses,11.99,2.00,9.99
Children and Young Peoples Services,Head of Early Help Inclusion & Vulnerable Children.,085965,Barnard,Supplies and Services,328041,Clothing uniforms and laundry E328,05-May-2020,000007176717618,JD SPORTS INTERNET,5941,Clothing uniforms and laundry,58.99,0.00,58.99
Resources BK0010,Business Support,052986,CYPS - Locality and Operational Support,Supplies and Services,304259,Equipment and Materials,05-May-2020,000007176717628,CURRYS ONLINE,5732,Equipment-purchase and rental,454.00,0.00,454.00
Resources BK0010,Business Support,052986,CYPS - Locality and Operational Support,Supplies and Services,304259,Equipment and Materials,05-May-2020,000007176717632,CURRYS ONLINE,5732,Equipment-purchase and rental,334.00,0.00,334.00
Resources BK0010,Business Support,052986,CYPS - Locality and Operational Support,Supplies and Services,328041,Clothing uniforms and laundry E328,05-May-2020,000007176717634,ARGOS LTD,5310,Clothing uniforms and laundry,122.95,0.00,122.95
Resources BK0010,Business Support,052986,CYPS - Locality and Operational Support,Supplies and Services,328041,Clothing uniforms and laundry E328,05-May-2020,000007176717636,ARGOS LTD,5310,Clothing uniforms and laundry,49.95,0.00,49.95
Children and Young Peoples Services,Head of Childrens Social Care,085333,Coxhoe Satelite Home,Supplies and Services,384999,Miscellaneous Expenses,05-May-2020,000007176717690,MOONPIG,5399,Other expenses,4.25,0.00,4.25
Children and Young Peoples Services,Head of Early Help Inclusion & Vulnerable Children.,085801,CDYJS - Support,Supplies and Services,304403,Equipment and Materials,05-May-2020,000007176717698,AMZNMKTPLACE AMAZON.CO,5999,Other consumables,82.80,13.80,69.00
Children and Young Peoples Services,Head of Childrens Social Care,085352,Tow Law CU,Supplies and Services,384999,Miscellaneous Expenses,05-May-2020,000007176717702,Fragrance Direct UK,5977,Other expenses,17.24,0.00,17.24
Children and Young Peoples Services,Head of Childrens Social Care,085332,Middlestone Moor CU,Supplies and Services,324117,Provisions E324,05-May-2020,000007176717728,KEN WARNE LTD (O5),5411,Catering costs - provisions,5.13,0.00,5.13
Children and Young Peoples Services,Head of Early Help Inclusion & Vulnerable Children.,088107,Ferryhill & Newton Aycliffe 0-19 Community Family Hub,Supplies and Services,304403,Equipment and Materials,05-May-2020,000007176717730,AMZNMktplace,5999,Other consumables,7.38,1.23,6.15
"Regeneration, Economy and Growth",Development and Housing,031500,Housing Solutions - Core Team,Supplies and Services,352001,Conference Expenses,05-May-2020,000007176717742,GRAINGER HOTEL,7011,Conferencesseminars fees etc,100.00,0.00,100.00
Resources BK0010,Business Support,069010,Administration 069010,Supplies and Services,342033,Computers and Communications,05-May-2020,000007176717760,STK Shutterstock,7333,Computer hardware,59.00,0.00,59.00
Resources BK0010,Business Support,069010,Administration 069010,Supplies and Services,340001,Postages E340,05-May-2020,000007176717768,PRACTICALLY PERFECT PA,7922,Postages,210.00,35.00,175.00
Children and Young Peoples Services,COVID19 - Children and Young Peoples Services,091002,COVID19 - Children and Young Peoples Services,Supplies and Services,304649,Equipment and Materials,05-May-2020,000007178710952,AMZNMKTPLACE AMAZON.CO,5999,Toys,19.20,3.20,16.00
Children and Young Peoples Services,COVID19 - Children and Young Peoples Services,091002,COVID19 - Children and Young Peoples Services,Supplies and Services,304649,Equipment and Materials,05-May-2020,000007178710952 - 1,AMZNMKTPLACE AMAZON.CO,5999,Toys,0.10,,0.10
Neighbourhoods and Climate Change,Partnerships & Community Engagement Div.,060473,COVID19 Shopping Community Hub,Supplies and Services,342506,Provisions E324,05-May-2020,000007178710978,BATLEYS PERTH,5300,Shopping Provision COVID19,143.36,23.89,119.47
Neighbourhoods and Climate Change,Partnerships & Community Engagement Div.,060473,COVID19 Shopping Community Hub,Supplies and Services,342506,Provisions E324,05-May-2020,000007178710980,BATLEYS PERTH,5300,Shopping Provision COVID19,309.96,0.00,309.96
Neighbourhoods and Climate Change,Partnerships & Community Engagement Div.,060473,COVID19 Shopping Community Hub,Supplies and Services,342506,Provisions E324,05-May-2020,000007178710982,BATLEYS PERTH,5300,Shopping Provision COVID19,216.97,36.16,180.81
Children and Young Peoples Services,Head of Childrens Social Care,085342,16 Hickstead Rise (previously 9 Cedar Ave),Supplies and Services,328041,Clothing uniforms and laundry E328,05-May-2020,000009070601609,NEW LOOK INTERNET,5621,Clothing uniforms and laundry,26.98,0.00,26.98
Children and Young Peoples Services,Head of Childrens Social Care,085332,Middlestone Moor CU,Supplies and Services,304999,Equipment and Materials,05-May-2020,000009070602025,SUPERDRUG STORES PLC,5912,Misc equipment tools and materials,39.36,0.00,39.36
Children and Young Peoples Services,Head of Childrens Social Care,085333,Coxhoe Satelite Home,Supplies and Services,384999,Miscellaneous Expenses,06-May-2020,000007176717488,Amazon.co.uk JS5YN8N45,5969,Other expenses,4.00,0.67,3.33
Children and Young Peoples Services,Head of Early Help Inclusion & Vulnerable Children.,085954,Walworth,Supplies and Services,304649,Equipment and Materials,06-May-2020,000007176717612,Amazon.co.uk CP0PO4335,5969,Toys,5.99,1.00,4.99
Children and Young Peoples Services,Head of Early Help Inclusion & Vulnerable Children.,085956,Lumley,Supplies and Services,304403,Equipment and Materials,06-May-2020,000007176717620,AMZNMktplace,5999,Other consumables,19.32,0.00,19.32
Children and Young Peoples Services,Head of Childrens Social Care,085341,High Etherley Satelite Home,Supplies and Services,324117,Provisions E324,06-May-2020,000007178710534,TESCO STORES 6329,5411,Catering costs - provisions,70.80,0.00,70.80
Children and Young Peoples Services,Head of Childrens Social Care,085341,High Etherley Satelite Home,Supplies and Services,324117,Provisions E324,06-May-2020,000007178710536,TESCO STORES 6329,5411,Catering costs - provisions,31.16,0.00,31.16
Children and Young Peoples Services,Head of Childrens Social Care,085341,High Etherley Satelite Home,Supplies and Services,324117,Provisions E324,06-May-2020,000007178710550,TESCO STORES 6329,5411,Catering costs - provisions,26.99,0.00,26.99
Children and Young Peoples Services,Head of Childrens Social Care,085341,High Etherley Satelite Home,Supplies and Services,324117,Provisions E324,06-May-2020,000007178710552,TESCO STORES 6329,5411,Catering costs - provisions,20.69,0.00,20.69
Children and Young Peoples Services,Head of Childrens Social Care,085341,High Etherley Satelite Home,Supplies and Services,304221,Equipment and Materials,06-May-2020,000007178710556,HOMEBASE LTD 822,5200,Direct materials,36.50,0.00,36.50
Resources BK0010,Digital and Customer Services,065481,Technical Services 065481,Supplies and Services,342033,Computers and Communications,06-May-2020,000007178710566,AMZNMktplace,5999,Computer hardware,10.99,0.00,10.99
Children and Young Peoples Services,Head of Education and Skills,075021,Youth Employment Initiative,Supplies and Services,364301,Grants to Voluntary Organisations,06-May-2020,000007178710574,CURRYS ONLINE,5732,Hardship,239.00,39.83,199.17
Children and Young Peoples Services,Head of Education and Skills,075021,Youth Employment Initiative,Supplies and Services,364301,Grants to Voluntary Organisations,06-May-2020,000007178710578,SPORTSDIRECT.COM,5941,Hardship,36.99,0.00,36.99
"Regeneration, Economy and Growth",Culture Sport and Tourism,030708,VCD - Marketing & Information,Supplies and Services,384199,Miscellaneous Expenses,06-May-2020,000007178710586,KAHOOT! AS,5734,Other hired and contracted services,236.25,0.00,236.25
Children and Young Peoples Services,Head of Childrens Social Care,085342,16 Hickstead Rise (previously 9 Cedar Ave),Supplies and Services,324117,Provisions E324,06-May-2020,000007178710590,TESCO STORES 2916,5411,Catering costs - provisions,51.15,0.00,51.15
Children and Young Peoples Services,Head of Childrens Social Care,085342,16 Hickstead Rise (previously 9 Cedar Ave),Supplies and Services,324117,Provisions E324,06-May-2020,000007178710594,TESCO STORES 2916,5411,Catering costs - provisions,10.95,0.00,10.95
Children and Young Peoples Services,Head of Childrens Social Care,085352,Tow Law CU,Supplies and Services,324117,Provisions E324,06-May-2020,000007178710632,CO-OP GROUP 010989,5411,Catering costs - provisions,14.24,0.00,14.24
Children and Young Peoples Services,Head of Childrens Social Care,085352,Tow Law CU,Supplies and Services,324117,Provisions E324,06-May-2020,000007178710636,ALDI 74 774,5411,Catering costs - provisions,3.49,0.00,3.49
Children and Young Peoples Services,Head of Childrens Social Care,085380,Operations Manager LAC Resources,Supplies and Services,328041,Clothing uniforms and laundry E328,06-May-2020,000007178710654,ARGOS LTD,5310,Clothing uniforms and laundry,99.99,0.00,99.99
Children and Young Peoples Services,Head of Childrens Social Care,085380,Operations Manager LAC Resources,Supplies and Services,328041,Clothing uniforms and laundry E328,06-May-2020,000007178710656,ARGOS LTD,5310,Clothing uniforms and laundry,99.99,0.00,99.99
Children and Young Peoples Services,Head of Childrens Social Care,085380,Operations Manager LAC Resources,Supplies and Services,328041,Clothing uniforms and laundry E328,06-May-2020,000007178710658,ARGOS LTD,5310,Clothing uniforms and laundry,103.94,0.00,103.94
Children and Young Peoples Services,Head of Childrens Social Care,085332,Middlestone Moor CU,Supplies and Services,324117,Provisions E324,06-May-2020,000007178710662,SumUp Grannys Kitche,5411,Catering costs - provisions,7.00,0.00,7.00
Neighbourhoods and Climate Change,Environmental Services,010367,C&G - South Grounds Maintenance,Supplies and Services,304999,Equipment and Materials,06-May-2020,000007178710668,R DEFTY,5251,Misc equipment tools and materials,29.35,0.00,29.35
Children and Young Peoples Services,Head of Childrens Social Care,085511,Emergency Duty Team,Supplies and Services,304259,Equipment and Materials,06-May-2020,000007178710672,MANOMANO,5722,Equipment-purchase and rental,439.98,0.00,439.98
"Regeneration, Economy and Growth",Development and Housing,031576,B& B - Temp Accom,Supplies and Services,352001,Conference Expenses,06-May-2020,000007178710686,HI NEWCASTLE WASHI,7011,Conferencesseminars fees etc,85.00,0.00,85.00
"Regeneration, Economy and Growth",Development and Housing,031576,B& B - Temp Accom,Supplies and Services,352001,Conference Expenses,06-May-2020,000007178710690,HI NEWCASTLE WASHI,7011,Conferencesseminars fees etc,65.00,0.00,65.00
Children and Young Peoples Services,Head of Education and Skills,071732,Dean Bank Childcare,Supplies and Services,324117,Provisions E324,06-May-2020,000007178710718,SAINSBURYS SACAT (2303,5411,Catering costs - provisions,24.30,0.00,24.30
Children and Young Peoples Services,Head of Childrens Social Care,085332,Middlestone Moor CU,Supplies and Services,324117,Provisions E324,06-May-2020,000007178710742,SumUp Maggies sandwi,5811,Catering costs - provisions,10.50,0.00,10.50
"Regeneration, Economy and Growth",Development and Housing,031500,Housing Solutions - Core Team,Supplies and Services,352001,Conference Expenses,06-May-2020,000007178710758,GRAINGER HOTEL,7011,Conferencesseminars fees etc,100.00,16.67,83.33
"Regeneration, Economy and Growth",Development and Housing,031500,Housing Solutions - Core Team,Supplies and Services,352001,Conference Expenses,06-May-2020,000007178710774,GRAINGER HOTEL,7011,Conferencesseminars fees etc,100.00,0.00,100.00
Resources BK0010,People & Talent Management,010984,Training and Development,Employees,040149,Recruitment Instruction and Training,06-May-2020,000007178710790,PAYPAL NPORS LTD,8699,Training-all costs,144.00,24.00,120.00
"Regeneration, Economy and Growth",Development and Housing,031576,B& B - Temp Accom,Supplies and Services,364320,Grants to Voluntary Organisations,06-May-2020,000007178710804,HI NEWCASTLE WASHI,7011,Accommodation assistance,375.00,0.00,375.00
"Regeneration, Economy and Growth",Development and Housing,031576,B& B - Temp Accom,Supplies and Services,364320,Grants to Voluntary Organisations,06-May-2020,000007178710820,BUDGET H EXPRESS HOTEL,7011,Accommodation assistance,623.00,103.83,519.17
Children and Young Peoples Services,Head of Childrens Social Care,085341,High Etherley Satelite Home,Supplies and Services,324117,Provisions E324,06-May-2020,000007178710846,ASDA SUPERSTORE,5411,Catering costs - provisions,144.82,0.00,144.82
Adult and Health Services,Head of Adults,055643,Hawthorn House LD Respite Unit,Supplies and Services,324117,Provisions E324,06-May-2020,000007178710854,CO-OP GROUP 010465,5411,Catering costs - provisions,7.70,0.00,7.70
Children and Young Peoples Services,Head of Childrens Social Care,085333,Coxhoe Satelite Home,Supplies and Services,324117,Provisions E324,06-May-2020,000007178710862,CO-OP GROUP 010830,5411,Catering costs - provisions,13.60,0.00,13.60
Children and Young Peoples Services,Head of Childrens Social Care,085342,16 Hickstead Rise (previously 9 Cedar Ave),Supplies and Services,304403,Equipment and Materials,06-May-2020,000007178710866,AMZNMktplace,5999,Other consumables,75.04,0.00,75.04
Children and Young Peoples Services,Head of Early Help Inclusion & Vulnerable Children.,085957,Secure Management,Supplies and Services,304403,Equipment and Materials,06-May-2020,000007178710888,AMZNMKTPLACE AMAZON.CO,5999,Other consumables,60.30,10.10,50.20
Children and Young Peoples Services,Head of Early Help Inclusion & Vulnerable Children.,085957,Secure Management,Supplies and Services,304403,Equipment and Materials,06-May-2020,000007178710892,AMZNMKTPLACE AMAZON.CO,5999,Other consumables,25.90,4.32,21.58
Children and Young Peoples Services,Head of Early Help Inclusion & Vulnerable Children.,085957,Secure Management,Supplies and Services,384999,Miscellaneous Expenses,06-May-2020,000007178710894,Amazon.co.uk D40955X25,5969,Other expenses,6.48,1.08,5.40
Children and Young Peoples Services,Head of Early Help Inclusion & Vulnerable Children.,085957,Secure Management,Supplies and Services,384999,Miscellaneous Expenses,06-May-2020,000007178710896,Amazon.co.uk KO78C2CN5,5969,Other expenses,27.00,4.50,22.50
Children and Young Peoples Services,Head of Early Help Inclusion & Vulnerable Children.,085957,Secure Management,Supplies and Services,384999,Miscellaneous Expenses,06-May-2020,000007178710896 - 1,Amazon.co.uk KO78C2CN5,5969,Other expenses,0.04,,0.04
Children and Young Peoples Services,Head of Early Help Inclusion & Vulnerable Children.,085957,Secure Management,Supplies and Services,384999,Miscellaneous Expenses,06-May-2020,000007178710898,Amazon.co.uk N25TC92L5,5969,Other expenses,86.40,14.40,72.00
Children and Young Peoples Services,Head of Early Help Inclusion & Vulnerable Children.,085957,Secure Management,Supplies and Services,384999,Miscellaneous Expenses,06-May-2020,000007178710900,Amazon.co.uk SQ6I19HM5,5969,Other expenses,16.20,2.70,13.50
Children and Young Peoples Services,Head of Early Help Inclusion & Vulnerable Children.,085957,Secure Management,Supplies and Services,384999,Miscellaneous Expenses,06-May-2020,000007178710900 - 1,Amazon.co.uk SQ6I19HM5,5969,Other expenses,0.04,,0.04
Children and Young Peoples Services,Head of Early Help Inclusion & Vulnerable Children.,085957,Secure Management,Supplies and Services,304403,Equipment and Materials,06-May-2020,000007178710904,AMZNMKTPLACE AMAZON.CO,5999,Other consumables,9.99,1.67,8.32
Children and Young Peoples Services,Head of Early Help Inclusion & Vulnerable Children.,085957,Secure Management,Supplies and Services,304403,Equipment and Materials,06-May-2020,000007178710906,AMZNMKTPLACE AMAZON.CO,5999,Other consumables,9.99,1.67,8.32
Children and Young Peoples Services,Head of Early Help Inclusion & Vulnerable Children.,085957,Secure Management,Supplies and Services,304403,Equipment and Materials,06-May-2020,000007178710910,AMZNMKTPLACE AMAZON.CO,5999,Other consumables,9.99,1.67,8.32
Children and Young Peoples Services,Head of Early Help Inclusion & Vulnerable Children.,085957,Secure Management,Supplies and Services,304403,Equipment and Materials,06-May-2020,000007178710912,AMZNMKTPLACE AMAZON.CO,5999,Other consumables,9.99,1.67,8.32
Children and Young Peoples Services,Head of Early Help Inclusion & Vulnerable Children.,085957,Secure Management,Supplies and Services,304403,Equipment and Materials,06-May-2020,000007178710916,AMZNMKTPLACE AMAZON.CO,5999,Other consumables,9.99,1.67,8.32
Neighbourhoods and Climate Change,Environmental Services,010367,C&G - South Grounds Maintenance,Supplies and Services,304403,Equipment and Materials,06-May-2020,000007178710922,MAXWELLS D I Y,5231,Other consumables,62.00,0.00,62.00
Children and Young Peoples Services,Head of Childrens Social Care,085334,West Rainton Satelite Home,Supplies and Services,304403,Equipment and Materials,06-May-2020,000007178710930,AMZNMktplace,5999,Other consumables,10.95,0.00,10.95
Children and Young Peoples Services,Head of Early Help Inclusion & Vulnerable Children.,088103,Consett & Stanley 0-19 Community Family Hub,Supplies and Services,384999,Miscellaneous Expenses,06-May-2020,000007178710934,SENSORY DIRECT,5945,Other expenses,23.29,3.88,19.41
Children and Young Peoples Services,Head of Early Help Inclusion & Vulnerable Children.,074000,TTF-Attachment and Results,Transfer Payments,525033,Other,06-May-2020,000007178710938,WILKO.COM,5399,Grants to individuals,135.00,22.50,112.50
Children and Young Peoples Services,Head of Childrens Social Care,085342,16 Hickstead Rise (previously 9 Cedar Ave),Supplies and Services,342033,Computers and Communications,06-May-2020,000007178710942,AMZNMktplace,5999,Computer hardware,9.98,0.00,9.98
Children and Young Peoples Services,Head of Childrens Social Care,085342,16 Hickstead Rise (previously 9 Cedar Ave),Transport,215995,Running Costs of Vehicles,06-May-2020,000007178710944,TESCO PAY AT PUMP 4088,5542,Vehicle running expenses,5.79,0.00,5.79
Children and Young Peoples Services,Head of Childrens Social Care,085342,16 Hickstead Rise (previously 9 Cedar Ave),Supplies and Services,384871,Miscellaneous Expenses,06-May-2020,000007178710946,WWW.STUDIO.CO.UK,5964,Training-other activities,9.97,0.00,9.97
Children and Young Peoples Services,Head of Early Help Inclusion & Vulnerable Children.,085962,Aycliffe Secure - Durham,Supplies and Services,304649,Equipment and Materials,06-May-2020,000007178710956,AMZNMktplace,5999,Toys,15.50,2.58,12.92
Children and Young Peoples Services,Head of Early Help Inclusion & Vulnerable Children.,085962,Aycliffe Secure - Durham,Supplies and Services,304649,Equipment and Materials,06-May-2020,000007178710958,AMZNMktplace,5999,Toys,32.99,0.00,32.99
Children and Young Peoples Services,Head of Early Help Inclusion & Vulnerable Children.,085962,Aycliffe Secure - Durham,Supplies and Services,304649,Equipment and Materials,06-May-2020,000007178710960,Amazon.co.uk 2Z3YX2SV5,5969,Toys,22.99,3.83,19.16
Resources BK0010,Business Support,052986,CYPS - Locality and Operational Support,Supplies and Services,304259,Equipment and Materials,06-May-2020,000007178710962,CURRYS ONLINE,5732,Equipment-purchase and rental,447.98,0.00,447.98
Resources BK0010,Business Support,052986,CYPS - Locality and Operational Support,Supplies and Services,328041,Clothing uniforms and laundry E328,06-May-2020,000007178710966,ARGOS LTD,5310,Clothing uniforms and laundry,292.93,0.00,292.93
Children and Young Peoples Services,Head of Early Help Inclusion & Vulnerable Children.,085801,CDYJS - Support,Supplies and Services,304403,Equipment and Materials,06-May-2020,000007178711048,AMZNMKTPLACE AMAZON.CO,5999,Other consumables,30.89,5.16,25.73
Children and Young Peoples Services,Head of Early Help Inclusion & Vulnerable Children.,085801,CDYJS - Support,Supplies and Services,304403,Equipment and Materials,06-May-2020,000007178711050,AMZNMKTPLACE AMAZON.CO,5999,Other consumables,3.05,0.51,2.54
Children and Young Peoples Services,Head of Childrens Social Care,085352,Tow Law CU,Supplies and Services,304259,Equipment and Materials,06-May-2020,000007178711062,JD SPORTS INTERNET,5941,Equipment-purchase and rental,72.00,0.00,72.00
Children and Young Peoples Services,Head of Childrens Social Care,085352,Tow Law CU,Supplies and Services,304259,Equipment and Materials,06-May-2020,000007178711064,JD SPORTS INTERNET,5941,Equipment-purchase and rental,168.00,0.00,168.00
Children and Young Peoples Services,Head of Education and Skills,071802,Louisa Cent Nursery,Supplies and Services,324117,Provisions E324,06-May-2020,000007178711068,ICELAND,5411,Catering costs - provisions,15.25,0.00,15.25
Children and Young Peoples Services,Head of Early Help Inclusion & Vulnerable Children.,088107,Ferryhill & Newton Aycliffe 0-19 Community Family Hub,Supplies and Services,384999,Miscellaneous Expenses,06-May-2020,000007178711082,Amazon.co.uk 4Y8IR1HS5,5969,Other expenses,10.78,1.80,8.98
Children and Young Peoples Services,Head of Early Help Inclusion & Vulnerable Children.,088107,Ferryhill & Newton Aycliffe 0-19 Community Family Hub,Supplies and Services,304403,Equipment and Materials,06-May-2020,000007178711086,AMZNMKTPLACE AMAZON.CO,5999,Other consumables,83.58,13.93,69.65
Children and Young Peoples Services,Head of Early Help Inclusion & Vulnerable Children.,088107,Ferryhill & Newton Aycliffe 0-19 Community Family Hub,Supplies and Services,304403,Equipment and Materials,06-May-2020,000007178711086 - 1,AMZNMKTPLACE AMAZON.CO,5999,Other consumables,0.07,,0.07
Children and Young Peoples Services,Head of Early Help Inclusion & Vulnerable Children.,088107,Ferryhill & Newton Aycliffe 0-19 Community Family Hub,Supplies and Services,304403,Equipment and Materials,06-May-2020,000007178711088,AMZNMktplace,5999,Other consumables,53.98,9.00,44.98
Children and Young Peoples Services,Head of Early Help Inclusion & Vulnerable Children.,088107,Ferryhill & Newton Aycliffe 0-19 Community Family Hub,Supplies and Services,304403,Equipment and Materials,06-May-2020,000007178711090,AMZNMktplace,5999,Other consumables,9.99,0.00,9.99
Children and Young Peoples Services,Head of Early Help Inclusion & Vulnerable Children.,088107,Ferryhill & Newton Aycliffe 0-19 Community Family Hub,Supplies and Services,304403,Equipment and Materials,06-May-2020,000007178711094,AMZNMktplace,5999,Other consumables,15.84,2.64,13.20
Children and Young Peoples Services,Head of Early Help Inclusion & Vulnerable Children.,088107,Ferryhill & Newton Aycliffe 0-19 Community Family Hub,Supplies and Services,304403,Equipment and Materials,06-May-2020,000007178711094 - 1,AMZNMktplace,5999,Other consumables,0.16,,0.16
Children and Young Peoples Services,Head of Early Help Inclusion & Vulnerable Children.,088107,Ferryhill & Newton Aycliffe 0-19 Community Family Hub,Supplies and Services,384999,Miscellaneous Expenses,06-May-2020,000007178711096,Amazon.co.uk EI7TY6HQ5,5969,Other expenses,32.00,0.00,32.00
Children and Young Peoples Services,Head of Early Help Inclusion & Vulnerable Children.,088107,Ferryhill & Newton Aycliffe 0-19 Community Family Hub,Supplies and Services,304403,Equipment and Materials,06-May-2020,000007178711098,AMZNMktplace,5999,Other consumables,9.96,1.66,8.30
Children and Young Peoples Services,Head of Early Help Inclusion & Vulnerable Children.,088107,Ferryhill & Newton Aycliffe 0-19 Community Family Hub,Supplies and Services,304403,Equipment and Materials,06-May-2020,000007178711098 - 1,AMZNMktplace,5999,Other consumables,0.04,,0.04
"Regeneration, Economy and Growth",Development and Housing,031500,Housing Solutions - Core Team,Supplies and Services,352001,Conference Expenses,06-May-2020,000007178711106,GRAINGER APARTMENTS NE,7011,Conferencesseminars fees etc,500.00,0.00,500.00
"Regeneration, Economy and Growth",Development and Housing,031500,Housing Solutions - Core Team,Supplies and Services,304999,Equipment and Materials,06-May-2020,000007178711110,DUNCAN BELTON TA K,6513,Misc equipment tools and materials,350.00,0.00,350.00
"Regeneration, Economy and Growth",Development and Housing,031500,Housing Solutions - Core Team,Supplies and Services,304999,Equipment and Materials,06-May-2020,000007178711112,DUNCAN BELTON TA K,6513,Misc equipment tools and materials,350.00,0.00,350.00
"Regeneration, Economy and Growth",Development and Housing,031500,Housing Solutions - Core Team,Supplies and Services,352001,Conference Expenses,06-May-2020,000007178711114,HI NEWCASTLE WASHI,7011,Conferencesseminars fees etc,130.00,0.00,130.00
Children and Young Peoples Services,Head of Childrens Social Care,085650,Pre Birth Team,Supplies and Services,304403,Equipment and Materials,06-May-2020,000007178711164,TESCO ONLINE,5999,Other consumables,10.99,0.00,10.99
Children and Young Peoples Services,Head of Childrens Social Care,085650,Pre Birth Team,Supplies and Services,304403,Equipment and Materials,06-May-2020,000007178711166,TESCO ONLINE,5999,Other consumables,10.00,0.00,10.00
Children and Young Peoples Services,Head of Childrens Social Care,085650,Pre Birth Team,Supplies and Services,324117,Provisions E324,06-May-2020,000007178711170,CO-OP GROUP FOOD,5411,Catering costs - provisions,20.00,0.00,20.00
Children and Young Peoples Services,Head of Early Help Inclusion & Vulnerable Children.,085957,Secure Management,Supplies and Services,304403,Equipment and Materials,06-May-2020,000009070601683,AMZNMKTPLACE AMAZON.CO,5999,Other consumables,49.95,8.35,41.60
Children and Young Peoples Services,Head of Early Help Inclusion & Vulnerable Children.,085957,Secure Management,Supplies and Services,304403,Equipment and Materials,06-May-2020,000009070601691,AMZNMKTPLACE AMAZON.CO,5999,Other consumables,121.61,20.32,101.29
Children and Young Peoples Services,Head of Early Help Inclusion & Vulnerable Children.,085957,Secure Management,Supplies and Services,304403,Equipment and Materials,06-May-2020,000009070601695,AMZNMKTPLACE AMAZON.CO,5999,Other consumables,88.85,14.88,73.97
Children and Young Peoples Services,Head of Early Help Inclusion & Vulnerable Children.,085957,Secure Management,Supplies and Services,304403,Equipment and Materials,06-May-2020,000009070601703,AMZNMKTPLACE AMAZON.CO,5999,Other consumables,90.20,0.00,90.20
Children and Young Peoples Services,Head of Childrens Social Care,085333,Coxhoe Satelite Home,Supplies and Services,328041,Clothing uniforms and laundry E328,06-May-2020,000009070602109,PAYPAL EUROTRADEWL EB,5331,Clothing uniforms and laundry,29.67,0.00,29.67
Children and Young Peoples Services,Head of Education and Skills,071801,Selby Cottage Childcare Centre,Supplies and Services,324117,Provisions E324,07-May-2020,000007178710560,TESCO STORES 2371,5411,Catering costs - provisions,90.46,0.00,90.46
Children and Young Peoples Services,Head of Childrens Social Care,085341,High Etherley Satelite Home,Supplies and Services,324117,Provisions E324,07-May-2020,000009070600251,ASDA STORES,5411,Catering costs - provisions,105.26,0.00,105.26
Children and Young Peoples Services,Head of Childrens Social Care,085341,High Etherley Satelite Home,Supplies and Services,324117,Provisions E324,07-May-2020,000009070600261,ALDI 15 774,5411,Catering costs - provisions,7.67,0.00,7.67
"Regeneration, Economy and Growth",Development and Housing,031500,Housing Solutions - Core Team,Supplies and Services,352001,Conference Expenses,07-May-2020,000009070600351,BUDGET H EXPRESS HOTEL,7011,Conferencesseminars fees etc,500.00,0.00,500.00
"Regeneration, Economy and Growth",Development and Housing,031500,Housing Solutions - Core Team,Supplies and Services,352001,Conference Expenses,07-May-2020,000009070600359,BUDGET H EXPRESS HOTEL,7011,Conferencesseminars fees etc,123.00,0.00,123.00
"Regeneration, Economy and Growth",Development and Housing,031576,B& B - Temp Accom,Supplies and Services,352001,Conference Expenses,07-May-2020,000009070600371,GRAINGER HOTEL,7011,Conferencesseminars fees etc,200.00,0.00,200.00
"Regeneration, Economy and Growth",Development and Housing,031576,B& B - Temp Accom,Supplies and Services,352001,Conference Expenses,07-May-2020,000009070600381,GRAINGER HOTEL,7011,Conferencesseminars fees etc,450.00,0.00,450.00
Resources BK0010,Digital and Customer Services,065481,Technical Services 065481,Supplies and Services,342033,Computers and Communications,07-May-2020,000009070600395,FS.COM LIMITED,5045,Computer hardware,69.20,0.00,69.20
Resources BK0010,Digital and Customer Services,070110,School Services - Man Info System (MIS) Support Team,Supplies and Services,342053,Computers and Communications,07-May-2020,000009070600403,WPMU DEV INCSUBFEE.COM,7372,Computer software,15.49,0.00,15.49
Resources BK0010,Digital and Customer Services,065432,Web Development Group,Supplies and Services,342053,Computers and Communications,07-May-2020,000009070600409,UKFAST.NET LTD,4816,Computer software,63.01,10.50,52.51
Resources BK0010,Digital and Customer Services,065432,Web Development Group,Supplies and Services,342053,Computers and Communications,07-May-2020,000009070600415,UKFAST.NET LTD,4816,Computer software,500.00,83.33,416.67
Children and Young Peoples Services,Head of Childrens Social Care,085381,Adoption Team,Supplies and Services,342033,Computers and Communications,07-May-2020,000009070600423,AMZNMktplace,5999,Computer hardware,97.50,0.00,97.50
Children and Young Peoples Services,Head of Childrens Social Care,085551,Short Break Services-Park Hse Sher,Supplies and Services,324117,Provisions E324,07-May-2020,000009070600533,TESCO STORES 2371,5411,Catering costs - provisions,29.95,0.00,29.95
Children and Young Peoples Services,Head of Childrens Social Care,085358,Durham Road Sacriston childrens residential,Supplies and Services,304259,Equipment and Materials,07-May-2020,000009070600543,MANOMANO,5722,Equipment-purchase and rental,99.00,0.00,99.00
Children and Young Peoples Services,Head of Childrens Social Care,085332,Middlestone Moor CU,Supplies and Services,324117,Provisions E324,07-May-2020,000009070600653,KEN WARNE LTD (O5),5411,Catering costs - provisions,4.74,0.00,4.74
Children and Young Peoples Services,COVID19 - Children and Young Peoples Services,091002,COVID19 - Children and Young Peoples Services,Supplies and Services,304259,Equipment and Materials,07-May-2020,000009070600707,M and M Direct Ltd,5941,Equipment-purchase and rental,19.98,0.00,19.98
"Regeneration, Economy and Growth",Culture Sport and Tourism,011207,Physical Activity 011207,Supplies and Services,304999,Equipment and Materials,07-May-2020,000009070600827,MailChimp,5818,Misc equipment tools and materials,196.07,32.68,163.39
"Regeneration, Economy and Growth",Culture Sport and Tourism,011207,Physical Activity 011207,Supplies and Services,304999,Equipment and Materials,07-May-2020,000009070600841,MailChimp,5818,Misc equipment tools and materials,294.11,49.02,245.09
Children and Young Peoples Services,Head of Childrens Social Care,085352,Tow Law CU,Supplies and Services,304999,Equipment and Materials,07-May-2020,000009070600889,COSTCO WHOLESALE UK,7278,Misc equipment tools and materials,93.78,15.63,78.15
Children and Young Peoples Services,Head of Childrens Social Care,085352,Tow Law CU,Supplies and Services,304999,Equipment and Materials,07-May-2020,000009070600889 - 1,COSTCO WHOLESALE UK,7278,Misc equipment tools and materials,75.85,,75.85
Children and Young Peoples Services,Head of Childrens Social Care,085352,Tow Law CU,Supplies and Services,324117,Provisions E324,07-May-2020,000009070600893,SAINSBURYS 0776,5411,Catering costs - provisions,285.66,0.00,285.66
Children and Young Peoples Services,Head of Childrens Social Care,085352,Tow Law CU,Supplies and Services,328041,Clothing uniforms and laundry E328,07-May-2020,000009070600901,ARGOS LTD,5310,Clothing uniforms and laundry,63.94,0.00,63.94
Neighbourhoods and Climate Change,Partnerships & Community Engagement Div.,060473,COVID19 Shopping Community Hub,Supplies and Services,342506,Provisions E324,07-May-2020,000009070600963,LIDL GB CROOK,5411,Shopping Provision COVID19,0.90,0.15,0.75
Neighbourhoods and Climate Change,Partnerships & Community Engagement Div.,060473,COVID19 Shopping Community Hub,Supplies and Services,342506,Provisions E324,07-May-2020,000009070600963 - 1,LIDL GB CROOK,5411,Shopping Provision COVID19,14.54,,14.54
Neighbourhoods and Climate Change,Partnerships & Community Engagement Div.,060473,COVID19 Shopping Community Hub,Supplies and Services,342506,Provisions E324,07-May-2020,000009070600969,LIDL GB CROOK,5411,Shopping Provision COVID19,2.28,0.38,1.90
Neighbourhoods and Climate Change,Partnerships & Community Engagement Div.,060473,COVID19 Shopping Community Hub,Supplies and Services,342506,Provisions E324,07-May-2020,000009070600969 - 1,LIDL GB CROOK,5411,Shopping Provision COVID19,28.37,,28.37
Neighbourhoods and Climate Change,Environmental Services,010314,Nei.Prot - Bereavement Services,Supplies and Services,304259,Equipment and Materials,07-May-2020,000009070601055,Durham County CNCL,9399,Equipment-purchase and rental,11.00,0.00,11.00
"Regeneration, Economy and Growth",Development and Housing,031500,Housing Solutions - Core Team,Supplies and Services,352001,Conference Expenses,07-May-2020,000009070601149,HI NEWCASTLE WASHI,7011,Conferencesseminars fees etc,260.00,0.00,260.00
Neighbourhoods and Climate Change,Environmental Services,010301,C&G - North Grounds Maintenance,Supplies and Services,304221,Equipment and Materials,07-May-2020,000009070601173,AZTEC CHEMICALS LTD,5169,Direct materials,451.98,75.33,376.65
Neighbourhoods and Climate Change,Environmental Services,010301,C&G - North Grounds Maintenance,Supplies and Services,304221,Equipment and Materials,07-May-2020,000009070601177,AZTEC CHEMICALS LTD,5169,Direct materials,451.98,75.33,376.65
"Regeneration, Economy and Growth",Development and Housing,030771,Durham Advance Flexible Fund,Transport,235057,Public Transport,07-May-2020,000009070601197,thetrainline.com,4112,Staff travelling,8.29,0.00,8.29
"Regeneration, Economy and Growth",Development and Housing,030771,Durham Advance Flexible Fund,Transport,235057,Public Transport,07-May-2020,000009070601207,GO NORTH EAST LIMITED,4131,Staff travelling,5.30,0.00,5.30
"Regeneration, Economy and Growth",Development and Housing,031500,Housing Solutions - Core Team,Supplies and Services,352001,Conference Expenses,07-May-2020,000009070601237,AYCLIFFE BIZ,7011,Conferencesseminars fees etc,152.00,0.00,152.00
"Regeneration, Economy and Growth",Development and Housing,031500,Housing Solutions - Core Team,Supplies and Services,352001,Conference Expenses,07-May-2020,000009070601241,GRAINGER HOTEL,7011,Conferencesseminars fees etc,450.00,0.00,450.00
"Regeneration, Economy and Growth",Development and Housing,031500,Housing Solutions - Core Team,Supplies and Services,352001,Conference Expenses,07-May-2020,000009070601247,GRAINGER HOTEL,7011,Conferencesseminars fees etc,100.00,0.00,100.00
"Regeneration, Economy and Growth",Development and Housing,031500,Housing Solutions - Core Team,Supplies and Services,352001,Conference Expenses,07-May-2020,000009070601251,HI NEWCASTLE WASHI,7011,Conferencesseminars fees etc,260.00,0.00,260.00
Resources BK0010,People & Talent Management,010984,Training and Development,Employees,040149,Recruitment Instruction and Training,07-May-2020,000009070601267,WWW.CSCS.UK.COM,8699,Training-all costs,36.00,6.00,30.00
"Regeneration, Economy and Growth",Development and Housing,031576,B& B - Temp Accom,Supplies and Services,364320,Grants to Voluntary Organisations,07-May-2020,000009070601307,AYCLIFFE BIZ,7011,Accommodation assistance,304.00,0.00,304.00
"Regeneration, Economy and Growth",Development and Housing,031576,B& B - Temp Accom,Supplies and Services,364320,Grants to Voluntary Organisations,07-May-2020,000009070601313,AYCLIFFE BIZ,7011,Accommodation assistance,152.00,0.00,152.00
Children and Young Peoples Services,Head of Early Help Inclusion & Vulnerable Children.,088106,Ferryhill & N.Aycliffe 0-19 Targeted Family Support,Supplies and Services,364301,Grants to Voluntary Organisations,07-May-2020,000009070601403,AMZNMktplace,5999,Hardship,19.90,3.32,16.58
Children and Young Peoples Services,Head of Early Help Inclusion & Vulnerable Children.,088107,Ferryhill & Newton Aycliffe 0-19 Community Family Hub,Supplies and Services,364301,Grants to Voluntary Organisations,07-May-2020,000009070601409,AMZNMktplace,5999,Hardship,25.98,4.34,21.64
Children and Young Peoples Services,Head of Early Help Inclusion & Vulnerable Children.,088107,Ferryhill & Newton Aycliffe 0-19 Community Family Hub,Supplies and Services,364301,Grants to Voluntary Organisations,07-May-2020,000009070601417,Amazon.co.uk 2P6QU7VT5,5969,Hardship,15.02,2.50,12.52
Neighbourhoods and Climate Change,Environmental Services,010367,C&G - South Grounds Maintenance,Supplies and Services,304999,Equipment and Materials,07-May-2020,000009070601467,RICKERBY,5251,Misc equipment tools and materials,25.71,4.29,21.42
Children and Young Peoples Services,Head of Childrens Social Care,085342,16 Hickstead Rise (previously 9 Cedar Ave),Supplies and Services,344033,Telephones,07-May-2020,000009070601591,giffgaff,4814,Telephones general-all costs,10.00,0.00,10.00
Children and Young Peoples Services,Head of Early Help Inclusion & Vulnerable Children.,085957,Secure Management,Supplies and Services,384999,Miscellaneous Expenses,07-May-2020,000009070601709,Amazon.co.uk 7L4AE2RT5,5969,Other expenses,23.34,0.00,23.34
Adult and Health Services,Head of Adults,055643,Hawthorn House LD Respite Unit,Supplies and Services,324117,Provisions E324,07-May-2020,000009070601755,JR HOLLAND FOODSERVICE,5499,Catering costs - provisions,14.83,0.00,14.83
Neighbourhoods and Climate Change,Environmental Services,010301,C&G - North Grounds Maintenance,Third Party Payments,430100,Rendered by Private Contractors,07-May-2020,000009070601799,JOHN WARREN (ANIMAL BY,7399,Payments to sub-contractors,36.00,0.00,36.00
Children and Young Peoples Services,Head of Early Help Inclusion & Vulnerable Children.,088102,Consett & Stanley 0-19 Targeted Family Support,Supplies and Services,304403,Equipment and Materials,07-May-2020,000009070601817,AMZNMKTPLACE AMAZON.CO,5999,Other consumables,115.80,0.00,115.80
Children and Young Peoples Services,Head of Early Help Inclusion & Vulnerable Children.,088102,Consett & Stanley 0-19 Targeted Family Support,Supplies and Services,304403,Equipment and Materials,07-May-2020,000009070601823,AMZNMKTPLACE AMAZON.CO,5999,Other consumables,69.90,11.70,58.20
Children and Young Peoples Services,Head of Early Help Inclusion & Vulnerable Children.,088103,Consett & Stanley 0-19 Community Family Hub,Supplies and Services,384999,Miscellaneous Expenses,07-May-2020,000009070601827,Amazon.co.uk 8R1B72IF5,5969,Other expenses,29.99,5.00,24.99
Children and Young Peoples Services,Head of Early Help Inclusion & Vulnerable Children.,088102,Consett & Stanley 0-19 Targeted Family Support,Supplies and Services,304403,Equipment and Materials,07-May-2020,000009070601837,AMZNMKTPLACE AMAZON.CO,5999,Other consumables,192.00,32.00,160.00
Children and Young Peoples Services,Head of Childrens Social Care,085342,16 Hickstead Rise (previously 9 Cedar Ave),Supplies and Services,342506,Provisions E324,07-May-2020,000009070601883,WWW.NISBETS.COM,5964,Shopping Provision COVID19,36.31,0.00,36.31
Children and Young Peoples Services,Head of Childrens Social Care,085334,West Rainton Satelite Home,Supplies and Services,324117,Provisions E324,07-May-2020,000009070601893,TESCO STORES 2371,5411,Catering costs - provisions,113.38,0.00,113.38
Children and Young Peoples Services,Head of Childrens Social Care,085334,West Rainton Satelite Home,Supplies and Services,324117,Provisions E324,07-May-2020,000009070601903,LIDL GB DURHAM,5411,Catering costs - provisions,10.95,0.00,10.95
Children and Young Peoples Services,Head of Early Help Inclusion & Vulnerable Children.,085954,Walworth,Supplies and Services,328041,Clothing uniforms and laundry E328,07-May-2020,000009070601929,FOOTASYLUM PLC,5691,Clothing uniforms and laundry,37.98,0.00,37.98
Children and Young Peoples Services,Head of Early Help Inclusion & Vulnerable Children.,085954,Walworth,Supplies and Services,304649,Equipment and Materials,07-May-2020,000009070601937,ARGOS LTD,5310,Toys,286.91,0.00,286.91
Children and Young Peoples Services,Head of Early Help Inclusion & Vulnerable Children.,085954,Walworth,Supplies and Services,304649,Equipment and Materials,07-May-2020,000009070601945,SPORTSDIRECT.COM,5941,Toys,37.98,0.00,37.98
Neighbourhoods and Climate Change,Environmental Services,010301,C&G - North Grounds Maintenance,Supplies and Services,304221,Equipment and Materials,07-May-2020,000009070602121,AZTEC CHEMICALS LTD,5169,Direct materials,185.76,30.96,154.80
Children and Young Peoples Services,Head of Early Help Inclusion & Vulnerable Children.,085801,CDYJS - Support,Supplies and Services,384999,Miscellaneous Expenses,07-May-2020,000009070602161,Amazon.co.uk 8C8V46HF5,5969,Other expenses,13.33,0.00,13.33
Children and Young Peoples Services,Head of Childrens Social Care,085352,Tow Law CU,Supplies and Services,304403,Equipment and Materials,07-May-2020,000009070602195,AMZNMktplace,5999,Other consumables,26.98,4.50,22.48
Children and Young Peoples Services,Head of Childrens Social Care,085352,Tow Law CU,Supplies and Services,304403,Equipment and Materials,07-May-2020,000009070602201,AMZNMktplace,5999,Other consumables,7.99,1.33,6.66
Children and Young Peoples Services,Head of Childrens Social Care,085352,Tow Law CU,Supplies and Services,304403,Equipment and Materials,07-May-2020,000009070602211,AMZNMktplace,5999,Other consumables,19.98,3.34,16.64
Children and Young Peoples Services,Head of Childrens Social Care,085352,Tow Law CU,Supplies and Services,304403,Equipment and Materials,07-May-2020,000009070602219,AMZNMktplace,5999,Other consumables,9.97,0.00,9.97
Children and Young Peoples Services,Head of Childrens Social Care,085342,16 Hickstead Rise (previously 9 Cedar Ave),Supplies and Services,324117,Provisions E324,07-May-2020,000009070602233,TESCO STORES 2916,5411,Catering costs - provisions,125.57,0.00,125.57
Children and Young Peoples Services,Head of Education and Skills,071802,Louisa Cent Nursery,Supplies and Services,324117,Provisions E324,07-May-2020,000009070602241,ALDI STORES,5411,Catering costs - provisions,5.10,0.85,4.25
Children and Young Peoples Services,Head of Education and Skills,071802,Louisa Cent Nursery,Supplies and Services,324117,Provisions E324,07-May-2020,000009070602241 - 1,ALDI STORES,5411,Catering costs - provisions,16.35,,16.35
Children and Young Peoples Services,Head of Childrens Social Care,085650,Pre Birth Team,Supplies and Services,304403,Equipment and Materials,07-May-2020,000009070602459,TESCO ONLINE,5999,Other consumables,-0.99,0.00,-0.99
Children and Young Peoples Services,Head of Education and Skills,071801,Selby Cottage Childcare Centre,Supplies and Services,304999,Equipment and Materials,08-May-2020,000009070600333,Amazon Prime IH2658YS5,5968,Misc equipment tools and materials,7.99,0.00,7.99
Resources BK0010,Digital and Customer Services,065303,Design & Print - Design,Supplies and Services,342053,Computers and Communications,08-May-2020,000009070600433,ISSUU,5045,Computer software,340.36,0.00,340.36
Children and Young Peoples Services,Head of Early Help Inclusion & Vulnerable Children.,085956,Lumley,Supplies and Services,304403,Equipment and Materials,08-May-2020,000009070600711,AMZNMktplace,5999,Other consumables,7.92,1.32,6.60
Children and Young Peoples Services,Head of Early Help Inclusion & Vulnerable Children.,085956,Lumley,Supplies and Services,304403,Equipment and Materials,08-May-2020,000009070600711 - 1,AMZNMktplace,5999,Other consumables,0.04,,0.04
Children and Young Peoples Services,Head of Childrens Social Care,085342,16 Hickstead Rise (previously 9 Cedar Ave),Supplies and Services,348037,Subsistence E348,08-May-2020,000009070601581,THE OLIVE GARDEN,5812,Subsistence,37.90,0.00,37.90
Children and Young Peoples Services,Head of Childrens Social Care,085342,16 Hickstead Rise (previously 9 Cedar Ave),Supplies and Services,324117,Provisions E324,08-May-2020,000009070601601,TESCO STORES 2916,5411,Catering costs - provisions,23.97,0.00,23.97
Children and Young Peoples Services,Head of Childrens Social Care,085342,16 Hickstead Rise (previously 9 Cedar Ave),Supplies and Services,344033,Telephones,08-May-2020,000009070601615,WWW.VOXI.CO.UK,4814,Telephones general-all costs,10.00,0.00,10.00
Children and Young Peoples Services,Head of Early Help Inclusion & Vulnerable Children.,085957,Secure Management,Supplies and Services,384999,Miscellaneous Expenses,08-May-2020,000009070601715,Amazon.co.uk 5W5D07RV5,5969,Other expenses,10.00,0.00,10.00
Children and Young Peoples Services,Head of Early Help Inclusion & Vulnerable Children.,085957,Secure Management,Supplies and Services,324117,Provisions E324,08-May-2020,000009070601719,TESCO STORES 6329,5411,Catering costs - provisions,146.02,0.00,146.02
Children and Young Peoples Services,Head of Early Help Inclusion & Vulnerable Children.,085957,Secure Management,Supplies and Services,384999,Miscellaneous Expenses,08-May-2020,000009070601949,Amazon.co.uk 7O3FN1555,5969,Other expenses,11.16,0.00,11.16
Children and Young Peoples Services,Head of Early Help Inclusion & Vulnerable Children.,085957,Secure Management,Supplies and Services,384999,Miscellaneous Expenses,08-May-2020,000009070601957,Amazon.co.uk AI4Q78CY5,5969,Other expenses,117.18,0.00,117.18
Children and Young Peoples Services,Head of Early Help Inclusion & Vulnerable Children.,085957,Secure Management,Supplies and Services,384999,Miscellaneous Expenses,08-May-2020,000009070601965,Amazon.co.uk UL6MI76K5,5969,Other expenses,11.16,0.00,11.16
Children and Young Peoples Services,Head of Childrens Social Care,085332,Middlestone Moor CU,Supplies and Services,304221,Equipment and Materials,08-May-2020,000009070602033,B & Q 1120,5200,Direct materials,39.94,0.00,39.94
Children and Young Peoples Services,Head of Childrens Social Care,085333,Coxhoe Satelite Home,Supplies and Services,324117,Provisions E324,08-May-2020,000009070602135,CO-OP GROUP 310016,5411,Catering costs - provisions,7.00,0.00,7.00
Children and Young Peoples Services,Head of Childrens Social Care,085333,Coxhoe Satelite Home,Supplies and Services,348037,Subsistence E348,08-May-2020,000009070602145,Pizza Roma,5812,Subsistence,36.90,0.00,36.90
Children and Young Peoples Services,Head of Childrens Social Care,085352,Tow Law CU,Supplies and Services,304403,Equipment and Materials,08-May-2020,000009070602225,AMZNMktplace,5999,Other consumables,17.60,2.93,14.67
Adult and Health Services,Head of Adults,055643,Hawthorn House LD Respite Unit,Supplies and Services,324117,Provisions E324,08-May-2020,000009073513877,BATLEYS PERTH,5300,Catering costs - provisions,16.14,2.69,13.45
Adult and Health Services,Head of Adults,055643,Hawthorn House LD Respite Unit,Supplies and Services,324117,Provisions E324,08-May-2020,000009073513877 - 1,BATLEYS PERTH,5300,Catering costs - provisions,24.16,,24.16
"Regeneration, Economy and Growth",Business Durham CL0850,030689,Inward Investment and Aftercare,Supplies and Services,304999,Equipment and Materials,09-May-2020,000009070600267,MAILCHIMP MONTHLY,5968,Misc equipment tools and materials,82.65,0.00,82.65
"Regeneration, Economy and Growth",Development and Housing,031576,B& B - Temp Accom,Supplies and Services,364320,Grants to Voluntary Organisations,09-May-2020,000009070600471,GRAINGER HOTEL,7011,Accommodation assistance,250.00,0.00,250.00
Children and Young Peoples Services,Head of Childrens Social Care,085332,Middlestone Moor CU,Supplies and Services,304221,Equipment and Materials,09-May-2020,000009070600659,PAYPAL AARDVARKJAN EB,5085,Direct materials,16.95,0.00,16.95
Children and Young Peoples Services,Head of Early Help Inclusion & Vulnerable Children.,085956,Lumley,Supplies and Services,328041,Clothing uniforms and laundry E328,09-May-2020,000009070600717,PRETTYLITTLETHING.COM,5691,Clothing uniforms and laundry,-40.00,0.00,-40.00
"Regeneration, Economy and Growth",Development and Housing,031576,B& B - Temp Accom,Supplies and Services,352001,Conference Expenses,09-May-2020,000009070600861,GRAINGER APARTMENTS NE,7011,Conferencesseminars fees etc,150.00,0.00,150.00
Children and Young Peoples Services,Head of Childrens Social Care,085342,16 Hickstead Rise (previously 9 Cedar Ave),Supplies and Services,348037,Subsistence E348,09-May-2020,000009070600955,ShakeNCake,5812,Subsistence,21.50,0.00,21.50
Children and Young Peoples Services,Head of Childrens Social Care,085332,Middlestone Moor CU,Supplies and Services,304221,Equipment and Materials,09-May-2020,000009070601097,HOLLAND REED,5211,Direct materials,15.50,0.00,15.50
Children and Young Peoples Services,Head of Childrens Social Care,085332,Middlestone Moor CU,Supplies and Services,324117,Provisions E324,09-May-2020,000009070601101,SumUp Wonderful Whip,5499,Catering costs - provisions,5.40,0.00,5.40
Children and Young Peoples Services,Head of Childrens Social Care,085333,Coxhoe Satelite Home,Supplies and Services,304403,Equipment and Materials,09-May-2020,000009070601547,AMZNMktplace,5999,Other consumables,20.42,3.41,17.01
Children and Young Peoples Services,Head of Early Help Inclusion & Vulnerable Children.,085957,Secure Management,Supplies and Services,384999,Miscellaneous Expenses,09-May-2020,000009070601737,THE BODY SHOP INTL LTD,7230,Other expenses,160.49,0.00,160.49
Children and Young Peoples Services,Head of Early Help Inclusion & Vulnerable Children.,085957,Secure Management,Supplies and Services,384999,Miscellaneous Expenses,09-May-2020,000009070601743,THE BODY SHOP INTL LTD,7230,Other expenses,52.49,0.00,52.49
Children and Young Peoples Services,Head of Early Help Inclusion & Vulnerable Children.,088102,Consett & Stanley 0-19 Targeted Family Support,Supplies and Services,384999,Miscellaneous Expenses,09-May-2020,000009070601843,Amazon.co.uk UC0X504M5,5969,Other expenses,36.00,6.00,30.00
Children and Young Peoples Services,Head of Early Help Inclusion & Vulnerable Children.,088102,Consett & Stanley 0-19 Targeted Family Support,Supplies and Services,384999,Miscellaneous Expenses,09-May-2020,000009070601843 - 1,Amazon.co.uk UC0X504M5,5969,Other expenses,74.70,,74.70
Children and Young Peoples Services,Head of Early Help Inclusion & Vulnerable Children.,085957,Secure Management,Supplies and Services,384999,Miscellaneous Expenses,09-May-2020,000009070601969,Amazon.co.uk CB0FP6XI5,5969,Other expenses,5.58,0.00,5.58
Children and Young Peoples Services,Head of Early Help Inclusion & Vulnerable Children.,085957,Secure Management,Supplies and Services,384999,Miscellaneous Expenses,09-May-2020,000009070601977,Amazon.co.uk MK9GG7UJ5,5969,Other expenses,5.58,0.00,5.58
Children and Young Peoples Services,Head of Early Help Inclusion & Vulnerable Children.,085957,Secure Management,Supplies and Services,384999,Miscellaneous Expenses,09-May-2020,000009070601981,Amazon.co.uk 042AT4P25,5969,Other expenses,5.58,0.00,5.58
Children and Young Peoples Services,Head of Early Help Inclusion & Vulnerable Children.,085957,Secure Management,Supplies and Services,384999,Miscellaneous Expenses,09-May-2020,000009070601989,Amazon.co.uk 2Y8OS6UQ5,5969,Other expenses,5.58,0.00,5.58
Children and Young Peoples Services,Head of Early Help Inclusion & Vulnerable Children.,085957,Secure Management,Supplies and Services,384999,Miscellaneous Expenses,09-May-2020,000009070601995,Amazon.co.uk 8R33Q7DU5,5969,Other expenses,5.58,0.00,5.58
Children and Young Peoples Services,Head of Childrens Social Care,085332,Middlestone Moor CU,Supplies and Services,304221,Equipment and Materials,09-May-2020,000009070602043,B & Q 1120,5200,Direct materials,15.45,0.00,15.45
Children and Young Peoples Services,Head of Childrens Social Care,085332,Middlestone Moor CU,Supplies and Services,304221,Equipment and Materials,09-May-2020,000009070602051,NINE ACRES NURSERIES,5261,Direct materials,62.00,0.00,62.00
Children and Young Peoples Services,Head of Childrens Social Care,085332,Middlestone Moor CU,Supplies and Services,304999,Equipment and Materials,09-May-2020,000009070602057,HOME BARGAINS SPENNYMO,5251,Misc equipment tools and materials,36.80,0.00,36.80
Children and Young Peoples Services,Head of Childrens Social Care,085341,High Etherley Satelite Home,Supplies and Services,348037,Subsistence E348,09-May-2020,000009070602419,Just Eat,5814,Subsistence,28.80,0.00,28.80
Children and Young Peoples Services,Head of Childrens Social Care,085341,High Etherley Satelite Home,Supplies and Services,304403,Equipment and Materials,09-May-2020,000009070602429,AMZNMktplace,5999,Other consumables,11.67,0.00,11.67
Children and Young Peoples Services,Head of Childrens Social Care,085332,Middlestone Moor CU,Supplies and Services,304403,Equipment and Materials,10-May-2020,000009070600591,AMZNMKTPLACE AMAZON.CO,5999,Other consumables,24.38,0.00,24.38
Children and Young Peoples Services,Head of Childrens Social Care,085352,Tow Law CU,Supplies and Services,304403,Equipment and Materials,10-May-2020,000009070600905,AMZNMKTPLACE AMAZON.CO,5999,Other consumables,129.95,21.66,108.29
Children and Young Peoples Services,Head of Childrens Social Care,085334,West Rainton Satelite Home,Supplies and Services,304999,Equipment and Materials,10-May-2020,000009070601043,WWW.TOOLSTATION.COM,5251,Misc equipment tools and materials,44.98,0.00,44.98
Children and Young Peoples Services,Head of Childrens Social Care,085332,Middlestone Moor CU,Supplies and Services,304259,Equipment and Materials,10-May-2020,000009070601107,HALFORDS ON LINE,5940,Equipment-purchase and rental,116.98,0.00,116.98
Adult and Health Services,Head of Adults,055643,Hawthorn House LD Respite Unit,Supplies and Services,304403,Equipment and Materials,10-May-2020,000009070601531,AMZNMktplace,5999,Other consumables,51.88,0.00,51.88
Children and Young Peoples Services,Head of Childrens Social Care,085333,Coxhoe Satelite Home,Supplies and Services,304403,Equipment and Materials,10-May-2020,000009070601553,AMZNMktplace,5999,Other consumables,2.64,0.44,2.20
Children and Young Peoples Services,Head of Childrens Social Care,085333,Coxhoe Satelite Home,Supplies and Services,304403,Equipment and Materials,10-May-2020,000009070601553 - 1,AMZNMktplace,5999,Other consumables,0.04,,0.04
Children and Young Peoples Services,Head of Childrens Social Care,085342,16 Hickstead Rise (previously 9 Cedar Ave),Supplies and Services,304403,Equipment and Materials,10-May-2020,000009070601623,AMZNMktplace,5999,Other consumables,25.99,0.00,25.99
Children and Young Peoples Services,Head of Childrens Social Care,085342,16 Hickstead Rise (previously 9 Cedar Ave),Supplies and Services,304403,Equipment and Materials,10-May-2020,000009070601629,AMZNMktplace,5999,Other consumables,16.57,0.00,16.57
Children and Young Peoples Services,Head of Early Help Inclusion & Vulnerable Children.,085957,Secure Management,Supplies and Services,384999,Miscellaneous Expenses,10-May-2020,000009070601723,Amazon.co.uk KI09S17X5,5969,Other expenses,9.96,1.66,8.30
Children and Young Peoples Services,Head of Early Help Inclusion & Vulnerable Children.,085957,Secure Management,Supplies and Services,384999,Miscellaneous Expenses,10-May-2020,000009070601723 - 1,Amazon.co.uk KI09S17X5,5969,Other expenses,0.99,,0.99
Children and Young Peoples Services,Head of Early Help Inclusion & Vulnerable Children.,085957,Secure Management,Supplies and Services,384999,Miscellaneous Expenses,10-May-2020,000009070601729,Amazon.co.uk SK4RC3MY5,5969,Other expenses,9.90,1.66,8.24
Children and Young Peoples Services,Head of Early Help Inclusion & Vulnerable Children.,085957,Secure Management,Supplies and Services,384999,Miscellaneous Expenses,10-May-2020,000009070601733,Amazon.co.uk 6T0DE3J55,5969,Other expenses,9.96,1.66,8.30
Children and Young Peoples Services,Head of Early Help Inclusion & Vulnerable Children.,085957,Secure Management,Supplies and Services,384999,Miscellaneous Expenses,10-May-2020,000009070601733 - 1,Amazon.co.uk 6T0DE3J55,5969,Other expenses,0.99,,0.99
Children and Young Peoples Services,Head of Education and Skills,078100,Curric and Professional Development 078100,Supplies and Services,304403,Equipment and Materials,10-May-2020,000009070601765,AMZNMktplace,5999,Other consumables,4.99,0.00,4.99
Children and Young Peoples Services,Head of Early Help Inclusion & Vulnerable Children.,085962,Aycliffe Secure - Durham,Supplies and Services,384999,Miscellaneous Expenses,10-May-2020,000009070602003,Amazon.co.uk 556D79K55,5969,Other expenses,27.99,4.67,23.32
Children and Young Peoples Services,Head of Childrens Social Care,085332,Middlestone Moor CU,Supplies and Services,304403,Equipment and Materials,10-May-2020,000009070602063,AMZNMktplace,5999,Other consumables,19.80,3.32,16.48
Children and Young Peoples Services,Head of Childrens Social Care,085332,Middlestone Moor CU,Supplies and Services,304403,Equipment and Materials,10-May-2020,000009070602069,AMZNMktplace,5999,Other consumables,4.99,0.83,4.16
Children and Young Peoples Services,Head of Childrens Social Care,085332,Middlestone Moor CU,Supplies and Services,324117,Provisions E324,10-May-2020,000009070602075,WILKO RETAIL LIMITED,5399,Catering costs - provisions,11.08,0.00,11.08
Children and Young Peoples Services,Head of Childrens Social Care,085332,Middlestone Moor CU,Supplies and Services,324117,Provisions E324,10-May-2020,000009070602077,MARTIN MCCOLL,5499,Catering costs - provisions,20.00,0.00,20.00
Children and Young Peoples Services,Head of Childrens Social Care,085332,Middlestone Moor CU,Supplies and Services,384999,Miscellaneous Expenses,10-May-2020,000009070602087,Amazon.co.uk 0612I5B15,5969,Other expenses,5.95,0.99,4.96
Children and Young Peoples Services,Head of Childrens Social Care,085332,Middlestone Moor CU,Supplies and Services,384999,Miscellaneous Expenses,10-May-2020,000009070602095,Amazon.co.uk 2Q0WL3CS5,5969,Other expenses,5.95,0.99,4.96
Children and Young Peoples Services,Head of Childrens Social Care,085332,Middlestone Moor CU,Supplies and Services,304403,Equipment and Materials,10-May-2020,000009070602099,AMZNMktplace,5999,Other consumables,4.54,0.76,3.78
Children and Young Peoples Services,Head of Childrens Social Care,085333,Coxhoe Satelite Home,Supplies and Services,324117,Provisions E324,10-May-2020,000009070602153,SAINSBURYS (2303),5411,Catering costs - provisions,52.95,0.00,52.95
Children and Young Peoples Services,Head of Early Help Inclusion & Vulnerable Children.,088107,Ferryhill & Newton Aycliffe 0-19 Community Family Hub,Supplies and Services,304403,Equipment and Materials,10-May-2020,000009070602327,AMZNMktplace,5999,Other consumables,5.99,1.00,4.99
Chief Executive's Office,Communications Management,060270,Communications and Marketing,Supplies and Services,336005,Advertising E336,10-May-2020,000009070602373,FACEBK 36AFER65B2,7311,Advertising other than for staff,500.00,0.00,500.00
Transformation and Partnerships,Communications Management,060270,Communications and Marketing,Supplies and Services,336005,Advertising E336,10-May-2020,000009070602373,FACEBK 36AFER65B2,7311,Advertising other than for staff,500.00,0.00,500.00
Children and Young Peoples Services,Head of Childrens Social Care,085341,High Etherley Satelite Home,Supplies and Services,324117,Provisions E324,10-May-2020,000009070602437,TESCO STORES 6329,5411,Catering costs - provisions,20.54,0.00,20.54
"Regeneration, Economy and Growth",Business Durham CL0850,030689,Inward Investment and Aftercare,Third Party Payments,430100,Rendered by Private Contractors,10-May-2020,000009073513291,BLS monday.com,7399,Payments to sub-contractors,148.80,24.80,124.00
Children and Young Peoples Services,Head of Childrens Social Care,085333,Coxhoe Satelite Home,Supplies and Services,384999,Miscellaneous Expenses,10-May-2020,000009073514001,PAYPAL XTREME GEN EBA,5946,Other expenses,1.99,0.00,1.99
"Regeneration, Economy and Growth",Business Durham CL0850,030689,Inward Investment and Aftercare,Supplies and Services,304999,Equipment and Materials,11-May-2020,000009070600271,MAILCHIMP MONTHLY,5968,Misc equipment tools and materials,2.27,0.00,2.27
Children and Young Peoples Services,Head of Education and Skills,071801,Selby Cottage Childcare Centre,Supplies and Services,324117,Provisions E324,11-May-2020,000009070600343,TESCO STORES 2371,5411,Catering costs - provisions,13.28,0.00,13.28
Resources BK0010,Digital and Customer Services,070110,School Services - Man Info System (MIS) Support Team,Supplies and Services,342053,Computers and Communications,11-May-2020,000009070600441,WPMU DEV INCSUBFEE.COM,7372,Computer software,0.43,0.00,0.43
Resources BK0010,Digital and Customer Services,065303,Design & Print - Design,Supplies and Services,342053,Computers and Communications,11-May-2020,000009070600443,ISSUU,5045,Computer software,9.36,0.00,9.36
Children and Young Peoples Services,Head of Early Help Inclusion & Vulnerable Children.,085957,Secure Management,Supplies and Services,324117,Provisions E324,11-May-2020,000009070601749,TESCO STORES 6329,5411,Catering costs - provisions,37.00,0.00,37.00
Children and Young Peoples Services,Head of Education and Skills,071801,Selby Cottage Childcare Centre,Supplies and Services,304403,Equipment and Materials,11-May-2020,000009073513339,MAXWELLS D I Y,5231,Other consumables,59.98,0.00,59.98
Children and Young Peoples Services,Head of Childrens Social Care,085332,Middlestone Moor CU,Supplies and Services,304403,Equipment and Materials,11-May-2020,000009073513435,AMZNMKTPLACE AMAZON.CO,5999,Other consumables,13.99,0.00,13.99
"Regeneration, Economy and Growth",Culture Sport and Tourism,054812,Gala Theatre - Catering etc,Supplies and Services,324117,Provisions E324,11-May-2020,000009073513455,JR HOLLAND FOODSERVICE,5499,Catering costs - provisions,54.12,0.00,54.12
"Regeneration, Economy and Growth",Culture Sport and Tourism,054812,Gala Theatre - Catering etc,Supplies and Services,324117,Provisions E324,11-May-2020,000009073513463,JR HOLLAND FOODSERVICE,5499,Catering costs - provisions,48.76,0.00,48.76
"Regeneration, Economy and Growth",Culture Sport and Tourism,054812,Gala Theatre - Catering etc,Supplies and Services,324117,Provisions E324,11-May-2020,000009073513469,JR HOLLAND FOODSERVICE,5499,Catering costs - provisions,26.48,0.00,26.48
"Regeneration, Economy and Growth",Development and Housing,031576,B& B - Temp Accom,Supplies and Services,352001,Conference Expenses,11-May-2020,000009073513477,GRAINGER HOTEL,7011,Conferencesseminars fees etc,100.00,16.67,83.33
"Regeneration, Economy and Growth",Development and Housing,031576,B& B - Temp Accom,Supplies and Services,352001,Conference Expenses,11-May-2020,000009073513483,HI NEWCASTLE WASHI,7011,Conferencesseminars fees etc,85.00,14.17,70.83
Children and Young Peoples Services,Head of Early Help Inclusion & Vulnerable Children.,085957,Secure Management,Supplies and Services,328041,Clothing uniforms and laundry E328,11-May-2020,000009073513495,PRETTYLITTLETHING.COM,5691,Clothing uniforms and laundry,25.99,0.00,25.99
"Regeneration, Economy and Growth",Development and Housing,030772,CLLD South,Supplies and Services,304259,Equipment and Materials,11-May-2020,000009073513503,SECURITY INDUSTRY,7393,Equipment-purchase and rental,190.00,0.00,190.00
Children and Young Peoples Services,Head of Education and Skills,071732,Dean Bank Childcare,Supplies and Services,324117,Provisions E324,11-May-2020,000009073513511,SAINSBURYS (2303),5411,Catering costs - provisions,48.28,0.00,48.28
Children and Young Peoples Services,Head of Childrens Social Care,085332,Middlestone Moor CU,Supplies and Services,324117,Provisions E324,11-May-2020,000009073513523,COOPLANDS BAKERY,5462,Catering costs - provisions,5.57,0.00,5.57
Children and Young Peoples Services,Head of Childrens Social Care,085332,Middlestone Moor CU,Transport,215995,Running Costs of Vehicles,11-May-2020,000009073513531,PARK HEAD SERVICE,5541,Vehicle running expenses,40.03,0.00,40.03
"Regeneration, Economy and Growth",Development and Housing,031500,Housing Solutions - Core Team,Supplies and Services,352001,Conference Expenses,11-May-2020,000009073513571,HI NEWCASTLE WASHI,7011,Conferencesseminars fees etc,150.00,0.00,150.00
"Regeneration, Economy and Growth",Development and Housing,031500,Housing Solutions - Core Team,Supplies and Services,352001,Conference Expenses,11-May-2020,000009073513577,HI NEWCASTLE WASHI,7011,Conferencesseminars fees etc,75.00,0.00,75.00
"Regeneration, Economy and Growth",Corporate Property and Land,021234,Catering - Locomotion,Supplies and Services,324117,Provisions E324,11-May-2020,000009073513623,JR HOLLAND FOODSERVICE,5499,Catering costs - provisions,55.50,0.00,55.50
"Regeneration, Economy and Growth",Corporate Property and Land,021234,Catering - Locomotion,Supplies and Services,324117,Provisions E324,11-May-2020,000009073513633,JR HOLLAND FOODSERVICE,5499,Catering costs - provisions,32.76,0.00,32.76
"Regeneration, Economy and Growth",Corporate Property and Land,021234,Catering - Locomotion,Supplies and Services,324117,Provisions E324,11-May-2020,000009073513637,JR HOLLAND FOODSERVICE,5499,Catering costs - provisions,87.82,0.00,87.82
"Regeneration, Economy and Growth",Corporate Property and Land,021234,Catering - Locomotion,Supplies and Services,324117,Provisions E324,11-May-2020,000009073513641,JR HOLLAND FOODSERVICE,5499,Catering costs - provisions,-6.16,0.00,-6.16
"Regeneration, Economy and Growth",Development and Housing,031576,B& B - Temp Accom,Supplies and Services,364320,Grants to Voluntary Organisations,11-May-2020,000009073513649,HI NEWCASTLE WASHI,7011,Accommodation assistance,525.00,0.00,525.00
"Regeneration, Economy and Growth",Development and Housing,031576,B& B - Temp Accom,Supplies and Services,364320,Grants to Voluntary Organisations,11-May-2020,000009073513699,HI NEWCASTLE WASHI,7011,Accommodation assistance,255.00,0.00,255.00
Children and Young Peoples Services,Head of Childrens Social Care,085341,High Etherley Satelite Home,Supplies and Services,324117,Provisions E324,11-May-2020,000009073513791,ASDA SUPERSTORE,5411,Catering costs - provisions,34.23,0.00,34.23
Children and Young Peoples Services,Head of Childrens Social Care,085342,16 Hickstead Rise (previously 9 Cedar Ave),Supplies and Services,324117,Provisions E324,11-May-2020,000009073513839,MARTIN MCCOLL,5499,Catering costs - provisions,4.75,0.00,4.75
Adult and Health Services,Head of Adults,055643,Hawthorn House LD Respite Unit,Supplies and Services,324117,Provisions E324,11-May-2020,000009073513883,JR HOLLAND FOODSERVICE,5499,Catering costs - provisions,19.37,0.00,19.37
Neighbourhoods and Climate Change,Environmental Services,010301,C&G - North Grounds Maintenance,Supplies and Services,304999,Equipment and Materials,11-May-2020,000009073513889,GRALANDS WOODWORK SUPP,5251,Misc equipment tools and materials,20.25,0.00,20.25
Children and Young Peoples Services,Head of Early Help Inclusion & Vulnerable Children.,085957,Secure Management,Supplies and Services,384999,Miscellaneous Expenses,11-May-2020,000009073513911,SINOPANGAEA,5946,Other expenses,12.91,0.00,12.91
Children and Young Peoples Services,Head of Childrens Social Care,085332,Middlestone Moor CU,Supplies and Services,304403,Equipment and Materials,11-May-2020,000009073513919,AMZNMKTPLACE AMAZON.CO,5999,Other consumables,31.34,5.23,26.11
Children and Young Peoples Services,Head of Childrens Social Care,085333,Coxhoe Satelite Home,Supplies and Services,384999,Miscellaneous Expenses,11-May-2020,000009073513933,Amazon.co.uk NQ0SB9YN5,5969,Other expenses,26.95,0.00,26.95
Children and Young Peoples Services,Head of Childrens Social Care,085333,Coxhoe Satelite Home,Supplies and Services,384999,Miscellaneous Expenses,11-May-2020,000009073513945,Amazon.co.uk P037M73W5,5969,Other expenses,26.99,0.00,26.99
Adult and Health Services,Head of Adults,055302,Durham Pathways,Supplies and Services,304999,Equipment and Materials,11-May-2020,000009073513957,COSTCO WHOLESALE UK,7278,Misc equipment tools and materials,8.38,0.00,8.38
Children and Young Peoples Services,Head of Childrens Social Care,085342,16 Hickstead Rise (previously 9 Cedar Ave),Supplies and Services,324117,Provisions E324,11-May-2020,000009073514011,TESCO STORES 2916,5411,Catering costs - provisions,129.43,0.00,129.43
Children and Young Peoples Services,Head of Childrens Social Care,085341,High Etherley Satelite Home,Supplies and Services,324117,Provisions E324,11-May-2020,000009073514041,CO-OP GROUP 010989,5411,Catering costs - provisions,7.00,0.00,7.00
Children and Young Peoples Services,Head of Childrens Social Care,085333,Coxhoe Satelite Home,Supplies and Services,384999,Miscellaneous Expenses,11-May-2020,000009075172603,TICKETMASTER UK,7922,Other expenses,-104.05,0.00,-104.05
Children and Young Peoples Services,Head of Early Help Inclusion & Vulnerable Children.,088107,Ferryhill & Newton Aycliffe 0-19 Community Family Hub,Supplies and Services,304403,Equipment and Materials,11-May-2020,000009075172625,AMZNMKTPLACE AMAZON.CO,5999,Other consumables,25.98,4.34,21.64
Children and Young Peoples Services,Head of Childrens Social Care,085341,High Etherley Satelite Home,Supplies and Services,324117,Provisions E324,12-May-2020,000009075172013,TESCO STORES 2371,5411,Catering costs - provisions,147.05,0.00,147.05
"Regeneration, Economy and Growth",Development and Housing,031617,Project Beta Sustainability Fund,Supplies and Services,324117,Provisions E324,12-May-2020,000009075172039,MARTIN MCCOLL,5499,Catering costs - provisions,20.00,0.00,20.00
"Regeneration, Economy and Growth",Development and Housing,031500,Housing Solutions - Core Team,Supplies and Services,304259,Equipment and Materials,12-May-2020,000009075172079,LIVIN HOUSING,9399,Equipment-purchase and rental,79.30,0.00,79.30
Children and Young Peoples Services,Head of Childrens Social Care,085332,Middlestone Moor CU,Supplies and Services,324117,Provisions E324,12-May-2020,000009075172101,TESCO STORES 6329,5411,Catering costs - provisions,92.02,0.00,92.02
Children and Young Peoples Services,Head of Childrens Social Care,085332,Middlestone Moor CU,Supplies and Services,324117,Provisions E324,12-May-2020,000009075172105,ALDI 74 774,5411,Catering costs - provisions,19.71,0.00,19.71
Children and Young Peoples Services,Head of Childrens Social Care,085358,Durham Road Sacriston childrens residential,Supplies and Services,304403,Equipment and Materials,12-May-2020,000009075172123,AMZNMktplace,5999,Other consumables,46.76,0.00,46.76
Children and Young Peoples Services,Head of Childrens Social Care,085358,Durham Road Sacriston childrens residential,Supplies and Services,304403,Equipment and Materials,12-May-2020,000009075172129,AMZNMktplace,5999,Other consumables,-21.88,0.00,-21.88
Children and Young Peoples Services,Head of Childrens Social Care,085352,Tow Law CU,Supplies and Services,324117,Provisions E324,12-May-2020,000009075172147,CO-OP GROUP 010989,5411,Catering costs - provisions,20.25,0.00,20.25
Children and Young Peoples Services,Head of Education and Skills,070264,EDC Premises,Supplies and Services,324117,Provisions E324,12-May-2020,000009075172155,TOTAL PRODUCE GATESHEA,5411,Catering costs - provisions,10.17,0.00,10.17
Children and Young Peoples Services,Head of Early Help Inclusion & Vulnerable Children.,085965,Barnard,Supplies and Services,304403,Equipment and Materials,12-May-2020,000009075172185,AMZNMktplace,5999,Other consumables,2.95,0.49,2.46
"Regeneration, Economy and Growth",Culture Sport and Tourism,011217,Commercial Management 011217,Supplies and Services,338057,Services,12-May-2020,000009075172197,WWW.EUREKADIRECT.CO.UK,5047,Medical fees 338057,82.57,13.76,68.81
"Regeneration, Economy and Growth",Culture Sport and Tourism,011217,Commercial Management 011217,Supplies and Services,338057,Services,12-May-2020,000009075172201,WWW.EUREKADIRECT.CO.UK,5047,Medical fees 338057,82.57,13.76,68.81
"Regeneration, Economy and Growth",Culture Sport and Tourism,011217,Commercial Management 011217,Supplies and Services,338057,Services,12-May-2020,000009075172205,WWW.EUREKADIRECT.CO.UK,5047,Medical fees 338057,82.57,13.76,68.81
"Regeneration, Economy and Growth",Culture Sport and Tourism,011217,Commercial Management 011217,Supplies and Services,338057,Services,12-May-2020,000009075172207,WWW.EUREKADIRECT.CO.UK,5047,Medical fees 338057,82.57,13.76,68.81
"Regeneration, Economy and Growth",Culture Sport and Tourism,011217,Commercial Management 011217,Supplies and Services,338057,Services,12-May-2020,000009075172213,WWW.EUREKADIRECT.CO.UK,5047,Medical fees 338057,82.57,13.76,68.81
"Regeneration, Economy and Growth",Development and Housing,031576,B& B - Temp Accom,Supplies and Services,352001,Conference Expenses,12-May-2020,000009075172217,BUDGET H EXPRESS HOTEL,7011,Conferencesseminars fees etc,89.00,14.83,74.17
"Regeneration, Economy and Growth",Development and Housing,031500,Housing Solutions - Core Team,Supplies and Services,352001,Conference Expenses,12-May-2020,000009075172281,TOAST LETTINGS,7011,Conferencesseminars fees etc,300.00,0.00,300.00
"Regeneration, Economy and Growth",Development and Housing,031500,Housing Solutions - Core Team,Supplies and Services,352001,Conference Expenses,12-May-2020,000009075172283,TOAST LETTINGS,7011,Conferencesseminars fees etc,260.00,0.00,260.00
"Regeneration, Economy and Growth",Development and Housing,031500,Housing Solutions - Core Team,Supplies and Services,352001,Conference Expenses,12-May-2020,000009075172289,AYCLIFFE BIZ,7011,Conferencesseminars fees etc,114.00,0.00,114.00
"Regeneration, Economy and Growth",Development and Housing,031500,Housing Solutions - Core Team,Supplies and Services,352001,Conference Expenses,12-May-2020,000009075172295,AYCLIFFE BIZ,7011,Conferencesseminars fees etc,114.00,0.00,114.00
"Regeneration, Economy and Growth",Development and Housing,031500,Housing Solutions - Core Team,Supplies and Services,352001,Conference Expenses,12-May-2020,000009075172297,GRAINGER HOTEL,7011,Conferencesseminars fees etc,100.00,0.00,100.00
"Regeneration, Economy and Growth",Development and Housing,031500,Housing Solutions - Core Team,Supplies and Services,352001,Conference Expenses,12-May-2020,000009075172303,HI NEWCASTLE WASHI,7011,Conferencesseminars fees etc,150.00,0.00,150.00
Children and Young Peoples Services,Head of Childrens Social Care,085331,New Lea Childrens Home,Supplies and Services,304999,Equipment and Materials,12-May-2020,000009075172399,WWW.GREENSTATIONERY.CO,5968,Misc equipment tools and materials,-37.38,0.00,-37.38
Adult and Health Services,Head of Adults,055643,Hawthorn House LD Respite Unit,Supplies and Services,324117,Provisions E324,12-May-2020,000009075172421,CO-OP GROUP 010465,5411,Catering costs - provisions,11.80,0.00,11.80
Children and Young Peoples Services,COVID19 - Children and Young Peoples Services,091002,COVID19 - Children and Young Peoples Services,Supplies and Services,304999,Equipment and Materials,12-May-2020,000009075172425,HOME BARGAINS,5251,Misc equipment tools and materials,22.98,0.00,22.98
Children and Young Peoples Services,Head of Childrens Social Care,085333,Coxhoe Satelite Home,Supplies and Services,324117,Provisions E324,12-May-2020,000009075172433,TESCO STORES 2371,5411,Catering costs - provisions,229.82,0.00,229.82
Children and Young Peoples Services,Head of Childrens Social Care,085333,Coxhoe Satelite Home,Supplies and Services,324117,Provisions E324,12-May-2020,000009075172439,TESCO STORES 2371,5411,Catering costs - provisions,19.95,0.00,19.95
Children and Young Peoples Services,Head of Childrens Social Care,085333,Coxhoe Satelite Home,Supplies and Services,324001,Provisions E324,12-May-2020,000009075172443,COXHOE DISCOUNT STORE,5921,Bar supplies,5.30,0.00,5.30
Neighbourhoods and Climate Change,Environmental Services,010301,C&G - North Grounds Maintenance,Third Party Payments,430100,Rendered by Private Contractors,12-May-2020,000009075172503,JOHN WARREN (ANIMAL BY,7399,Payments to sub-contractors,12.00,0.00,12.00
Children and Young Peoples Services,Head of Early Help Inclusion & Vulnerable Children.,088103,Consett & Stanley 0-19 Community Family Hub,Supplies and Services,384999,Miscellaneous Expenses,12-May-2020,000009075172509,Amazon.co.uk SM6IP0A45,5969,Other expenses,8.32,0.00,8.32
Children and Young Peoples Services,Head of Early Help Inclusion & Vulnerable Children.,088103,Consett & Stanley 0-19 Community Family Hub,Supplies and Services,304403,Equipment and Materials,12-May-2020,000009075172513,AMZNMktplace,5999,Other consumables,24.49,4.08,20.41
Children and Young Peoples Services,Head of Early Help Inclusion & Vulnerable Children.,088103,Consett & Stanley 0-19 Community Family Hub,Supplies and Services,304403,Equipment and Materials,12-May-2020,000009075172515,AMZNMktplace,5999,Other consumables,17.14,2.86,14.28
Resources BK0010,Digital and Customer Services,065335,School Services - Implementations,Supplies and Services,304639,Equipment and Materials,12-May-2020,000009075172517,AMZNMktplace,5999,Technicians-supplies,89.99,15.00,74.99
Children and Young Peoples Services,Head of Childrens Social Care,085334,West Rainton Satelite Home,Supplies and Services,324117,Provisions E324,12-May-2020,000009075172535,TESCO STORES 2371,5411,Catering costs - provisions,116.12,0.00,116.12
Children and Young Peoples Services,Head of Childrens Social Care,085334,West Rainton Satelite Home,Supplies and Services,324117,Provisions E324,12-May-2020,000009075172537,TESCO STORES 2371,5411,Catering costs - provisions,18.17,0.00,18.17
Children and Young Peoples Services,Head of Early Help Inclusion & Vulnerable Children.,085957,Secure Management,Supplies and Services,304245,Equipment and Materials,12-May-2020,000009075172539,AMZNMktplace,5999,Materials,12.97,2.16,10.81
Children and Young Peoples Services,Head of Early Help Inclusion & Vulnerable Children.,085957,Secure Management,Supplies and Services,304403,Equipment and Materials,12-May-2020,000009075172541,PAYPAL ESPSPECIALB,5732,Other consumables,465.60,77.60,388.00
Children and Young Peoples Services,Head of Early Help Inclusion & Vulnerable Children.,085962,Aycliffe Secure - Durham,Supplies and Services,328041,Clothing uniforms and laundry E328,12-May-2020,000009075172543,VERY,5964,Clothing uniforms and laundry,74.99,0.00,74.99
Children and Young Peoples Services,COVID19 - Children and Young Peoples Services,091002,COVID19 - Children and Young Peoples Services,Supplies and Services,304403,Equipment and Materials,12-May-2020,000009075172549,AMZNMktplace,5999,Other consumables,19.99,3.33,16.66
Children and Young Peoples Services,Head of Early Help Inclusion & Vulnerable Children.,085962,Aycliffe Secure - Durham,Supplies and Services,384999,Miscellaneous Expenses,12-May-2020,000009075172551,ARGOS LTD,5310,Other expenses,78.94,0.00,78.94
Children and Young Peoples Services,Head of Early Help Inclusion & Vulnerable Children.,085956,Lumley,Supplies and Services,328041,Clothing uniforms and laundry E328,12-May-2020,000009075172555,JD SPORTS INTERNET,5941,Clothing uniforms and laundry,34.99,0.00,34.99
Children and Young Peoples Services,Head of Childrens Social Care,085332,Middlestone Moor CU,Supplies and Services,328041,Clothing uniforms and laundry E328,12-May-2020,000009075172581,ARGOS LTD,5310,Clothing uniforms and laundry,99.90,0.00,99.90
Adult and Health Services,Head of Adults,055301,Stanley Pathways,Supplies and Services,340001,Postages E340,12-May-2020,000009075172589,POST OFFICE COUNTER,9402,Postages,0.88,0.00,0.88
"Regeneration, Economy and Growth",Development and Housing,031576,B& B - Temp Accom,Supplies and Services,364320,Grants to Voluntary Organisations,12-May-2020,000009075172599,GRAINGER HOTEL,7011,Accommodation assistance,100.00,0.00,100.00
Children and Young Peoples Services,Head of Early Help Inclusion & Vulnerable Children.,085810,CDYJS - Interventions Team,Supplies and Services,384999,Miscellaneous Expenses,12-May-2020,000009075172697,Amazon.co.uk 5W4333685,5969,Other expenses,29.95,0.00,29.95
Children and Young Peoples Services,Head of Childrens Social Care,085331,New Lea Childrens Home,Supplies and Services,332047,Printing Stationery and Gen Off Exps,12-May-2020,000009077250635,WWW.POSTOFFICESHOP.CO.,5111,Stationery,31.72,5.29,26.43
Children and Young Peoples Services,Head of Early Help Inclusion & Vulnerable Children.,085962,Aycliffe Secure - Durham,Supplies and Services,328041,Clothing uniforms and laundry E328,12-May-2020,000009077250839,SPORTSDIRECT.COM,5941,Clothing uniforms and laundry,25.99,4.33,21.66
"Regeneration, Economy and Growth",Corporate Property and Land,021242,Catering - County Hall,Supplies and Services,324117,Provisions E324,12-May-2020,000009079351661,TOTAL PRODUCE GATESHEA,5411,Catering costs - provisions,"2,184.38",0.00,2184.38
Children and Young Peoples Services,COVID19 - Children and Young Peoples Services,091002,COVID19 - Children and Young Peoples Services,Supplies and Services,324117,Provisions E324,13-May-2020,000009077250235,WILKO RETAIL LIMITED,5399,Catering costs - provisions,3.70,0.00,3.70
Resources BK0010,Digital and Customer Services,065432,Web Development Group,Supplies and Services,342053,Computers and Communications,13-May-2020,000009077250241,BLS POWERMAPPER,5734,Computer software,238.80,0.00,238.80
"Regeneration, Economy and Growth",Corporate Property and Land,010932,Building Design 010932,Supplies and Services,342053,Computers and Communications,13-May-2020,000009077250243,WWW.CIBSE.ORG,8699,Computer software,400.00,66.67,333.33
Children and Young Peoples Services,Head of Childrens Social Care,085332,Middlestone Moor CU,Supplies and Services,324117,Provisions E324,13-May-2020,000009077250267,WWW.ICELAND.CO.UK,5411,Catering costs - provisions,59.95,0.00,59.95
Children and Young Peoples Services,Head of Childrens Social Care,085332,Middlestone Moor CU,Supplies and Services,324117,Provisions E324,13-May-2020,000009077250271,WWW.ICELAND.CO.UK,5411,Catering costs - provisions,76.03,0.00,76.03
Children and Young Peoples Services,Head of Childrens Social Care,085551,Short Break Services-Park Hse Sher,Supplies and Services,324117,Provisions E324,13-May-2020,000009077250285,TESCO STORES 2371,5411,Catering costs - provisions,58.57,0.00,58.57
Children and Young Peoples Services,Head of Childrens Social Care,085352,Tow Law CU,Supplies and Services,324117,Provisions E324,13-May-2020,000009077250291,TESCO STORES 2371,5411,Catering costs - provisions,55.50,0.00,55.50
Children and Young Peoples Services,Head of Childrens Social Care,085352,Tow Law CU,Supplies and Services,324117,Provisions E324,13-May-2020,000009077250299,TESCO STORES 2916,5411,Catering costs - provisions,9.00,0.00,9.00
Children and Young Peoples Services,Head of Childrens Social Care,085352,Tow Law CU,Supplies and Services,324117,Provisions E324,13-May-2020,000009077250301,ALDI 74 774,5411,Catering costs - provisions,9.68,0.00,9.68
Children and Young Peoples Services,Head of Early Help Inclusion & Vulnerable Children.,088104,BA/BC/Crook 0-19 Targeted Family Support,Supplies and Services,384999,Miscellaneous Expenses,13-May-2020,000009077250305,774 026,5411,Other expenses,2.94,0.00,2.94
Children and Young Peoples Services,Head of Early Help Inclusion & Vulnerable Children.,088116,South Area - Teenage Parent Programme,Supplies and Services,324117,Provisions E324,13-May-2020,000009077250309,774 026,5411,Catering costs - provisions,5.36,0.00,5.36
Children and Young Peoples Services,Head of Childrens Social Care,085332,Middlestone Moor CU,Supplies and Services,324117,Provisions E324,13-May-2020,000009077250313,TOTAL PRODUCE GATESHEA,5411,Catering costs - provisions,29.38,0.00,29.38
"Regeneration, Economy and Growth",Culture Sport and Tourism,054812,Gala Theatre - Catering etc,Supplies and Services,324117,Provisions E324,13-May-2020,000009077250333,TOTAL PRODUCE GATESHEA,5411,Catering costs - provisions,385.01,0.00,385.01
"Regeneration, Economy and Growth",Culture Sport and Tourism,054812,Gala Theatre - Catering etc,Supplies and Services,324117,Provisions E324,13-May-2020,000009077250339,TOTAL PRODUCE GATESHEA,5411,Catering costs - provisions,229.25,0.00,229.25
"Regeneration, Economy and Growth",Development and Housing,031576,B& B - Temp Accom,Supplies and Services,352001,Conference Expenses,13-May-2020,000009077250347,GRAINGER HOTEL,7011,Conferencesseminars fees etc,200.00,33.33,166.67
Neighbourhoods and Climate Change,Environmental Services,010900,Fleet - Meadowfield Fleet,Transport,215013,Running Costs of Vehicles,13-May-2020,000009077250375,DVLA VEHICLE TAX,9311,Vehicle Excise Duty (VED),267.50,0.00,267.50
Neighbourhoods and Climate Change,Environmental Services,010900,Fleet - Meadowfield Fleet,Transport,215013,Running Costs of Vehicles,13-May-2020,000009077250379,DVLA VEHICLE TAX,9311,Vehicle Excise Duty (VED),267.50,0.00,267.50
Neighbourhoods and Climate Change,Environmental Services,010561,Fleet - Morrison Busty Fleet,Transport,215013,Running Costs of Vehicles,13-May-2020,000009077250381,DVLA VEHICLE TAX,9311,Vehicle Excise Duty (VED),267.50,0.00,267.50
Neighbourhoods and Climate Change,Environmental Services,010551,Fleet - Chilton Fleet,Transport,215013,Running Costs of Vehicles,13-May-2020,000009077250383,DVLA VEHICLE TAX,9311,Vehicle Excise Duty (VED),267.50,0.00,267.50
Neighbourhoods and Climate Change,Environmental Services,010900,Fleet - Meadowfield Fleet,Transport,215013,Running Costs of Vehicles,13-May-2020,000009077250385,DVLA VEHICLE TAX,9311,Vehicle Excise Duty (VED),267.50,0.00,267.50
Neighbourhoods and Climate Change,Environmental Services,010864,Fleet - Hackworth Road Fleet,Transport,215013,Running Costs of Vehicles,13-May-2020,000009077250389,DVLA VEHICLE TAX,9311,Vehicle Excise Duty (VED),167.50,0.00,167.50
Neighbourhoods and Climate Change,Environmental Services,010551,Fleet - Chilton Fleet,Transport,215013,Running Costs of Vehicles,13-May-2020,000009077250391,DVLA VEHICLE TAX,9311,Vehicle Excise Duty (VED),267.50,0.00,267.50
Neighbourhoods and Climate Change,Environmental Services,010900,Fleet - Meadowfield Fleet,Transport,215013,Running Costs of Vehicles,13-May-2020,000009077250393,DVLA VEHICLE TAX,9311,Vehicle Excise Duty (VED),127.50,0.00,127.50
Neighbourhoods and Climate Change,Environmental Services,010551,Fleet - Chilton Fleet,Transport,215013,Running Costs of Vehicles,13-May-2020,000009077250395,DVLA VEHICLE TAX,9311,Vehicle Excise Duty (VED),267.50,0.00,267.50
Neighbourhoods and Climate Change,Environmental Services,010900,Fleet - Meadowfield Fleet,Transport,215013,Running Costs of Vehicles,13-May-2020,000009077250399,DVLA VEHICLE TAX,9311,Vehicle Excise Duty (VED),267.50,0.00,267.50
Neighbourhoods and Climate Change,Environmental Services,010900,Fleet - Meadowfield Fleet,Transport,215013,Running Costs of Vehicles,13-May-2020,000009077250403,DVLA VEHICLE TAX,9311,Vehicle Excise Duty (VED),267.50,0.00,267.50
Neighbourhoods and Climate Change,Environmental Services,010551,Fleet - Chilton Fleet,Transport,215013,Running Costs of Vehicles,13-May-2020,000009077250405,DVLA VEHICLE TAX,9311,Vehicle Excise Duty (VED),267.50,0.00,267.50
Neighbourhoods and Climate Change,Environmental Services,010900,Fleet - Meadowfield Fleet,Transport,215013,Running Costs of Vehicles,13-May-2020,000009077250407,DVLA VEHICLE TAX,9311,Vehicle Excise Duty (VED),127.50,0.00,127.50
Neighbourhoods and Climate Change,Environmental Services,010900,Fleet - Meadowfield Fleet,Transport,215013,Running Costs of Vehicles,13-May-2020,000009077250409,DVLA VEHICLE TAX,9311,Vehicle Excise Duty (VED),267.50,0.00,267.50
Neighbourhoods and Climate Change,Environmental Services,010900,Fleet - Meadowfield Fleet,Transport,215013,Running Costs of Vehicles,13-May-2020,000009077250413,DVLA VEHICLE TAX,9311,Vehicle Excise Duty (VED),267.50,0.00,267.50
Neighbourhoods and Climate Change,Environmental Services,010561,Fleet - Morrison Busty Fleet,Transport,215013,Running Costs of Vehicles,13-May-2020,000009077250415,DVLA VEHICLE TAX,9311,Vehicle Excise Duty (VED),267.50,0.00,267.50
Neighbourhoods and Climate Change,Environmental Services,010561,Fleet - Morrison Busty Fleet,Transport,215013,Running Costs of Vehicles,13-May-2020,000009077250419,DVLA VEHICLE TAX,9311,Vehicle Excise Duty (VED),267.50,0.00,267.50
Neighbourhoods and Climate Change,Environmental Services,010900,Fleet - Meadowfield Fleet,Transport,215013,Running Costs of Vehicles,13-May-2020,000009077250421,DVLA VEHICLE TAX,9311,Vehicle Excise Duty (VED),267.50,0.00,267.50
Neighbourhoods and Climate Change,Environmental Services,010561,Fleet - Morrison Busty Fleet,Transport,215013,Running Costs of Vehicles,13-May-2020,000009077250423,DVLA VEHICLE TAX,9311,Vehicle Excise Duty (VED),267.50,0.00,267.50
Neighbourhoods and Climate Change,Environmental Services,010900,Fleet - Meadowfield Fleet,Transport,215013,Running Costs of Vehicles,13-May-2020,000009077250425,DVLA VEHICLE TAX,9311,Vehicle Excise Duty (VED),167.50,0.00,167.50
Neighbourhoods and Climate Change,Environmental Services,010900,Fleet - Meadowfield Fleet,Transport,215013,Running Costs of Vehicles,13-May-2020,000009077250429,DVLA VEHICLE TAX,9311,Vehicle Excise Duty (VED),267.50,0.00,267.50
Neighbourhoods and Climate Change,Environmental Services,010561,Fleet - Morrison Busty Fleet,Transport,215013,Running Costs of Vehicles,13-May-2020,000009077250431,DVLA VEHICLE TAX,9311,Vehicle Excise Duty (VED),267.50,0.00,267.50
Neighbourhoods and Climate Change,Environmental Services,010551,Fleet - Chilton Fleet,Transport,215013,Running Costs of Vehicles,13-May-2020,000009077250435,DVLA VEHICLE TAX,9311,Vehicle Excise Duty (VED),267.50,0.00,267.50
Neighbourhoods and Climate Change,Environmental Services,010900,Fleet - Meadowfield Fleet,Transport,215013,Running Costs of Vehicles,13-May-2020,000009077250439,DVLA VEHICLE TAX,9311,Vehicle Excise Duty (VED),267.50,0.00,267.50
Neighbourhoods and Climate Change,Environmental Services,010900,Fleet - Meadowfield Fleet,Transport,215013,Running Costs of Vehicles,13-May-2020,000009077250441,DVLA VEHICLE TAX,9311,Vehicle Excise Duty (VED),267.50,0.00,267.50
Neighbourhoods and Climate Change,Environmental Services,010900,Fleet - Meadowfield Fleet,Transport,215013,Running Costs of Vehicles,13-May-2020,000009077250445,DVLA VEHICLE TAX,9311,Vehicle Excise Duty (VED),267.50,0.00,267.50
Neighbourhoods and Climate Change,Environmental Services,010900,Fleet - Meadowfield Fleet,Transport,215013,Running Costs of Vehicles,13-May-2020,000009077250447,DVLA VEHICLE TAX,9311,Vehicle Excise Duty (VED),267.50,0.00,267.50
Neighbourhoods and Climate Change,Environmental Services,010561,Fleet - Morrison Busty Fleet,Transport,215013,Running Costs of Vehicles,13-May-2020,000009077250449,DVLA VEHICLE TAX,9311,Vehicle Excise Duty (VED),167.50,0.00,167.50
Neighbourhoods and Climate Change,Environmental Services,010561,Fleet - Morrison Busty Fleet,Transport,215013,Running Costs of Vehicles,13-May-2020,000009077250451,DVLA VEHICLE TAX,9311,Vehicle Excise Duty (VED),267.50,44.58,222.92
Neighbourhoods and Climate Change,Environmental Services,010551,Fleet - Chilton Fleet,Transport,215013,Running Costs of Vehicles,13-May-2020,000009077250455,DVLA VEHICLE TAX,9311,Vehicle Excise Duty (VED),267.50,0.00,267.50
Neighbourhoods and Climate Change,Environmental Services,010561,Fleet - Morrison Busty Fleet,Transport,215013,Running Costs of Vehicles,13-May-2020,000009077250457,DVLA VEHICLE TAX,9311,Vehicle Excise Duty (VED),167.50,0.00,167.50
Children and Young Peoples Services,Head of Childrens Social Care,085334,West Rainton Satelite Home,Supplies and Services,304221,Equipment and Materials,13-May-2020,000009077250471,SCREWFIX DIRECT,5200,Direct materials,23.48,3.91,19.57
Neighbourhoods and Climate Change,Environmental Services,010314,Nei.Prot - Bereavement Services,Supplies and Services,304259,Equipment and Materials,13-May-2020,000009077250475,Durham County CNCL,9399,Equipment-purchase and rental,11.00,0.00,11.00
Children and Young Peoples Services,Head of Childrens Social Care,085332,Middlestone Moor CU,Supplies and Services,348037,Subsistence E348,13-May-2020,000009077250497,PIZZA COTTAGE,5814,Subsistence,35.40,5.90,29.50
"Regeneration, Economy and Growth",Development and Housing,031500,Housing Solutions - Core Team,Supplies and Services,352001,Conference Expenses,13-May-2020,000009077250513,GRAINGER HOTEL,7011,Conferencesseminars fees etc,200.00,0.00,200.00
Children and Young Peoples Services,Head of Early Help Inclusion & Vulnerable Children.,071445,Chester le Street One Point Hub,Supplies and Services,304259,Equipment and Materials,13-May-2020,000009077250515,DARLINGTON BC INTERNET,9399,Equipment-purchase and rental,22.00,0.00,22.00
Children and Young Peoples Services,Head of Early Help Inclusion & Vulnerable Children.,071445,Chester le Street One Point Hub,Supplies and Services,304259,Equipment and Materials,13-May-2020,000009077250521,Durham County CNCL,9399,Equipment-purchase and rental,44.00,0.00,44.00
Children and Young Peoples Services,Head of Early Help Inclusion & Vulnerable Children.,071445,Chester le Street One Point Hub,Supplies and Services,304259,Equipment and Materials,13-May-2020,000009077250523,WWW.DURHAM.GOV.UK,9399,Equipment-purchase and rental,22.00,0.00,22.00
Resources BK0010,Business Support,052986,CYPS - Locality and Operational Support,Supplies and Services,324117,Provisions E324,13-May-2020,000009077250543,ASDA GROCERIES ONLINE,5411,Catering costs - provisions,121.81,0.00,121.81
Resources BK0010,Business Support,052986,CYPS - Locality and Operational Support,Supplies and Services,324117,Provisions E324,13-May-2020,000009077250545,ASDA GROCERIES ONLINE,5411,Catering costs - provisions,-3.52,0.00,-3.52
Resources BK0010,People & Talent Management,010984,Training and Development,Employees,040149,Recruitment Instruction and Training,13-May-2020,000009077250553,PAYPAL NPORS LTD,8699,Training-all costs,144.00,24.00,120.00
"Regeneration, Economy and Growth",Development and Housing,031576,B& B - Temp Accom,Supplies and Services,364320,Grants to Voluntary Organisations,13-May-2020,000009077250613,BUDGET H EXPRESS HOTEL,7011,Accommodation assistance,89.00,14.83,74.17
Neighbourhoods and Climate Change,Community Protection,011185,Unauthorised Encampments,Supplies and Services,338048,Services,13-May-2020,000009077250633,HMCOURTS-SERVICE.G,9222,Court costs 338048,226.00,0.00,226.00
Adult and Health Services,Head of Adults,055643,Hawthorn House LD Respite Unit,Supplies and Services,324117,Provisions E324,13-May-2020,000009077250667,SAINSBURYS 0776,5411,Catering costs - provisions,8.00,0.00,8.00
Adult and Health Services,Head of Adults,055643,Hawthorn House LD Respite Unit,Supplies and Services,324117,Provisions E324,13-May-2020,000009077250669,CO-OP GROUP 010465,5411,Catering costs - provisions,4.49,0.00,4.49
"Regeneration, Economy and Growth",Development and Housing,031576,B& B - Temp Accom,Supplies and Services,364320,Grants to Voluntary Organisations,13-May-2020,000009077250681,BUDGET H EXPRESS HOTEL,7011,Accommodation assistance,89.00,14.83,74.17
Adult and Health Services,Head of Adults,055643,Hawthorn House LD Respite Unit,Supplies and Services,324117,Provisions E324,13-May-2020,000009077250687,JR HOLLAND FOODSERVICE,5499,Catering costs - provisions,6.00,0.00,6.00
Children and Young Peoples Services,Head of Early Help Inclusion & Vulnerable Children.,088103,Consett & Stanley 0-19 Community Family Hub,Supplies and Services,384999,Miscellaneous Expenses,13-May-2020,000009077250697,BAKER ROSS,5970,Other expenses,216.28,0.00,216.28
Children and Young Peoples Services,Head of Early Help Inclusion & Vulnerable Children.,088103,Consett & Stanley 0-19 Community Family Hub,Supplies and Services,384999,Miscellaneous Expenses,13-May-2020,000009077250699,SENSORY DIRECT,5945,Other expenses,159.55,0.00,159.55
Children and Young Peoples Services,Head of Early Help Inclusion & Vulnerable Children.,088103,Consett & Stanley 0-19 Community Family Hub,Supplies and Services,304403,Equipment and Materials,13-May-2020,000009077250703,AMZNMktplace,5999,Other consumables,19.99,3.33,16.66
Children and Young Peoples Services,Head of Early Help Inclusion & Vulnerable Children.,088103,Consett & Stanley 0-19 Community Family Hub,Supplies and Services,304403,Equipment and Materials,13-May-2020,000009077250705,AMZNMktplace,5999,Other consumables,14.68,2.45,12.23
Children and Young Peoples Services,Head of Early Help Inclusion & Vulnerable Children.,088103,Consett & Stanley 0-19 Community Family Hub,Supplies and Services,304403,Equipment and Materials,13-May-2020,000009077250709,AMZNMktplace,5999,Other consumables,34.99,5.83,29.16
Children and Young Peoples Services,Head of Early Help Inclusion & Vulnerable Children.,088103,Consett & Stanley 0-19 Community Family Hub,Supplies and Services,384999,Miscellaneous Expenses,13-May-2020,000009077250711,Amazon.co.uk XN3GH7445,5969,Other expenses,25.00,4.17,20.83
Children and Young Peoples Services,Head of Early Help Inclusion & Vulnerable Children.,088103,Consett & Stanley 0-19 Community Family Hub,Supplies and Services,304403,Equipment and Materials,13-May-2020,000009077250717,AMZNMktplace,5999,Other consumables,45.94,7.66,38.28
Children and Young Peoples Services,Head of Early Help Inclusion & Vulnerable Children.,088103,Consett & Stanley 0-19 Community Family Hub,Supplies and Services,304403,Equipment and Materials,13-May-2020,000009077250719,AMZNMktplace,5999,Other consumables,93.62,15.61,78.01
Children and Young Peoples Services,Head of Early Help Inclusion & Vulnerable Children.,088103,Consett & Stanley 0-19 Community Family Hub,Supplies and Services,304403,Equipment and Materials,13-May-2020,000009077250721,AMZNMktplace,5999,Other consumables,79.47,13.25,66.22
Children and Young Peoples Services,Head of Early Help Inclusion & Vulnerable Children.,088103,Consett & Stanley 0-19 Community Family Hub,Supplies and Services,304403,Equipment and Materials,13-May-2020,000009077250725,AMZNMktplace,5999,Other consumables,62.06,10.35,51.71
Resources BK0010,Digital and Customer Services,065335,School Services - Implementations,Supplies and Services,304639,Equipment and Materials,13-May-2020,000009077250731,AMZNMktplace,5999,Technicians-supplies,18.59,3.10,15.49
Children and Young Peoples Services,Head of Childrens Social Care,085342,16 Hickstead Rise (previously 9 Cedar Ave),Supplies and Services,384999,Miscellaneous Expenses,13-May-2020,000009077250771,Amazon.co.uk 236G85QX5,5969,Other expenses,28.99,0.00,28.99
Children and Young Peoples Services,Head of Childrens Social Care,085334,West Rainton Satelite Home,Supplies and Services,324117,Provisions E324,13-May-2020,000009077250775,The Apple Orchard,5411,Catering costs - provisions,15.98,0.00,15.98
Children and Young Peoples Services,COVID19 - Children and Young Peoples Services,091002,COVID19 - Children and Young Peoples Services,Supplies and Services,304649,Equipment and Materials,13-May-2020,000009077250791,AMZNMktplace,5999,Toys,29.98,0.00,29.98
Children and Young Peoples Services,COVID19 - Children and Young Peoples Services,091002,COVID19 - Children and Young Peoples Services,Supplies and Services,304649,Equipment and Materials,13-May-2020,000009077250795,AMZNMktplace,5999,Toys,3.93,0.00,3.93
Children and Young Peoples Services,Head of Early Help Inclusion & Vulnerable Children.,085962,Aycliffe Secure - Durham,Supplies and Services,328041,Clothing uniforms and laundry E328,13-May-2020,000009077250799,FOOTASYLUM PLC,5691,Clothing uniforms and laundry,46.94,0.00,46.94
Children and Young Peoples Services,Head of Early Help Inclusion & Vulnerable Children.,085962,Aycliffe Secure - Durham,Supplies and Services,312009,Newspapers books and periodicals E312,13-May-2020,000009077250803,Amazon.co.uk ON1B705B5,5969,Newspapers books and periodicals,13.50,0.00,13.50
Children and Young Peoples Services,Head of Early Help Inclusion & Vulnerable Children.,085962,Aycliffe Secure - Durham,Supplies and Services,312009,Newspapers books and periodicals E312,13-May-2020,000009077250807,Amazon.co.uk UG2JU3715,5969,Newspapers books and periodicals,16.95,0.00,16.95
Children and Young Peoples Services,COVID19 - Children and Young Peoples Services,091002,COVID19 - Children and Young Peoples Services,Supplies and Services,304403,Equipment and Materials,13-May-2020,000009077250811,AMZNMktplace,5999,Other consumables,4.99,0.83,4.16
Children and Young Peoples Services,COVID19 - Children and Young Peoples Services,091002,COVID19 - Children and Young Peoples Services,Supplies and Services,304649,Equipment and Materials,13-May-2020,000009077250813,AMZNMktplace,5999,Toys,20.97,3.51,17.46
Children and Young Peoples Services,Head of Early Help Inclusion & Vulnerable Children.,085957,Secure Management,Supplies and Services,304403,Equipment and Materials,13-May-2020,000009077250817,AMZNMktplace,5999,Other consumables,288.00,48.00,240.00
Children and Young Peoples Services,Head of Early Help Inclusion & Vulnerable Children.,085962,Aycliffe Secure - Durham,Supplies and Services,304403,Equipment and Materials,13-May-2020,000009077250819,AMZNMktplace,5999,Other consumables,24.90,4.15,20.75
Children and Young Peoples Services,Head of Early Help Inclusion & Vulnerable Children.,085962,Aycliffe Secure - Durham,Supplies and Services,304403,Equipment and Materials,13-May-2020,000009077250819 - 1,AMZNMktplace,5999,Other consumables,0.10,,0.10
Children and Young Peoples Services,Head of Early Help Inclusion & Vulnerable Children.,085954,Walworth,Supplies and Services,384999,Miscellaneous Expenses,13-May-2020,000009077250825,AMZNMktplace,5999,Other expenses,9.99,0.00,9.99
Children and Young Peoples Services,Head of Early Help Inclusion & Vulnerable Children.,085957,Secure Management,Supplies and Services,372009,Subscriptions E372,13-May-2020,000009077250827,WWW.PATLABEL.CO.UK,2741,Subscriptions 372009,109.86,18.31,91.55
Children and Young Peoples Services,Head of Early Help Inclusion & Vulnerable Children.,085957,Secure Management,Supplies and Services,304259,Equipment and Materials,13-May-2020,000009077250831,TRITEK LTD,5722,Equipment-purchase and rental,70.16,11.69,58.47
Children and Young Peoples Services,Head of Early Help Inclusion & Vulnerable Children.,085962,Aycliffe Secure - Durham,Supplies and Services,328041,Clothing uniforms and laundry E328,13-May-2020,000009077250835,JD SPORTS INTERNET,5941,Clothing uniforms and laundry,23.99,0.00,23.99
Resources BK0010,Business Support,052986,CYPS - Locality and Operational Support,Supplies and Services,304259,Equipment and Materials,13-May-2020,000009077250843,HM PASSPORT OFFICE,9399,Equipment-purchase and rental,75.50,0.00,75.50
"Regeneration, Economy and Growth",Development and Housing,031576,B& B - Temp Accom,Supplies and Services,364320,Grants to Voluntary Organisations,13-May-2020,000009077250857,BUDGET H EXPRESS HOTEL,7011,Accommodation assistance,89.00,0.00,89.00
Children and Young Peoples Services,Head of Childrens Social Care,085342,16 Hickstead Rise (previously 9 Cedar Ave),Supplies and Services,324117,Provisions E324,13-May-2020,000009077250859,WALKERS BUTCHERS & BAK,5499,Catering costs - provisions,43.88,0.00,43.88
Children and Young Peoples Services,Head of Childrens Social Care,085332,Middlestone Moor CU,Supplies and Services,304403,Equipment and Materials,13-May-2020,000009077250881,KEN WARNE LTD (O5),5411,Other consumables,5.60,0.00,5.60
Children and Young Peoples Services,Head of Childrens Social Care,085650,Pre Birth Team,Supplies and Services,304259,Equipment and Materials,13-May-2020,000009077250893,GEN REGISTER OFFICE,9399,Equipment-purchase and rental,14.00,0.00,14.00
Children and Young Peoples Services,Head of Childrens Social Care,085650,Pre Birth Team,Supplies and Services,304259,Equipment and Materials,13-May-2020,000009077250895,WWW.DURHAM.GOV.UK,9399,Equipment-purchase and rental,11.00,0.00,11.00
Children and Young Peoples Services,Head of Early Help Inclusion & Vulnerable Children.,088103,Consett & Stanley 0-19 Community Family Hub,Supplies and Services,304403,Equipment and Materials,13-May-2020,000009079352129,AMZNMKTPLACE AMAZON.CO,5999,Other consumables,114.60,19.14,95.46
Resources BK0010,Business Support,052986,CYPS - Locality and Operational Support,Supplies and Services,352001,Conference Expenses,13-May-2020,000009079352217,TVLICENSING.CO.UK,7392,Conferencesseminars fees etc,157.50,0.00,157.50
"Regeneration, Economy and Growth",Business Durham CL0850,030689,Inward Investment and Aftercare,Supplies and Services,304999,Equipment and Materials,14-May-2020,000009079351537,MOZ INC,5817,Misc equipment tools and materials,147.12,0.00,147.12
Children and Young Peoples Services,Head of Education and Skills,071801,Selby Cottage Childcare Centre,Supplies and Services,324117,Provisions E324,14-May-2020,000009079351557,ANGEL SPRINGS LTD,5811,Catering costs - provisions,143.94,0.00,143.94
Children and Young Peoples Services,COVID19 - Children and Young Peoples Services,091002,COVID19 - Children and Young Peoples Services,Supplies and Services,304403,Equipment and Materials,14-May-2020,000009079351561,AMZNMktplace,5999,Other consumables,4.75,0.79,3.96
Children and Young Peoples Services,COVID19 - Children and Young Peoples Services,091002,COVID19 - Children and Young Peoples Services,Supplies and Services,304403,Equipment and Materials,14-May-2020,000009079351565,AMZNMktplace,5999,Other consumables,4.75,0.79,3.96
Children and Young Peoples Services,COVID19 - Children and Young Peoples Services,091002,COVID19 - Children and Young Peoples Services,Supplies and Services,304403,Equipment and Materials,14-May-2020,000009079351571,AMZNMktplace,5999,Other consumables,4.75,0.79,3.96
Children and Young Peoples Services,COVID19 - Children and Young Peoples Services,091002,COVID19 - Children and Young Peoples Services,Supplies and Services,304403,Equipment and Materials,14-May-2020,000009079351577,AMZNMktplace,5999,Other consumables,4.75,0.79,3.96
Children and Young Peoples Services,COVID19 - Children and Young Peoples Services,091002,COVID19 - Children and Young Peoples Services,Supplies and Services,304403,Equipment and Materials,14-May-2020,000009079351583,AMZNMktplace,5999,Other consumables,9.99,1.67,8.32
Children and Young Peoples Services,COVID19 - Children and Young Peoples Services,091002,COVID19 - Children and Young Peoples Services,Supplies and Services,304403,Equipment and Materials,14-May-2020,000009079351587,AMZNMktplace,5999,Other consumables,39.96,6.66,33.30
Children and Young Peoples Services,COVID19 - Children and Young Peoples Services,091002,COVID19 - Children and Young Peoples Services,Supplies and Services,304403,Equipment and Materials,14-May-2020,000009079351591,AMZNMKTPLACE AMAZON.CO,5999,Other consumables,47.95,8.00,39.95
Children and Young Peoples Services,Head of Childrens Social Care,085501,Child Care Cases Legal Expenses,Supplies and Services,304403,Equipment and Materials,14-May-2020,000009079351599,DARLINGTON BC INTERNET,9399,Other consumables,11.00,1.83,9.17
Children and Young Peoples Services,Head of Childrens Social Care,085501,Child Care Cases Legal Expenses,Supplies and Services,304403,Equipment and Materials,14-May-2020,000009079351605,DARLINGTON BC INTERNET,9399,Other consumables,11.00,0.00,11.00
Children and Young Peoples Services,Head of Childrens Social Care,085501,Child Care Cases Legal Expenses,Supplies and Services,304403,Equipment and Materials,14-May-2020,000009079351609,GATESHEAD COUNCIL MOTO,9399,Other consumables,22.00,0.00,22.00
Neighbourhoods and Climate Change,Environmental Services,010383,C&G - South Street Cleansing,Supplies and Services,304221,Equipment and Materials,14-May-2020,000009079351617,WWW.ARCO.CO.UK,5085,Direct materials,105.42,0.00,105.42
Children and Young Peoples Services,Head of Childrens Social Care,085358,Durham Road Sacriston childrens residential,Supplies and Services,304403,Equipment and Materials,14-May-2020,000009079351629,AMZNMKTPLACE AMAZON.CO,5999,Other consumables,28.88,0.00,28.88
Children and Young Peoples Services,Head of Childrens Social Care,085358,Durham Road Sacriston childrens residential,Supplies and Services,384999,Miscellaneous Expenses,14-May-2020,000009079351631,Amazon.co.uk X83F94CC5,5969,Other expenses,32.76,0.00,32.76
Children and Young Peoples Services,Head of Childrens Social Care,085352,Tow Law CU,Supplies and Services,324117,Provisions E324,14-May-2020,000009079351649,CO-OP GROUP 010989,5411,Catering costs - provisions,4.60,0.00,4.60
Children and Young Peoples Services,Head of Early Help Inclusion & Vulnerable Children.,088104,BA/BC/Crook 0-19 Targeted Family Support,Supplies and Services,304649,Equipment and Materials,14-May-2020,000009079351655,Amazon.co.uk 1562I64F5,5969,Toys,6.98,1.16,5.82
Neighbourhoods and Climate Change,Environmental Services,010900,Fleet - Meadowfield Fleet,Transport,215013,Running Costs of Vehicles,14-May-2020,000009079351777,DVLA VEHICLE TAX,9311,Vehicle Excise Duty (VED),617.50,0.00,617.50
Neighbourhoods and Climate Change,Environmental Services,010900,Fleet - Meadowfield Fleet,Transport,215013,Running Costs of Vehicles,14-May-2020,000009079351785,DVLA VEHICLE TAX,9311,Vehicle Excise Duty (VED),617.50,0.00,617.50
Neighbourhoods and Climate Change,Environmental Services,010864,Fleet - Hackworth Road Fleet,Transport,215013,Running Costs of Vehicles,14-May-2020,000009079351789,DVLA VEHICLE TAX,9311,Vehicle Excise Duty (VED),722.50,0.00,722.50
Neighbourhoods and Climate Change,Environmental Services,010900,Fleet - Meadowfield Fleet,Transport,215013,Running Costs of Vehicles,14-May-2020,000009079351793,DVLA VEHICLE TAX,9311,Vehicle Excise Duty (VED),617.50,0.00,617.50
Neighbourhoods and Climate Change,Environmental Services,010864,Fleet - Hackworth Road Fleet,Transport,215013,Running Costs of Vehicles,14-May-2020,000009079351795,DVLA VEHICLE TAX,9311,Vehicle Excise Duty (VED),617.50,0.00,617.50
Neighbourhoods and Climate Change,Environmental Services,010900,Fleet - Meadowfield Fleet,Transport,215013,Running Costs of Vehicles,14-May-2020,000009079351801,DVLA VEHICLE TAX,9311,Vehicle Excise Duty (VED),267.50,44.58,222.92
Neighbourhoods and Climate Change,Environmental Services,010900,Fleet - Meadowfield Fleet,Transport,215013,Running Costs of Vehicles,14-May-2020,000009079351811,DVLA VEHICLE TAX,9311,Vehicle Excise Duty (VED),617.50,0.00,617.50
Neighbourhoods and Climate Change,Environmental Services,010561,Fleet - Morrison Busty Fleet,Transport,215013,Running Costs of Vehicles,14-May-2020,000009079351819,DVLA VEHICLE TAX,9311,Vehicle Excise Duty (VED),617.50,0.00,617.50
Neighbourhoods and Climate Change,Environmental Services,010900,Fleet - Meadowfield Fleet,Transport,215013,Running Costs of Vehicles,14-May-2020,000009079351823,DVLA VEHICLE TAX,9311,Vehicle Excise Duty (VED),267.50,0.00,267.50
Neighbourhoods and Climate Change,Environmental Services,010900,Fleet - Meadowfield Fleet,Transport,215013,Running Costs of Vehicles,14-May-2020,000009079351827,DVLA VEHICLE TAX,9311,Vehicle Excise Duty (VED),617.50,0.00,617.50
Neighbourhoods and Climate Change,Environmental Services,010551,Fleet - Chilton Fleet,Transport,215013,Running Costs of Vehicles,14-May-2020,000009079351829,DVLA VEHICLE TAX,9311,Vehicle Excise Duty (VED),617.50,0.00,617.50
Neighbourhoods and Climate Change,Environmental Services,010900,Fleet - Meadowfield Fleet,Transport,215013,Running Costs of Vehicles,14-May-2020,000009079351831,DVLA VEHICLE TAX,9311,Vehicle Excise Duty (VED),267.50,44.58,222.92
Neighbourhoods and Climate Change,Environmental Services,010900,Fleet - Meadowfield Fleet,Transport,215013,Running Costs of Vehicles,14-May-2020,000009079351837,DVLA VEHICLE TAX,9311,Vehicle Excise Duty (VED),267.50,0.00,267.50
Children and Young Peoples Services,Head of Early Help Inclusion & Vulnerable Children.,088109,Spennymoor & Shildon 0-19 Community Family Hub,Supplies and Services,328041,Clothing uniforms and laundry E328,14-May-2020,000009079351843,WWW.THEWORKS.CO.UK,5310,Clothing uniforms and laundry,128.00,0.00,128.00
Children and Young Peoples Services,Head of Childrens Social Care,085332,Middlestone Moor CU,Supplies and Services,324117,Provisions E324,14-May-2020,000009079351877,SumUp Wonderful Whip,5499,Catering costs - provisions,3.00,0.00,3.00
Children and Young Peoples Services,Head of Childrens Social Care,085332,Middlestone Moor CU,Supplies and Services,324117,Provisions E324,14-May-2020,000009079351879,SumUp Maggies sandwi,5811,Catering costs - provisions,10.00,0.00,10.00
"Regeneration, Economy and Growth",Development and Housing,031500,Housing Solutions - Core Team,Supplies and Services,352001,Conference Expenses,14-May-2020,000009079351943,HI NEWCASTLE WASHI,7011,Conferencesseminars fees etc,300.00,0.00,300.00
"Regeneration, Economy and Growth",Development and Housing,031576,B& B - Temp Accom,Supplies and Services,364320,Grants to Voluntary Organisations,14-May-2020,000009079352005,BUDGET H EXPRESS HOTEL,7011,Accommodation assistance,534.00,89.00,445.00
Children and Young Peoples Services,Head of Childrens Social Care,085341,High Etherley Satelite Home,Supplies and Services,324117,Provisions E324,14-May-2020,000009079352039,ASDA GROCERIES ONLINE,5411,Catering costs - provisions,243.96,0.00,243.96
Children and Young Peoples Services,Head of Childrens Social Care,085341,High Etherley Satelite Home,Supplies and Services,324117,Provisions E324,14-May-2020,000009079352045,ASDA GROCERIES ONLINE,5411,Catering costs - provisions,-0.78,0.00,-0.78
Children and Young Peoples Services,Head of Childrens Social Care,085333,Coxhoe Satelite Home,Supplies and Services,344033,Telephones,14-May-2020,000009079352081,giffgaff,4814,Telephones general-all costs,10.00,0.00,10.00
Adult and Health Services,Head of Adults,055643,Hawthorn House LD Respite Unit,Supplies and Services,324117,Provisions E324,14-May-2020,000009079352123,JR HOLLAND FOODSERVICE,5499,Catering costs - provisions,15.42,0.00,15.42
Children and Young Peoples Services,Head of Early Help Inclusion & Vulnerable Children.,088103,Consett & Stanley 0-19 Community Family Hub,Supplies and Services,304403,Equipment and Materials,14-May-2020,000009079352135,AMZNMKTPLACE AMAZON.CO,5999,Other consumables,49.80,8.30,41.50
Children and Young Peoples Services,Head of Early Help Inclusion & Vulnerable Children.,088103,Consett & Stanley 0-19 Community Family Hub,Supplies and Services,304403,Equipment and Materials,14-May-2020,000009079352135 - 1,AMZNMKTPLACE AMAZON.CO,5999,Other consumables,0.10,,0.10
Children and Young Peoples Services,Head of Early Help Inclusion & Vulnerable Children.,088103,Consett & Stanley 0-19 Community Family Hub,Supplies and Services,304403,Equipment and Materials,14-May-2020,000009079352139,AMZNMktplace,5999,Other consumables,44.99,7.50,37.49
Children and Young Peoples Services,Head of Early Help Inclusion & Vulnerable Children.,088103,Consett & Stanley 0-19 Community Family Hub,Supplies and Services,304403,Equipment and Materials,14-May-2020,000009079352143,AMZNMktplace,5999,Other consumables,30.98,5.17,25.81
Children and Young Peoples Services,Head of Childrens Social Care,085342,16 Hickstead Rise (previously 9 Cedar Ave),Supplies and Services,324117,Provisions E324,14-May-2020,000009079352155,TESCO STORES 2916,5411,Catering costs - provisions,46.02,0.00,46.02
Children and Young Peoples Services,Head of Childrens Social Care,085342,16 Hickstead Rise (previously 9 Cedar Ave),Supplies and Services,304403,Equipment and Materials,14-May-2020,000009079352161,AMZNMktplace,5999,Other consumables,9.99,0.00,9.99
Children and Young Peoples Services,Head of Childrens Social Care,085334,West Rainton Satelite Home,Supplies and Services,324117,Provisions E324,14-May-2020,000009079352167,TESCO STORES 2371,5411,Catering costs - provisions,100.81,0.00,100.81
Children and Young Peoples Services,Head of Childrens Social Care,085334,West Rainton Satelite Home,Supplies and Services,324117,Provisions E324,14-May-2020,000009079352171,TESCO STORES 2371,5411,Catering costs - provisions,33.75,0.00,33.75
Children and Young Peoples Services,Head of Early Help Inclusion & Vulnerable Children.,085954,Walworth,Supplies and Services,328041,Clothing uniforms and laundry E328,14-May-2020,000009079352181,FOOTASYLUM PLC,5691,Clothing uniforms and laundry,114.99,0.00,114.99
Children and Young Peoples Services,Head of Early Help Inclusion & Vulnerable Children.,085962,Aycliffe Secure - Durham,Supplies and Services,304649,Equipment and Materials,14-May-2020,000009079352187,Amazon.co.uk QW55R0B85,5969,Toys,198.73,33.12,165.61
Children and Young Peoples Services,Head of Early Help Inclusion & Vulnerable Children.,085957,Secure Management,Supplies and Services,384999,Miscellaneous Expenses,14-May-2020,000009079352193,Amazon.co.uk PY18903H5,5969,Other expenses,44.95,7.50,37.45
Children and Young Peoples Services,Head of Early Help Inclusion & Vulnerable Children.,085954,Walworth,Supplies and Services,304252,Equipment and Materials,14-May-2020,000009079352199,WWW ESPARES CO UK,5065,Equipment-repairsserviceinsurance,21.98,0.00,21.98
Children and Young Peoples Services,Head of Early Help Inclusion & Vulnerable Children.,085962,Aycliffe Secure - Durham,Supplies and Services,304649,Equipment and Materials,14-May-2020,000009079352203,ARGOS LTD,5310,Toys,25.94,0.00,25.94
Resources BK0010,Business Support,052986,CYPS - Locality and Operational Support,Supplies and Services,328041,Clothing uniforms and laundry E328,14-May-2020,000009079352225,ARGOS LTD,5310,Clothing uniforms and laundry,59.93,0.00,59.93
Children and Young Peoples Services,Head of Childrens Social Care,085333,Coxhoe Satelite Home,Supplies and Services,308011,Furniture,14-May-2020,000009079352239,WWW.IKEA.COM,5712,Furniture repair and replacement,361.00,60.17,300.83
Children and Young Peoples Services,Head of Childrens Social Care,085333,Coxhoe Satelite Home,Supplies and Services,328041,Clothing uniforms and laundry E328,14-May-2020,000009079352247,PEACOCK STORES,5331,Clothing uniforms and laundry,19.99,0.00,19.99
Children and Young Peoples Services,Head of Childrens Social Care,085333,Coxhoe Satelite Home,Supplies and Services,308011,Furniture,14-May-2020,000009079352251,AMZNMKTPLACE AMAZON.CO,5999,Furniture repair and replacement,170.99,28.50,142.49
"Regeneration, Economy and Growth",Development and Housing,031576,B& B - Temp Accom,Supplies and Services,364320,Grants to Voluntary Organisations,14-May-2020,000009079352259,BUDGET H EXPRESS HOTEL,7011,Accommodation assistance,356.00,0.00,356.00
Neighbourhoods and Climate Change,Environmental Services,010301,C&G - North Grounds Maintenance,Third Party Payments,430100,Rendered by Private Contractors,14-May-2020,000009079352267,JOHN WARREN (ANIMAL BY,7399,Payments to sub-contractors,36.00,0.00,36.00
Children and Young Peoples Services,Head of Childrens Social Care,085352,Tow Law CU,Supplies and Services,348037,Subsistence E348,14-May-2020,000009079352273,DF 2018 LIMITED,5814,Subsistence,23.45,0.00,23.45
Resources BK0010,Corporate Finance & Commercial Services,069800,Corporate Procurement 069800,Employees,040149,Recruitment Instruction and Training,14-May-2020,000009079352295,WWW.CIPS.ORG,8699,Training-all costs,137.00,0.00,137.00
"Regeneration, Economy and Growth",Development and Housing,030772,CLLD South,Transport,235057,Public Transport,14-May-2020,000009079352299,ARRIVA NORTH EAST,4131,Staff travelling,7.50,0.00,7.50
"Regeneration, Economy and Growth",Development and Housing,030772,CLLD South,Supplies and Services,304259,Equipment and Materials,14-May-2020,000009079352305,GEN REGISTER OFFICE,9399,Equipment-purchase and rental,45.25,0.00,45.25
Children and Young Peoples Services,Head of Early Help Inclusion & Vulnerable Children.,088107,Ferryhill & Newton Aycliffe 0-19 Community Family Hub,Supplies and Services,304403,Equipment and Materials,14-May-2020,000009079352309,AMZNMktplace,5999,Other consumables,59.96,10.00,49.96
Children and Young Peoples Services,Head of Early Help Inclusion & Vulnerable Children.,088107,Ferryhill & Newton Aycliffe 0-19 Community Family Hub,Supplies and Services,304403,Equipment and Materials,14-May-2020,000009079352315,AMZNMktplace,5999,Other consumables,59.96,10.00,49.96
"Regeneration, Economy and Growth",Development and Housing,031500,Housing Solutions - Core Team,Supplies and Services,352001,Conference Expenses,14-May-2020,000009079352317,GRAINGER HOTEL,7011,Conferencesseminars fees etc,100.00,0.00,100.00
"Regeneration, Economy and Growth",Development and Housing,030771,Durham Advance Flexible Fund,Supplies and Services,304259,Equipment and Materials,14-May-2020,000009079352399,WWW.DURHAM.GOV.UK,9399,Equipment-purchase and rental,71.00,0.00,71.00
Children and Young Peoples Services,Head of Childrens Social Care,085332,Middlestone Moor CU,Supplies and Services,332047,Printing Stationery and Gen Off Exps,14-May-2020,000009082105399,VIKING UK,5111,Stationery,59.88,0.00,59.88
"Regeneration, Economy and Growth",Business Durham CL0850,030689,Inward Investment and Aftercare,Supplies and Services,304999,Equipment and Materials,15-May-2020,000009079351543,MOZ INC,5817,Misc equipment tools and materials,4.05,0.00,4.05
"Regeneration, Economy and Growth",Business Durham CL0850,030689,Inward Investment and Aftercare,Supplies and Services,342222,Computers and Communications,15-May-2020,000009082104937,FASTHOSTS INTERNET,4816,Comp hardware purch-network servers,17.98,3.00,14.98
Children and Young Peoples Services,Head of Childrens Social Care,085341,High Etherley Satelite Home,Supplies and Services,324117,Provisions E324,15-May-2020,000009082104949,MARKS&SPENCER PLC SF,5411,Catering costs - provisions,18.10,0.00,18.10
Children and Young Peoples Services,Head of Education and Skills,071801,Selby Cottage Childcare Centre,Supplies and Services,324117,Provisions E324,15-May-2020,000009082104965,ASDA STORES 7134,5411,Catering costs - provisions,5.00,0.00,5.00
"Regeneration, Economy and Growth",Development and Housing,031576,B& B - Temp Accom,Supplies and Services,364320,Grants to Voluntary Organisations,15-May-2020,000009082104999,GRAINGER HOTEL,7011,Accommodation assistance,350.00,0.00,350.00
"Regeneration, Economy and Growth",Development and Housing,031500,Housing Solutions - Core Team,Supplies and Services,352001,Conference Expenses,15-May-2020,000009082105027,BUDGET H EXPRESS HOTEL,7011,Conferencesseminars fees etc,300.00,50.00,250.00
"Regeneration, Economy and Growth",Development and Housing,031500,Housing Solutions - Core Team,Supplies and Services,352001,Conference Expenses,15-May-2020,000009082105031,BUDGET H EXPRESS HOTEL,7011,Conferencesseminars fees etc,200.00,33.33,166.67
"Regeneration, Economy and Growth",Development and Housing,031500,Housing Solutions - Core Team,Supplies and Services,352001,Conference Expenses,15-May-2020,000009082105037,BUDGET H EXPRESS HOTEL,7011,Conferencesseminars fees etc,123.00,20.50,102.50
Children and Young Peoples Services,Head of Education and Skills,075021,Youth Employment Initiative,Supplies and Services,364301,Grants to Voluntary Organisations,15-May-2020,000009082105047,CURRYS ONLINE,5732,Hardship,199.00,33.17,165.83
Children and Young Peoples Services,Head of Childrens Social Care,085341,High Etherley Satelite Home,Supplies and Services,304221,Equipment and Materials,15-May-2020,000009082105133,STATIONERYU,5169,Direct materials,61.72,10.29,51.43
Children and Young Peoples Services,Head of Childrens Social Care,085352,Tow Law CU,Supplies and Services,324117,Provisions E324,15-May-2020,000009082105209,TESCO STORES 2371,5411,Catering costs - provisions,145.31,0.00,145.31
Children and Young Peoples Services,Head of Childrens Social Care,085551,Short Break Services-Park Hse Sher,Supplies and Services,348037,Subsistence E348,15-May-2020,000009082105211,IZ Downeys,5812,Subsistence,30.90,0.00,30.90
Children and Young Peoples Services,Head of Childrens Social Care,085380,Operations Manager LAC Resources,Supplies and Services,304403,Equipment and Materials,15-May-2020,000009082105309,NEWBLES,5999,Other consumables,169.00,0.00,169.00
Children and Young Peoples Services,Head of Childrens Social Care,085380,Operations Manager LAC Resources,Supplies and Services,328041,Clothing uniforms and laundry E328,15-May-2020,000009082105317,ARGOS LTD,5310,Clothing uniforms and laundry,-3.95,0.00,-3.95
Children and Young Peoples Services,Head of Childrens Social Care,085380,Operations Manager LAC Resources,Supplies and Services,328041,Clothing uniforms and laundry E328,15-May-2020,000009082105321,ARGOS LTD,5310,Clothing uniforms and laundry,-99.99,0.00,-99.99
Children and Young Peoples Services,Head of Childrens Social Care,085342,16 Hickstead Rise (previously 9 Cedar Ave),Supplies and Services,304403,Equipment and Materials,15-May-2020,000009082105667,AMZNMktplace,5999,Other consumables,19.61,0.00,19.61
Neighbourhoods and Climate Change,Environmental Services,031221,North Pennines - Bowlees,Supplies and Services,332047,Printing Stationery and Gen Off Exps,15-May-2020,000009082105747,WWW.UKPOS.COM,5943,Stationery,256.51,0.00,256.51
Neighbourhoods and Climate Change,Environmental Services,010314,Nei.Prot - Bereavement Services,Supplies and Services,304259,Equipment and Materials,15-May-2020,000009082105781,Durham County CNCL,9399,Equipment-purchase and rental,11.00,0.00,11.00
Neighbourhoods and Climate Change,Environmental Services,010367,C&G - South Grounds Maintenance,Supplies and Services,304999,Equipment and Materials,15-May-2020,000009082106001,HORNS GARDEN CENTRE &,5193,Misc equipment tools and materials,5.79,0.00,5.79
"Regeneration, Economy and Growth",Development and Housing,031576,B& B - Temp Accom,Supplies and Services,364320,Grants to Voluntary Organisations,15-May-2020,000009082106039,AYCLIFFE BIZ,7011,Accommodation assistance,228.00,0.00,228.00
Children and Young Peoples Services,Head of Childrens Social Care,085352,Tow Law CU,Supplies and Services,304999,Equipment and Materials,15-May-2020,000009082106149,Amazon Prime B61D60N85,5968,Misc equipment tools and materials,7.99,0.00,7.99
Children and Young Peoples Services,Head of Childrens Social Care,085625,Families First Spennymoor,Supplies and Services,364301,Grants to Voluntary Organisations,15-May-2020,000009082106183,AMZNMKTPLACE AMAZON.CO,5999,Hardship,90.48,15.08,75.40
Children and Young Peoples Services,Head of Early Help Inclusion & Vulnerable Children.,088116,South Area - Teenage Parent Programme,Supplies and Services,304259,Equipment and Materials,15-May-2020,000009082106183 - 1,AMZNMKTPLACE AMAZON.CO,5999,Equipment-purchase and rental,0.07,,0.07
Children and Young Peoples Services,Head of Childrens Social Care,085331,New Lea Childrens Home,Supplies and Services,304259,Equipment and Materials,15-May-2020,000009082106197,MUSIC MAGPIE,5732,Equipment-purchase and rental,79.99,0.00,79.99
Children and Young Peoples Services,Head of Childrens Social Care,085331,New Lea Childrens Home,Supplies and Services,304999,Equipment and Materials,15-May-2020,000009082106201,HOME BARGAINS,5251,Misc equipment tools and materials,10.47,1.75,8.72
Children and Young Peoples Services,Head of Childrens Social Care,085342,16 Hickstead Rise (previously 9 Cedar Ave),Supplies and Services,344033,Telephones,15-May-2020,000009082106391,WWW.VOXI.CO.UK,4814,Telephones general-all costs,10.00,0.00,10.00
Children and Young Peoples Services,Head of Childrens Social Care,085342,16 Hickstead Rise (previously 9 Cedar Ave),Supplies and Services,328041,Clothing uniforms and laundry E328,15-May-2020,000009082106399,POUNDLAND LTD,5310,Clothing uniforms and laundry,7.00,0.00,7.00
Children and Young Peoples Services,Head of Childrens Social Care,085342,16 Hickstead Rise (previously 9 Cedar Ave),Supplies and Services,324117,Provisions E324,15-May-2020,000009082106405,ALDI 105 774,5411,Catering costs - provisions,5.58,0.00,5.58
Children and Young Peoples Services,Head of Childrens Social Care,085342,16 Hickstead Rise (previously 9 Cedar Ave),Supplies and Services,348037,Subsistence E348,15-May-2020,000009082106413,THE OLIVE GARDEN,5814,Subsistence,35.10,0.00,35.10
Adult and Health Services,Head of Adults,055643,Hawthorn House LD Respite Unit,Supplies and Services,324117,Provisions E324,15-May-2020,000009082106469,JR HOLLAND FOODSERVICE,5499,Catering costs - provisions,16.29,0.00,16.29
Children and Young Peoples Services,Head of Early Help Inclusion & Vulnerable Children.,088103,Consett & Stanley 0-19 Community Family Hub,Supplies and Services,328041,Clothing uniforms and laundry E328,15-May-2020,000009082106561,WWW.THEWORKS.CO.UK,5310,Clothing uniforms and laundry,100.00,0.00,100.00
Children and Young Peoples Services,Head of Early Help Inclusion & Vulnerable Children.,088103,Consett & Stanley 0-19 Community Family Hub,Supplies and Services,304403,Equipment and Materials,15-May-2020,000009082106571,AMZNMktplace,5999,Other consumables,21.59,3.60,17.99
Resources BK0010,Digital and Customer Services,065335,School Services - Implementations,Supplies and Services,304639,Equipment and Materials,15-May-2020,000009082106579,WWW.AVPARTMASTER.NET,7622,Technicians-supplies,142.12,0.00,142.12
Children and Young Peoples Services,Head of Childrens Social Care,085334,West Rainton Satelite Home,Supplies and Services,328041,Clothing uniforms and laundry E328,15-May-2020,000009082106595,ARGOS LTD,5310,Clothing uniforms and laundry,15.00,0.00,15.00
Children and Young Peoples Services,Head of Early Help Inclusion & Vulnerable Children.,085965,Barnard,Supplies and Services,328041,Clothing uniforms and laundry E328,15-May-2020,000009082106657,FOOTASYLUM PLC,5691,Clothing uniforms and laundry,87.94,0.00,87.94
Children and Young Peoples Services,COVID19 - Children and Young Peoples Services,091002,COVID19 - Children and Young Peoples Services,Supplies and Services,304403,Equipment and Materials,15-May-2020,000009082106661,AMZNMktplace,5999,Other consumables,4.99,0.83,4.16
Children and Young Peoples Services,COVID19 - Children and Young Peoples Services,091002,COVID19 - Children and Young Peoples Services,Supplies and Services,384999,Miscellaneous Expenses,15-May-2020,000009082106673,Amazon.co.uk AK1891VB5,5969,Other expenses,5.15,0.00,5.15
Children and Young Peoples Services,COVID19 - Children and Young Peoples Services,091002,COVID19 - Children and Young Peoples Services,Supplies and Services,384999,Miscellaneous Expenses,15-May-2020,000009082106691,Amazon.co.uk ED9FO4CZ5,5969,Other expenses,5.15,0.00,5.15
Children and Young Peoples Services,COVID19 - Children and Young Peoples Services,091002,COVID19 - Children and Young Peoples Services,Supplies and Services,384999,Miscellaneous Expenses,15-May-2020,000009082106697,Amazon.co.uk FD1EU5KY5,5969,Other expenses,5.15,0.00,5.15
Children and Young Peoples Services,COVID19 - Children and Young Peoples Services,091002,COVID19 - Children and Young Peoples Services,Supplies and Services,384999,Miscellaneous Expenses,15-May-2020,000009082106703,Amazon.co.uk FF1DR62T5,5969,Other expenses,5.15,0.00,5.15
Children and Young Peoples Services,COVID19 - Children and Young Peoples Services,091002,COVID19 - Children and Young Peoples Services,Supplies and Services,384999,Miscellaneous Expenses,15-May-2020,000009082106709,Amazon.co.uk FW5NS9NA5,5969,Other expenses,5.15,0.00,5.15
Children and Young Peoples Services,COVID19 - Children and Young Peoples Services,091002,COVID19 - Children and Young Peoples Services,Supplies and Services,384999,Miscellaneous Expenses,15-May-2020,000009082106713,Amazon.co.uk MA1WE4AF5,5969,Other expenses,5.15,0.00,5.15
Children and Young Peoples Services,COVID19 - Children and Young Peoples Services,091002,COVID19 - Children and Young Peoples Services,Supplies and Services,384999,Miscellaneous Expenses,15-May-2020,000009082106717,Amazon.co.uk M269R81O5,5969,Other expenses,5.15,0.00,5.15
Children and Young Peoples Services,COVID19 - Children and Young Peoples Services,091002,COVID19 - Children and Young Peoples Services,Supplies and Services,384999,Miscellaneous Expenses,15-May-2020,000009082106723,Amazon.co.uk NX1162VK5,5969,Other expenses,5.15,0.00,5.15
Children and Young Peoples Services,COVID19 - Children and Young Peoples Services,091002,COVID19 - Children and Young Peoples Services,Supplies and Services,384999,Miscellaneous Expenses,15-May-2020,000009082106733,Amazon.co.uk QY1FQ2ES5,5969,Other expenses,5.15,0.00,5.15
Children and Young Peoples Services,COVID19 - Children and Young Peoples Services,091002,COVID19 - Children and Young Peoples Services,Supplies and Services,384999,Miscellaneous Expenses,15-May-2020,000009082106739,Amazon.co.uk 1Q7Y962T5,5969,Other expenses,5.15,0.00,5.15
Children and Young Peoples Services,COVID19 - Children and Young Peoples Services,091002,COVID19 - Children and Young Peoples Services,Supplies and Services,304403,Equipment and Materials,15-May-2020,000009082106745,AMZNMktplace,5999,Other consumables,5.48,0.92,4.56
Children and Young Peoples Services,COVID19 - Children and Young Peoples Services,091002,COVID19 - Children and Young Peoples Services,Supplies and Services,304403,Equipment and Materials,15-May-2020,000009082106749,AMZNMktplace,5999,Other consumables,5.48,0.92,4.56
Children and Young Peoples Services,Head of Early Help Inclusion & Vulnerable Children.,085965,Barnard,Supplies and Services,304403,Equipment and Materials,15-May-2020,000009082106757,AMZNMktplace,5999,Other consumables,19.90,3.32,16.58
Children and Young Peoples Services,COVID19 - Children and Young Peoples Services,091002,COVID19 - Children and Young Peoples Services,Supplies and Services,304403,Equipment and Materials,15-May-2020,000009082106761,AMZNMktplace,5999,Other consumables,5.48,0.92,4.56
Children and Young Peoples Services,Head of Early Help Inclusion & Vulnerable Children.,085965,Barnard,Supplies and Services,304403,Equipment and Materials,15-May-2020,000009082106765,AMZNMktplace,5999,Other consumables,14.99,0.00,14.99
Children and Young Peoples Services,Head of Early Help Inclusion & Vulnerable Children.,085965,Barnard,Supplies and Services,304403,Equipment and Materials,15-May-2020,000009082106767,AMZNMktplace,5999,Other consumables,14.99,2.50,12.49
Children and Young Peoples Services,COVID19 - Children and Young Peoples Services,091002,COVID19 - Children and Young Peoples Services,Supplies and Services,304403,Equipment and Materials,15-May-2020,000009082106769,AMZNMktplace,5999,Other consumables,4.99,0.83,4.16
Children and Young Peoples Services,Head of Early Help Inclusion & Vulnerable Children.,085965,Barnard,Supplies and Services,304403,Equipment and Materials,15-May-2020,000009082106771,AMZNMktplace,5999,Other consumables,18.20,3.04,15.16
Resources BK0010,Business Support,052986,CYPS - Locality and Operational Support,Supplies and Services,328041,Clothing uniforms and laundry E328,15-May-2020,000009082106859,ARGOS LTD,5310,Clothing uniforms and laundry,68.93,0.00,68.93
Children and Young Peoples Services,Head of Childrens Social Care,085332,Middlestone Moor CU,Supplies and Services,324117,Provisions E324,15-May-2020,000009082106895,PITY ME NURSERY,5499,Catering costs - provisions,43.00,0.00,43.00
Children and Young Peoples Services,Head of Childrens Social Care,085332,Middlestone Moor CU,Supplies and Services,324117,Provisions E324,15-May-2020,000009082106903,PITY ME NURSERY,5499,Catering costs - provisions,46.00,0.00,46.00
Children and Young Peoples Services,Head of Childrens Social Care,085333,Coxhoe Satelite Home,Supplies and Services,384999,Miscellaneous Expenses,15-May-2020,000009082106919,Amazon.co.uk G65757QZ5,5969,Other expenses,8.98,1.50,7.48
Children and Young Peoples Services,Head of Childrens Social Care,085333,Coxhoe Satelite Home,Supplies and Services,384999,Miscellaneous Expenses,15-May-2020,000009082106929,Amazon.co.uk Y55746J85,5969,Other expenses,15.84,2.64,13.20
Children and Young Peoples Services,Head of Childrens Social Care,085333,Coxhoe Satelite Home,Supplies and Services,384999,Miscellaneous Expenses,15-May-2020,000009082106929 - 1,Amazon.co.uk Y55746J85,5969,Other expenses,3.98,,3.98
Children and Young Peoples Services,Head of Childrens Social Care,085333,Coxhoe Satelite Home,Supplies and Services,304403,Equipment and Materials,15-May-2020,000009082106935,AMZNMktplace,5999,Other consumables,16.94,2.82,14.12
Adult and Health Services,Head of Adults,055301,Stanley Pathways,Supplies and Services,324117,Provisions E324,15-May-2020,000009082106947,ALDI 32 774,5411,Catering costs - provisions,18.73,0.00,18.73
Resources BK0010,Corporate Finance & Commercial Services,069800,Corporate Procurement 069800,Employees,040149,Recruitment Instruction and Training,15-May-2020,000009082107067,WWW.CIPS.ORG,8699,Training-all costs,108.00,0.00,108.00
Children and Young Peoples Services,Head of Early Help Inclusion & Vulnerable Children.,088107,Ferryhill & Newton Aycliffe 0-19 Community Family Hub,Supplies and Services,304403,Equipment and Materials,15-May-2020,000009082107125,AMZNMktplace,5999,Other consumables,5.76,0.96,4.80
Children and Young Peoples Services,Head of Early Help Inclusion & Vulnerable Children.,088107,Ferryhill & Newton Aycliffe 0-19 Community Family Hub,Supplies and Services,304403,Equipment and Materials,15-May-2020,000009082107125 - 1,AMZNMktplace,5999,Other consumables,0.06,,0.06
"Regeneration, Economy and Growth",Development and Housing,031500,Housing Solutions - Core Team,Supplies and Services,352001,Conference Expenses,15-May-2020,000009082107143,GRAINGER HOTEL,7011,Conferencesseminars fees etc,350.00,0.00,350.00
"Regeneration, Economy and Growth",Development and Housing,031500,Housing Solutions - Core Team,Supplies and Services,304999,Equipment and Materials,15-May-2020,000009082107149,DUNCAN BELTON TA K,6513,Misc equipment tools and materials,350.00,0.00,350.00
"Regeneration, Economy and Growth",Development and Housing,031500,Housing Solutions - Core Team,Supplies and Services,304999,Equipment and Materials,15-May-2020,000009082107153,DUNCAN BELTON TA K,6513,Misc equipment tools and materials,350.00,0.00,350.00
"Regeneration, Economy and Growth",Development and Housing,031500,Housing Solutions - Core Team,Supplies and Services,352001,Conference Expenses,15-May-2020,000009082107163,HI NEWCASTLE WASHI,7011,Conferencesseminars fees etc,65.00,0.00,65.00
"Regeneration, Economy and Growth",Development and Housing,031500,Housing Solutions - Core Team,Supplies and Services,352001,Conference Expenses,15-May-2020,000009082107173,HI NEWCASTLE WASHI,7011,Conferencesseminars fees etc,195.00,0.00,195.00
Resources BK0010,Business Support,052986,CYPS - Locality and Operational Support,Supplies and Services,352001,Conference Expenses,15-May-2020,000009085178581,TVLICENSING.CO.UK,7392,Conferencesseminars fees etc,157.50,0.00,157.50
Children and Young Peoples Services,Head of Childrens Social Care,085341,High Etherley Satelite Home,Supplies and Services,324117,Provisions E324,16-May-2020,000009082104919,SAINSBURYS 2199,5411,Catering costs - provisions,50.25,0.00,50.25
Resources BK0010,Digital and Customer Services,065432,Web Development Group,Supplies and Services,342053,Computers and Communications,16-May-2020,000009082104973,GODADDY COM EUROPE,4816,Computer software,172.50,0.00,172.50
Children and Young Peoples Services,Head of Childrens Social Care,085342,16 Hickstead Rise (previously 9 Cedar Ave),Supplies and Services,324117,Provisions E324,16-May-2020,000009082105099,CO-OP GROUP 010592,5411,Catering costs - provisions,5.00,0.00,5.00
Children and Young Peoples Services,Head of Childrens Social Care,085332,Middlestone Moor CU,Supplies and Services,324117,Provisions E324,16-May-2020,000009082105329,SAINSBURYS 2199,5411,Catering costs - provisions,29.97,0.00,29.97
Children and Young Peoples Services,Head of Childrens Social Care,085332,Middlestone Moor CU,Supplies and Services,324117,Provisions E324,16-May-2020,000009082105339,SAINSBURYS 2199,5411,Catering costs - provisions,0.20,0.00,0.20
Children and Young Peoples Services,Head of Childrens Social Care,085332,Middlestone Moor CU,Supplies and Services,342506,Provisions E324,16-May-2020,000009082105349,HOME BARGAINS,5251,Shopping Provision COVID19,6.98,0.00,6.98
Children and Young Peoples Services,Head of Childrens Social Care,085332,Middlestone Moor CU,Supplies and Services,328041,Clothing uniforms and laundry E328,16-May-2020,000009082105405,POUNDLAND LTD 1390,5310,Clothing uniforms and laundry,7.10,0.00,7.10
Children and Young Peoples Services,Head of Childrens Social Care,085332,Middlestone Moor CU,Supplies and Services,304259,Equipment and Materials,16-May-2020,000009082105413,JD SPORTS INTERNET,5941,Equipment-purchase and rental,39.99,0.00,39.99
Children and Young Peoples Services,Head of Early Help Inclusion & Vulnerable Children.,085965,Barnard,Supplies and Services,304403,Equipment and Materials,16-May-2020,000009082105469,AMZNMktplace,5999,Other consumables,5.99,0.00,5.99
Children and Young Peoples Services,Head of Childrens Social Care,085352,Tow Law CU,Supplies and Services,344033,Telephones,16-May-2020,000009082105593,giffgaff,4814,Telephones general-all costs,20.00,0.00,20.00
Children and Young Peoples Services,Head of Childrens Social Care,085352,Tow Law CU,Supplies and Services,344033,Telephones,16-May-2020,000009082105599,giffgaff,4814,Telephones general-all costs,20.00,0.00,20.00
Children and Young Peoples Services,Head of Education and Skills,071802,Louisa Cent Nursery,Supplies and Services,324117,Provisions E324,16-May-2020,000009082106341,ALDI STORES,5411,Catering costs - provisions,54.47,0.00,54.47
Children and Young Peoples Services,Head of Childrens Social Care,085342,16 Hickstead Rise (previously 9 Cedar Ave),Supplies and Services,324117,Provisions E324,16-May-2020,000009082106423,TESCO STORES 2916,5411,Catering costs - provisions,18.32,0.00,18.32
